{"text_format":"1","workbook":"xlsx","n_sheets":10,"sheets":["Инструкция","Титульный","Инструкция по заполнению","46 - передача","Проверка","modProv","TEHSHEET","REESTR_ORG","REESTR","tech"],"not_rendered":{"charts":0,"images":3,"macros":1,"external_links":0,"defined_names":46,"comments":0,"pivot_tables":0},"unopened":[],"bounds":{"document_bytes":16777216,"sheet_cells":100000,"rows_first":2000,"rows_last":500,"rows_between":2000,"halvings":0,"cell_chars":16384,"cell_head_chars":4096},"cells_cut":0,"cells_raw":0,"read":"whole","date_system":"1900"}

{"sheet":"Инструкция","index":0,"n_rows":37,"n_cols":15,"rows_kept":37,"cut":false,"hidden":false,"merged":[[33,2,33,3],[33,4,33,10],[36,2,36,3],[36,4,36,10],[34,2,34,3],[34,4,34,10],[35,2,35,3],[35,4,35,10],[31,2,31,7],[32,2,32,3],[32,4,32,10],[27,2,27,3],[27,4,27,10],[28,2,28,3],[28,4,28,10],[29,2,29,3],[29,4,29,10],[1,14,1,16],[25,2,25,3],[25,4,25,10],[26,2,26,3],[26,4,26,10],[2,2,2,15],[24,2,24,7]]}
[]
[null,null,null,null,null,null,null,null,null,null,null,null,null,null,{"$f":"\"Версия \" & GetVersion()","v":"Версия 2.1.2"}]
[null,null,"Инструкция по заполнению шаблона"]
[]
[]
[]
[]
[]
[]
[]
[]
[]
[]
[]
[]
[]
[]
[]
[]
[]
[]
[]
[]
[]
[null,null,"Организационно-технические консультации: "]
[null,null,"ФИО",null,"Шульгин Александр Анатольевич"]
[null,null,"телефон",null,"(3452) 42-66-67"]
[null,null,"e-mail",null,"ShulginAA@72to.ru"]
[null,null,"WEB-сайт",null,"tariff.expert"]
[null,null,"Комментарий",null,"Заполненные шаблоны необходимо направлять через систему ЕИАС"]
[]
[null,null,"Консультации по методологии заполнения форм:"]
[null,null,"ФИО"]
[null,null,"телефон"]
[null,null,"e-mail"]
[null,null,"WEB-сайт"]
[null,null,"Комментарий"]

{"sheet":"Титульный","index":1,"n_rows":28,"n_cols":14,"rows_kept":28,"cut":false,"hidden":false,"merged":[[20,4,21,4],[22,4,23,4],[14,4,16,4],[24,4,27,4],[19,4,19,5],[2,6,2,7],[3,4,3,6],[18,4,18,5],[5,5,5,6],[9,5,9,6],[11,6,12,6]]}
[]
[null,null,null,null,null,null,null,null,null,null,null,null,"Период регулирования",{"$f":"god","v":"2024"}]
[null,null,null,null,null,null,{"$f":"version","v":"Версия 2.1.2"},null,null,null,null,null,"Базовый период",{"$f":"N2-1","v":2023}]
[null,null,null,null,"Фактические объёмы электроэнергии и мощности сетевой организации",null,null,null,null,null,null,null,"ПоследнийГод",{"$f":"N2-2","v":2022}]
[]
[null,null,null,null,"Регион РФ","Тюменская область"]
[null,null,null,null,null,"Год","Месяц"]
[null,null,null,null,"Период регулирования","2024","Год"]
[]
[null,null,null,null,"Наименование организации","ООО \"Агентство Интеллект-Сервис\""]
[]
[null,null,null,null,"ИНН организации","7202082778","Дата последнего обновления реестра организаций 17.01.2022 10:43:19"]
[null,null,null,null,"КПП организации","720301001"]
[]
[null,null,null,null,"Территориальное разделение (регионы, в которых организация оказывает услуги)","да","Тюменская область (Юг Тюменской области)"]
[null,null,null,null,null,"нет","Ханты-Мансийский автономный округ"]
[null,null,null,null,null,"нет","Ямало-Ненецкий автономный округ"]
[]
[null,null,null,null,"Юридический адрес",null,"625048 город Тюмень улица Новгородская д. 10 стр.76 к.40"]
[null,null,null,null,"Почтовый адрес",null,"625048 город Тюмень улица Новгородская д. 10 стр.76 "]
[null,null,null,null,"Руководитель","Фамилия, имя, отчество","Федоров Андрей Владимирович"]
[null,null,null,null,null,"Контактный телефон","8 (3452) 56-86-58"]
[null,null,null,null,"Главный бухгалтер","Фамилия, имя, отчество","Рябкова Татьяна Петровна"]
[null,null,null,null,null,"Контактный телефон","8-919-938-94-89"]
[null,null,null,null,"Должностное лицо, ответственное за составление формы","Фамилия, имя, отчество","Андреева Любовь Леонтьевна"]
[null,null,null,null,null,"Должность","экономист"]
[null,null,null,null,null,"Контактный телефон","8 (3452) 56-86-58"]
[null,null,null,null,null,"e-mail","ais7213@mail.ru"]

{"sheet":"Инструкция по заполнению","index":2,"n_rows":40,"n_cols":5,"rows_kept":40,"cut":false,"hidden":false,"merged":[]}
[]
[]
[]
[]
[]
[]
[]
[]
[null,null,null,null,"Комментарии по заполнению"]
[]
[null,null,null,null,"При заполнении отчётных форм принимается:\nВН (220 кВ, 110 кВ) – напряжение в сети 220 кВ, 110 кВ и выше\nСН 1 – напряжение в сети 35 кВ и выше\nСН 2 – напряжение в сети 10 - 6 кВ и выше\nНН – напряжение в сети 0,4 кВ и выше"]
[null,null,null,null,"Электроэнергия"]
[null,null,null,null,"1. В строке 1 отражается объём поступившей электроэнергии в сеть отчитывающейся организации по уровням напряжения от других организаций. Строка 1 = сумма строк (1.1 + 1.2 + 1.3)"]
[null,null,null,null,"2. В строке 2 отражается объём поступившей электроэнергии в сеть отчитывающейся организации из других уровней напряжения (трансформация). Строка 2 = сумма строк (2.1 + 2.2 + 2.3)"]
[null,null,null,null,"3. В строке 3 отражается отпуск из сети отчитывающейся организации по уровням напряжения поставщикам, в другие сети, конечным потребителям и на хозяйственные нужды собственных сетей. Строка 3 = сумма строк (3.1 + 3.2 + 3.3 + 3.4)"]
[null,null,null,null,"4. В строке 4 отражается отпуск в сеть других уровней напряжения отчитывающейся организации. Объём ВН = сумме строки 2.1 по всем уровням напряжения. Объём СН 1 = сумме строки 2.2 по всем уровням напряжения. Объём СН 2 = сумме строки 2.3 по всем уровням напряжения"]
[null,null,null,null,"5. В строке 5 отражаются потери в сетях по уровням напряжения отчитывающейся организации, относимые на собственное потребление, на передачу субабонентам и на конечных потребителей. Строка 5 = сумма строк (5.1 + 5.2 + 5.3)"]
[null,null,null,null,"6. В строке 6 отражается объём электроэнергии, вырабатываемой на установках отчитывающейся организации"]
[null,null,null,null,"7. В строке 7 отражается собственное потребление элекроэнергии отчитывающейся организации"]
[null,null,null,null,"8. В строке 8 отражается небаланс поступления в сеть и отпуска из сети электроэнергии отчитывающейся организации, включая потери электроэнергии. Строка 8 =  строки (1 + 2 - 3 - 4 - 5 + 6 - 7)"]
[null,null,null,null,"Мощность"]
[null,null,null,null,"1. В строке 1 отражается объём поступившей мощности в сеть отчитывающейся организации по уровням напряжения от других организаций. Строка 1 = сумма строк (1.1 + 1.2 + 1.3)"]
[null,null,null,null,"2. В строке 2 отражается объём поступившей мощности в сеть отчитывающейся организации из других уровней напряжения (трансформация). Строка 2 = сумма строк (2.1 + 2.2 + 2.3)"]
[null,null,null,null,"3. В строке 3 отражается отпуск из сети отчитывающейся организации по уровням напряжения поставщикам, в другие сети и конечным потребителям. Строка 3 = сумма строк (3.1 + 3.2 + 3.3)"]
[null,null,null,null,"4. В строке 4 отражается отпуск в сеть других уровней напряжения отчитывающейся организации. Объём ВН = сумме строки 2.1 по всем уровням напряжения. Объём СН 1 = сумме строки 2.2 по всем уровням напряжения. Объём СН 2 = сумме строки 2.3 по всем уровням напряжения"]
[null,null,null,null,"5. В строке 5 отражается объём мощности на хозяйственные нужды отчитывающейся организации"]
[null,null,null,null,"6. В строке 6 отражаются потери в сетях по уровням напряжения отчитывающейся организации, включая потери относимые на собственное потребление (Строка 6.1)"]
[null,null,null,null,"7. В строке 7 отражается объём мощности, вырабатываемой на установках отчитывающейся организации"]
[null,null,null,null,"8. В строке 8 отражается собственное потребление мощности отчитывающейся организации"]
[null,null,null,null,"9. В строке 9 отражается небаланс поступления в сеть и отпуска из сети мощности отчитывающейся организации, включая потери мощности. Строка 9 =  строки (1 + 2 - 3 - 4 - 5 - 6 + 7 - 8)"]
[null,null,null,null,"Заявленная и присоединённая мощность"]
[null,null,null,null,"1. В строке 1 приводятся сведения о сумме всей заявленной потребителями мощности по уровням напряжения. Данные отображаются только в случае, если регулирующим органом осуществляется регулирование распределительных сетевых организаций по заявленной мощности"]
[null,null,null,null,"2. В строке 2 приводятся сведения о сумме всех присоединённых мощностей потребителей, отнесённых к соответствующему уровню напряжения"]
[null,null,null,null,"Товарная продуция"]
[null,null,null,null,"1. В данном разделе отражаются сведения о товарной выручке, определенной на основании данных об объёмах фактически оказанных услуг по тарифам, утвержденным в установленном порядке. Строка Всего = сумма строк (1.1 + 1.2 + 1.3)"]
[null,null,null,null,"Расход по оплате услуг по передаче электрической энергии (мощности)"]
[null,null,null,null,"1. В данном разделе отражаются сведения о расходе по оплате услуг по передаче электроэнергии (мощности) без учета НДС в разрезе сетевых организаций по уровням напряжения"]
[null,null,null,null,"Платежи"]
[null,null,null,null,"1. В строке 1 отражается объём поступлений денежных средств в адрес отчитывающейся организации в счёт стоимости поставленных услуг по передаче"]
[null,null,null,null,"2. в строке 2 отражается объём уплаты денежных средств отчитывающейся организацией в счет стоимости приобретённых услуг по передаче"]

{"sheet":"46 - передача","index":3,"n_rows":172,"n_cols":10,"rows_kept":172,"cut":false,"hidden":false,"merged":[[147,3,147,9],[152,3,152,9],[8,3,8,9],[128,3,128,9],[131,3,131,9],[16,3,16,9],[72,3,72,9]]}
[]
[]
[]
[]
[]
[]
[]
[]
[null,null,null,{"$f":"\"Фактические объёмы электроэнергии и мощности за \" & IF(kvartal=\"\",\"Не определено\",kvartal) & \" \" & IF(god=\"\",\"Не определено\",god) & \" года\"","v":"Фактические объёмы электроэнергии и мощности за Год 2024 года"}]
[]
[null,null,null,null,"Число знаков после запятой:"]
[]
[]
[null,null,null,"№ п/п","Наименование показателя","Всего","ВН","СН 1","СН 2","НН"]
[null,null,null,1,2,3,4,5,6,7]
[]
[null,null,null,"Электроэнергия (тыс. кВтч)"]
[null,null,null,"1","Поступление в сеть из других организаций, в том числе",{"$f":"SUM(G18:J18)","v":124449.53199999999},{"$f":"SUM(G19,G20,G29,G33)","v":96136.128999999986},{"$f":"SUM(H19,H20,H29,H33)","v":0},{"$f":"SUM(I19,I20,I29,I33)","v":28313.403000000002},{"$f":"SUM(J19,J20,J29,J33)","v":0}]
[null,null,null,"1.1","Из сетей ЕНЭС",{"$f":"SUM(G19:J19)","v":0}]
[null,null,null,"1.2","Из сетей прочих сетевых организаций",{"$f":"SUM(G20:J20)","v":109350.322},{"$f":"SUM(G21:G28)","v":81036.918999999994},{"$f":"SUM(H21:H28)","v":0},{"$f":"SUM(I21:I28)","v":28313.403000000002},{"$f":"SUM(J21:J28)","v":0}]
[null,null,null,"1.2.0"]
[null,null,"Удалить","1.2.1","АО \"Россети Тюмень\"",{"$f":"SUM(G22:J22)","v":82455.019},81036.918999999994,0,1418.1,0]
[null,null,"Удалить","1.2.2","ООО \"ЭЛЕКОНТ\"",727.12900000000002,0,0,727.12900000000002,0]
[null,null,"Удалить","1.2.3","АО \"СУЭНКО\"",16344.307000000001,0,0,16344.307000000001,0]
[null,null,"Удалить","1.2.4","ООО \"Дорстрой\"",2152.34,0,0,2152.34,0]
[null,null,"Удалить","1.2.5","ООО \"Региональная энергетическая компания\"",3842.8820000000005,0,0,3842.8820000000005,0]
[null,null,"Удалить","1.2.6","ООО «Газпром энерго» в зоне деятельности Сургутского филиала Общества с ограниченной ответственностью «Газпром энерго»",3828.6450000000004,0,0,3828.6450000000004,0]
[null,null,null,null,"Добавить сетевую компанию"]
[null,null,null,"1.3","От генерирующих компаний и блок-станций",{"$f":"SUM(G29:J29)","v":15099.21},{"$f":"SUM(G30:G32)","v":15099.21},{"$f":"SUM(H30:H32)","v":0},{"$f":"SUM(I30:I32)","v":0},{"$f":"SUM(J30:J32)","v":0}]
[null,null,null,"1.3.0"]
[null,null,"Удалить","1.3.1","ОАО \"Фортум\" (Тюменская ТЭЦ-1)",{"$f":"SUM(G31:J31)","v":15099.21},15099.21,0,0,0]
[null,null,null,null,"Добавить генерирующую компанию"]
[null,null,null,"1.4","Из сетей сопредельных регионов",{"$f":"SUM(G33:J33)","v":0}]
[null,null,null,"2","Поступление в сеть из других уровней напряжения (трансформация)",{"$f":"SUM(H34:J34)","v":92441.43473522678},null,{"$f":"H35","v":0},{"$f":"I35+I36","v":47429.817181561521},{"$f":"J35+J36+J37","v":45011.617553665259}]
[null,null,null,"2.1","ВН",{"$f":"SUM(H35:J35)","v":47429.817181561521},null,null,{"$f":"G18-G39-G66","v":47429.817181561521}]
[null,null,null,"2.2","СН 1",{"$f":"SUM(I36:J36)","v":0}]
[null,null,null,"2.3","СН 2",{"$f":"SUM(J37)","v":45011.617553665259},null,null,null,{"$f":"I35+I18-I39-I68","v":45011.617553665259}]
[]
[null,null,null,"3","Отпуск из сети, в том числе",{"$f":"SUM(G39:J39)","v":119702.15991740001},{"$f":"SUM(G40,G48,G54,G57,G60)","v":47557.136900000005},{"$f":"SUM(H40,H48,H54,H57,H60)","v":0},{"$f":"SUM(I40,I48,I54,I57,I60)","v":29645.699007400002},{"$f":"SUM(J40,J48,J54,J57,J60)","v":42499.324010000004}]
[null,null,null,"3.1","Конечные потребители",{"$f":"SUM(G40:J40)","v":69710.290917400009},{"$f":"SUM(G41:G47)","v":4879.3699000000006},{"$f":"SUM(H41:H47)","v":0},{"$f":"SUM(I41:I47)","v":22331.5970074},{"$f":"SUM(J41:J47)","v":42499.324010000004}]
[null,null,null,"3.1.0"]
[null,null,"Удалить","3.1.1","АО \"Газпром энергосбыт Тюмень\"",{"$f":"SUM(G42:J42)","v":53677.042916999999},3507.6209000000003,0,9655.4410069999994,40513.981010000003]
[null,null,"Удалить","3.1.2","АО \"Энергосбытовая компания \"Восток\"",{"$f":"SUM(G43:J43)","v":7147.2219999999998},0,0,5775.63,1371.5920000000001]
[null,null,"Удалить","3.1.3","ООО \"Энергокомплекс\"",{"$f":"SUM(G44:J44)","v":7216.1650003999994},null,null,6900.5260003999992,315.63900000000001]
[null,null,"Удалить","3.1.4","ООО \"МагнитЭнерго\"",{"$f":"SUM(G45:J45)","v":298.11199999999997},null,null,null,298.11199999999997]
[null,null,"Удалить","3.1.5","ООО \"МСК Энерго\"",{"$f":"SUM(G46:J46)","v":1371.749},1371.749,0,0,0]
[null,null,null,null,"Добавить сбытовую компанию"]
[null,null,null,"3.2","Другие сети",{"$f":"SUM(G48:J48)","v":49991.869000000006},{"$f":"SUM(G49:G53)","v":42677.767000000007},{"$f":"SUM(H49:H53)","v":0},{"$f":"SUM(I49:I53)","v":7314.1020000000017},{"$f":"SUM(J49:J53)","v":0}]
[null,null,null,"3.2.0"]
[null,null,"Удалить","3.2.1","АО \"СУЭНКО\"",{"$f":"SUM(G50:J50)","v":44515.416000000012},38064.025000000009,0,6451.3910000000014,0]
[null,null,"Удалить","3.2.2","ООО \"Региональная энергетическая компания\"",{"$f":"SUM(G51:J51)","v":5278.4030000000002},4613.7420000000002,0,664.66100000000006,0]
[null,null,"Удалить","3.2.3","ООО \"Дорстрой\"",{"$f":"SUM(G52:J52)","v":198.05},null,null,198.05]
[null,null,null,null,"Добавить сетевую компанию"]
[null,null,null,"3.3","Поставщики",{"$f":"SUM(G54:J54)","v":0},{"$f":"SUM(G55:G56)","v":0},{"$f":"SUM(H55:H56)","v":0},{"$f":"SUM(I55:I56)","v":0},{"$f":"SUM(J55:J56)","v":0}]
[null,null,null,"3.3.0"]
[null,null,null,null,"Добавить генерирующую компанию"]
[null,null,null,"3.4","Другие организации",{"$f":"SUM(G57:J57)","v":0},{"$f":"SUM(G58:G59)","v":0},{"$f":"SUM(H58:H59)","v":0},{"$f":"SUM(I58:I59)","v":0},{"$f":"SUM(J58:J59)","v":0}]
[null,null,null,"3.4.0"]
[null,null,null,null,"Добавить другую организацию"]
[null,null,null,"3.5","Сетевые компании, опосредованно присоединённые через сети прочих потребителей",{"$f":"SUM(G60:J60)","v":0},{"$f":"SUM(G61:G62)","v":0},{"$f":"SUM(H61:H62)","v":0},{"$f":"SUM(I61:I62)","v":0},{"$f":"SUM(J61:J62)","v":0}]
[null,null,null,"3.5.0"]
[null,null,null,null,"Добавить сетевую компанию"]
[null,null,null,"4","Отпуск в сеть других уровней напряжения",{"$f":"SUM(G63:I63)","v":92441.43473522678},{"$f":"SUM(G35:J35)","v":47429.817181561521},{"$f":"SUM(G36:J36)","v":0},{"$f":"SUM(G37:J37)","v":45011.617553665259}]
[null,null,null,"5","Хозяйственные нужды сети",{"$f":"SUM(G64:J64)","v":0},0,0,0,0]
[]
[null,null,null,"6","Потери, в том числе",{"$f":"SUM(G66:J66)","v":4747.3721000000005},{"$f":"SUM(G67:G68)","v":1149.1749184384601},{"$f":"SUM(H67:H68)","v":0},{"$f":"SUM(I67:I68)","v":1085.9036204962631},{"$f":"SUM(J67:J68)","v":2512.2935610652776}]
[null,null,null,"6.1","Относимые на собственное потребление",0]
[null,null,null,"6.2","Относимые на передачу субабонентам",4747.3721000000005,1149.1749184384601,0,1085.9036204962631,2512.2935610652776]
[]
[null,null,null,"7","Генерация на установках организации (совмещение деятельности)",0]
[null,null,null,"8","Собственное потребление (совмещение деятельности)",0]
[null,null,null,"9","Небаланс",-1.7400023580194102E-5,{"$f":"G18-G39-G63-G64-G66+G70-G71","v":6.8212102632969618E-13},{"$f":"H18+H34-H39-H63-H64-H66+H70-H71","v":0},{"$f":"I18+I34-I39-I63-I64-I66+I70-I71","v":-1.8189894035458565E-12},{"$f":"J18+J34-J39-J64-J66+J70-J71","v":-1.7400022443325724E-5}]
[null,null,null,"Мощность (МВт)"]
[null,null,null,"1","Поступление в сеть из других организаций, в том числе",{"$f":"SUM(G74:J74)","v":17.880679885057472},{"$f":"SUM(G75,G76,G85,G89)","v":13.812662212643678},{"$f":"SUM(H75,H76,H85,H89)","v":0},{"$f":"SUM(I75,I76,I85,I89)","v":4.0680176724137933},{"$f":"SUM(J75,J76,J85,J89)","v":0}]
[null,null,null,"1.1","Из сетей  ЕНЭС",{"$f":"SUM(G75:J75)","v":0}]
[null,null,null,"1.2","Из сетей прочих сетевых организаций",{"$f":"SUM(G76:J76)","v":15.71125316091954},{"$f":"SUM(G77:G84)","v":11.643235488505747},{"$f":"SUM(H77:H84)","v":0},{"$f":"SUM(I77:I84)","v":4.0680176724137933},{"$f":"SUM(J77:J84)","v":0}]
[null,null,null,"1.2.0"]
[null,null,"Удалить","1.2.1",{"$f":"IF('46 - передача'!$E$22=\"\", \"\", '46 - передача'!$E$22)","v":"АО \"Россети Тюмень\""},{"$f":"SUM(G78:J78)","v":11.846985488505746},{"$f":"G22/6960","v":11.643235488505747},{"$f":"H22/6960","v":0},{"$f":"I22/6960","v":0.20374999999999999},{"$f":"J22/6960","v":0}]
[null,null,"Удалить","1.2.2",{"$f":"IF('46 - передача'!$E$23=\"\", \"\", '46 - передача'!$E$23)","v":"ООО \"ЭЛЕКОНТ\""},0.10447255747126437,{"$f":"G23/6960","v":0},0,0.10447255747126437,0]
[null,null,"Удалить","1.2.3",{"$f":"IF('46 - передача'!$E$24=\"\", \"\", '46 - передача'!$E$24)","v":"АО \"СУЭНКО\""},2.3483199712643681,0,0,2.3483199712643681,0]
[null,null,"Удалить","1.2.4",{"$f":"IF('46 - передача'!$E$25=\"\", \"\", '46 - передача'!$E$25)","v":"ООО \"Дорстрой\""},0.30924425287356322,0,0,0.30924425287356322,0]
[null,null,"Удалить","1.2.5",{"$f":"IF('46 - передача'!$E$26=\"\", \"\", '46 - передача'!$E$26)","v":"ООО \"Региональная энергетическая компания\""},0.55213821839080468,0,0,0.55213821839080468,0]
[null,null,"Удалить","1.2.6",{"$f":"IF('46 - передача'!$E$27=\"\", \"\", '46 - передача'!$E$27)","v":"ООО «Газпром энерго» в зоне деятельности Сургутского филиала Общества с ограниченной ответственностью «Газпром энерго»"},0.55009267241379312,0,0,0.55009267241379312,0]
[null,null,null,null,"Добавить сетевую компанию"]
[null,null,null,"1.3","От генерирующих компаний и блок-станций",{"$f":"SUM(G85:J85)","v":2.169426724137931},{"$f":"SUM(G86:G88)","v":2.169426724137931},{"$f":"SUM(H86:H88)","v":0},{"$f":"SUM(I86:I88)","v":0},{"$f":"SUM(J86:J88)","v":0}]
[null,null,null,"1.3.0"]
[null,null,"Удалить","1.3.1",{"$f":"IF('46 - передача'!$E$31=\"\", \"\", '46 - передача'!$E$31)","v":"ОАО \"Фортум\" (Тюменская ТЭЦ-1)"},{"$f":"SUM(G87:J87)","v":2.169426724137931},{"$f":"G31/6960","v":2.169426724137931},{"$f":"H31/6960","v":0},{"$f":"I31/6960","v":0},{"$f":"J31/6960","v":0}]
[null,null,null,null,"Добавить генерирующую компанию"]
[null,null,null,"1.4","Из сетей сопредельных регионов",{"$f":"SUM(G89:J89)","v":0}]
[null,null,null,"2","Поступление в сеть из других уровней напряжения (трансформация)",{"$f":"SUM(H90:J90)","v":13.281815335521088},null,{"$f":"H91","v":0},{"$f":"I91+I92","v":6.8146289053967699},{"$f":"J91+J92+J93","v":6.4671864301243192}]
[null,null,null,"2.1","ВН",{"$f":"SUM(H91:J91)","v":6.8146289053967699},null,null,{"$f":"I35/(580*12)","v":6.8146289053967699}]
[null,null,null,"2.2","СН 1",{"$f":"SUM(I92:J92)","v":0}]
[null,null,null,"2.3","СН 2",{"$f":"SUM(J93)","v":6.4671864301243192},null,null,null,{"$f":"J37/(580*12)","v":6.4671864301243192}]
[]
[null,null,null,"3","Отпуск из сети, в том числе",{"$f":"SUM(G95:J95)","v":17.198586195028739},{"$f":"SUM(G96,G104,G110,G113,G116)","v":6.8329219683908065},{"$f":"SUM(H96,H104,H110,H113,H116)","v":0},{"$f":"SUM(I96,I104,I110,I113,I116)","v":4.2594395125574716},{"$f":"SUM(J96,J104,J110,J113,J116)","v":6.1062247140804597}]
[null,null,null,"3.1","Конечные потребители",{"$f":"SUM(G96:J96)","v":10.01584639617816},{"$f":"SUM(G97:G103)","v":0.70105889367816099},{"$f":"SUM(H97:H103)","v":0},{"$f":"SUM(I97:I103)","v":3.20856278841954},{"$f":"SUM(J97:J103)","v":6.1062247140804597}]
[null,null,null,"3.1.0"]
[null,null,"Удалить","3.1.1",{"$f":"IF('46 - передача'!$E$42=\"\", \"\", '46 - передача'!$E$42)","v":"АО \"Газпром энергосбыт Тюмень\""},{"$f":"SUM(G98:J98)","v":7.7122188099137929},{"$f":"G42/6960","v":0.50396852011494253},0,1.3872760067528735,5.8209742830459774]
[null,null,"Удалить","3.1.2",{"$f":"IF('46 - передача'!$E$43=\"\", \"\", '46 - передача'!$E$43)","v":"АО \"Энергосбытовая компания \"Восток\""},{"$f":"SUM(G99:J99)","v":1.0268997126436783},0,0,0.82983189655172418,0.19706781609195403]
[null,null,"Удалить","3.1.3",{"$f":"IF('46 - передача'!$E$44=\"\", \"\", '46 - передача'!$E$44)","v":"ООО \"Энергокомплекс\""},{"$f":"SUM(G100:J100)","v":1.0368053161494251},0,0,0.9914548851149424,4.535043103448276E-2]
[null,null,"Удалить","3.1.4",{"$f":"IF('46 - передача'!$E$45=\"\", \"\", '46 - передача'!$E$45)","v":"ООО \"МагнитЭнерго\""},{"$f":"SUM(G101:J101)","v":4.2832183908045975E-2},0,0,0,4.2832183908045975E-2]
[null,null,"Удалить","3.1.5",{"$f":"IF('46 - передача'!$E$46=\"\", \"\", '46 - передача'!$E$46)","v":"ООО \"МСК Энерго\""},{"$f":"SUM(G102:J102)","v":0.1970903735632184},0.1970903735632184,0,0,0]
[null,null,null,null,"Добавить сбытовую компанию"]
[null,null,null,"3.2","Другие сети",{"$f":"SUM(G104:J104)","v":7.1827397988505766},{"$f":"SUM(G105:G109)","v":6.131863074712645},{"$f":"SUM(H105:H109)","v":0},{"$f":"SUM(I105:I109)","v":1.0508767241379313},{"$f":"SUM(J105:J109)","v":0}]
[null,null,null,"3.2.0"]
[null,null,"Удалить","3.2.1",{"$f":"IF('46 - передача'!$E$50=\"\", \"\", '46 - передача'!$E$50)","v":"АО \"СУЭНКО\""},{"$f":"SUM(G106:J106)","v":6.3958931034482767},{"$f":"G50/6960","v":5.4689691091954034},0,0.92692399425287375,0]
[null,null,"Удалить","3.2.2",{"$f":"IF('46 - передача'!$E$51=\"\", \"\", '46 - передача'!$E$51)","v":"ООО \"Региональная энергетическая компания\""},{"$f":"SUM(G107:J107)","v":0.75839123563218402},0.66289396551724145,0,9.5497270114942537E-2,0]
[null,null,"Удалить","3.2.3",{"$f":"IF('46 - передача'!$E$52=\"\", \"\", '46 - передача'!$E$52)","v":"ООО \"Дорстрой\""},{"$f":"SUM(G108:J108)","v":2.8455459770114943E-2},0,0,2.8455459770114943E-2,0]
[null,null,null,null,"Добавить сетевую компанию"]
[null,null,null,"3.3","Поставщики",{"$f":"SUM(G110:J110)","v":0},{"$f":"SUM(G111:G112)","v":0},{"$f":"SUM(H111:H112)","v":0},{"$f":"SUM(I111:I112)","v":0},{"$f":"SUM(J111:J112)","v":0}]
[null,null,null,"3.3.0"]
[null,null,null,null,"Добавить генерирующую компанию"]
[null,null,null,"3.4","Другие организации",{"$f":"SUM(G113:J113)","v":0},{"$f":"SUM(G114:G115)","v":0},{"$f":"SUM(H114:H115)","v":0},{"$f":"SUM(I114:I115)","v":0},{"$f":"SUM(J114:J115)","v":0}]
[null,null,null,"3.4.0"]
[null,null,null,null,"Добавить другую организацию"]
[null,null,null,"3.5","Сетевые компании, опосредованно присоединённые через сети прочих потребителей",{"$f":"SUM(G116:J116)","v":0},{"$f":"SUM(G117:G118)","v":0},{"$f":"SUM(H117:H118)","v":0},{"$f":"SUM(I117:I118)","v":0},{"$f":"SUM(J117:J118)","v":0}]
[null,null,null,"3.5.0"]
[null,null,null,null,"Добавить сетевую компанию"]
[null,null,null,"4","Отпуск в сеть других уровней напряжения",{"$f":"SUM(G119:I119)","v":13.281815335521088},{"$f":"SUM(G91:J91)","v":6.8146289053967699},{"$f":"SUM(G92:J92)","v":0},{"$f":"SUM(G93:J93)","v":6.4671864301243192}]
[null,null,null,"5","Хозяйственные нужды сети",{"$f":"SUM(G120:J120)","v":0}]
[]
[null,null,null,"6","Потери, в том числе",{"$f":"SUM(G122:J122)","v":0.68209369252873575},{"$f":"SUM(G123:G124)","v":0.16511133885610058},{"$f":"SUM(H123:H124)","v":0},{"$f":"SUM(I123:I124)","v":0.15602063512877343},{"$f":"SUM(J123:J124)","v":0.36096171854386172}]
[null,null,null,"6.1","Относимые на собственное потребление",0]
[null,null,null,"6.2","Относимые на передачу субабонентам",0.68209369252873575,{"$f":"G68/(580*12)","v":0.16511133885610058},{"$f":"H68/(580*12)","v":0},{"$f":"I68/(580*12)","v":0.15602063512877343},{"$f":"J68/(580*12)","v":0.36096171854386172}]
[]
[null,null,null,"7","Генерация на установках организации (совмещение деятельности)",0]
[null,null,null,"8","Собственное потребление (совмещение деятельности)",0]
[null,null,null,"9","Небаланс",-2.5000019554521913E-9,{"$f":"G74-G95-G119-G120-G122+G126-G127","v":1.27675647831893E-15},{"$f":"H74+H90-H95-H119-H120-H122+H126-H127","v":0},{"$f":"I74+I90-I95-I119-I120-I122+I126-I127","v":-9.1593399531575415E-16},{"$f":"J74+J90-J95-J120-J122+J126-J127","v":-2.5000023162746743E-9}]
[null,null,null,"Заявленная и присоединённая мощность"]
[null,null,null,"1","Заявленная мощность конечных потребителей (МВт)",{"$f":"SUM(G130:J130)","v":10.797082415080059},{"$f":"G96*1.078","v":0.75574148738505764},{"$f":"H96*1.078","v":0},{"$f":"I96*1.078","v":3.4588306859162645},{"$f":"J96*1.078","v":6.5825102417787358}]
[null,null,null,"2","Присоединенная мощность конечных потребителей (МВА)",{"$f":"SUM(G131:J131)","v":0}]
[null,null,null,"Товарная продукция  (без НДС), тыс.руб."]
[null,null,null,"1","Всего",{"$f":"SUM(G133:J133)","v":130390.31210960654},{"$f":"SUM(G134,G142,G145)","v":9423.0087400000011},{"$f":"SUM(H134,H142,H145)","v":0},{"$f":"SUM(I134,I142,I145)","v":72018.865939606534},{"$f":"SUM(J134,J142,J145)","v":48948.437429999998}]
[null,null,null,"1.1","Сбытовые компании",{"$f":"SUM(G134:J134)","v":130390.31210960654},{"$f":"SUM(G135:G141)","v":9423.0087400000011},{"$f":"SUM(H135:H141)","v":0},{"$f":"SUM(I135:I141)","v":72018.865939606534},{"$f":"SUM(J135:J141)","v":48948.437429999998}]
[null,null,null,"1.1.0"]
[null,null,"Удалить","1.1.1","АО \"Газпром энергосбыт Тюмень\"",{"$f":"SUM(G136:J136)","v":83846.62516960653},6697.24892,0,29751.261249606541,47398.114999999998]
[null,null,"Удалить","1.1.2","АО \"Энергосбытовая компания \"Восток\"",{"$f":"SUM(G137:J137)","v":18596.327000000001},null,null,{"$f":"18596.327-652.44","v":17943.887000000002},652.44000000000005]
[null,null,"Удалить","1.1.3","ООО \"Энергокомплекс\"",{"$f":"SUM(G138:J138)","v":24323.717689999998},null,null,24323.717689999998]
[null,null,"Удалить","1.1.4","ООО \"МагнитЭнерго\"",{"$f":"SUM(G139:J139)","v":897.88243},null,null,null,897.88243]
[null,null,"Удалить","1.1.5","ООО \"МСК Энерго\"",{"$f":"SUM(G140:J140)","v":2725.7598200000002},2725.7598200000002]
[null,null,null,null,"Добавить сбытовую компанию"]
[null,null,null,"1.2","Сетевые компании",{"$f":"SUM(G142:J142)","v":0},{"$f":"SUM(G143:G144)","v":0},{"$f":"SUM(H143:H144)","v":0},{"$f":"SUM(I143:I144)","v":0},{"$f":"SUM(J143:J144)","v":0}]
["F",null,null,"1.2.0"]
[null,null,null,null,"Добавить сетевую компанию"]
[null,null,null,"1.3","Другие организации",{"$f":"SUM(G145:J145)","v":0},{"$f":"SUM(G146:G147)","v":0},{"$f":"SUM(H146:H147)","v":0},{"$f":"SUM(I146:I147)","v":0},{"$f":"SUM(J146:J147)","v":0}]
[null,null,null,"1.3.0"]
[null,null,null,null,"Добавить другую организацию"]
[null,null,null,"Расход по оплате услуг по передаче электрической энергии (мощности)  (без НДС), тыс.руб."]
[null,null,null,"1","Сетевая компания",{"$f":"SUM(G149:J149)","v":1812.7429000000002},{"$f":"SUM(G150:G152)","v":1778.4307100000001},{"$f":"SUM(H150:H152)","v":0},{"$f":"SUM(I150:I152)","v":34.312190000000001},{"$f":"SUM(J150:J152)","v":0}]
[null,null,null,"1.0"]
[null,null,null,null,"АО \"Россети Тюмень\"",{"$f":"SUM(G151:J151)","v":1812.7429000000002},1778.4307100000001,0,34.312190000000001,0]
[null,null,null,null,"Добавить сетевую компанию (передача)"]
[null,null,null,"Платежи  (без НДС), тыс.руб."]
[null,null,null,"1","Поступления денежных средств в счёт стоимости поставленных услуг по передаче",{"$f":"SUM(G154:J154)","v":130390.31210960654},{"$f":"SUM(G155,G163,G166)","v":9423.0087400000011},{"$f":"SUM(H155,H163,H166)","v":0},{"$f":"SUM(I155,I163,I166)","v":72018.865939606534},{"$f":"SUM(J155,J163,J166)","v":48948.437429999998}]
[null,null,null,"1.1","Сбытовые компании",{"$f":"SUM(G155:J155)","v":130390.31210960654},{"$f":"SUM(G156:G162)","v":9423.0087400000011},{"$f":"SUM(H156:H162)","v":0},{"$f":"SUM(I156:I162)","v":72018.865939606534},{"$f":"SUM(J156:J162)","v":48948.437429999998}]
[null,null,null,"1.1.0"]
[null,null,"Удалить","1.1.1",{"$f":"IF('46 - передача'!$E$136=\"\", \"\", '46 - передача'!$E$136)","v":"АО \"Газпром энергосбыт Тюмень\""},{"$f":"SUM(G157:J157)","v":83846.62516960653},{"$f":"G136","v":6697.24892},{"$f":"H136","v":0},29751.261249606541,47398.114999999998]
[null,null,"Удалить","1.1.2",{"$f":"IF('46 - передача'!$E$137=\"\", \"\", '46 - передача'!$E$137)","v":"АО \"Энергосбытовая компания \"Восток\""},{"$f":"SUM(G158:J158)","v":18596.327000000001},{"$f":"G137","v":0},0,17943.887000000002,652.44000000000005]
[null,null,"Удалить","1.1.3",{"$f":"IF('46 - передача'!$E$138=\"\", \"\", '46 - передача'!$E$138)","v":"ООО \"Энергокомплекс\""},{"$f":"SUM(G159:J159)","v":24323.717689999998},{"$f":"G138","v":0},0,24323.717689999998,0]
[null,null,"Удалить","1.1.4",{"$f":"IF('46 - передача'!$E$139=\"\", \"\", '46 - передача'!$E$139)","v":"ООО \"МагнитЭнерго\""},{"$f":"SUM(G160:J160)","v":897.88243},{"$f":"G139","v":0},0,0,897.88243]
[null,null,"Удалить","1.1.5",{"$f":"IF('46 - передача'!$E$140=\"\", \"\", '46 - передача'!$E$140)","v":"ООО \"МСК Энерго\""},{"$f":"SUM(G161:J161)","v":2725.7598200000002},{"$f":"G140","v":2725.7598200000002},0,0,0]
[null,null,null,null,"Добавить сбытовую компанию"]
[null,null,null,"1.2","Сетевые компании",{"$f":"SUM(G163:J163)","v":0},{"$f":"SUM(G164:G165)","v":0},{"$f":"SUM(H164:H165)","v":0},{"$f":"SUM(I164:I165)","v":0},{"$f":"SUM(J164:J165)","v":0}]
[null,null,null,"1.2.0"]
[null,null,null,null,"Добавить сетевую компанию"]
[null,null,null,"1.3","Другие организации",{"$f":"SUM(G166:J166)","v":0},{"$f":"SUM(G167:G168)","v":0},{"$f":"SUM(H167:H168)","v":0},{"$f":"SUM(I167:I168)","v":0},{"$f":"SUM(J167:J168)","v":0}]
[null,null,null,"1.3.0"]
[null,null,null,null,"Добавить другую организацию"]
[]
[null,null,null,"2","Уплата денежных средств в счёт стоимости приобретённых услуг по передаче",{"$f":"SUM(G170:J170)","v":0},{"$f":"SUM(G171:G172)","v":0},{"$f":"SUM(H171:H172)","v":0},{"$f":"SUM(I171:I172)","v":0},{"$f":"SUM(J171:J172)","v":0}]
[null,null,null,"2.0"]
[null,null,null,null,"Добавить сетевую компанию (передача)"]

{"sheet":"Проверка","index":4,"n_rows":1,"n_cols":3,"rows_kept":1,"cut":false,"hidden":false,"merged":[]}
["Ссылка","Причина","Обязательность выполнения"]

{"sheet":"modProv","index":5,"n_rows":0,"n_cols":0,"rows_kept":0,"cut":false,"hidden":true,"merged":[]}

{"sheet":"TEHSHEET","index":6,"n_rows":84,"n_cols":7,"rows_kept":84,"cut":false,"hidden":true,"merged":[]}
["Алтайский край",null,"YEAR","MONTH","logic",null,"НСРФ"]
["Амурская область",null,"2014","Январь","да",null,"Тюменская область"]
["Архангельская область",null,"2015","Февраль","нет",null,"Ханты-Мансийский автономный округ"]
["Астраханская область",null,"2016","Март",null,null,"Ямало-Ненецкий автономный округ"]
["Белгородская область",null,"2017","Апрель"]
["Брянская область",null,"2018","Май"]
["Владимирская область",null,"2019","Июнь"]
["Волгоградская область",null,"2020","Июль",null,null,"XML_ORG_LIST_TAG_NAMES"]
["Вологодская область",null,"2021","Август",null,null,"ORG_NAME"]
["Воронежская область",null,"2022","Сентябрь",null,null,"INN_NAME"]
["г. Москва",null,"2023","Октябрь",null,null,"KPP_NAME"]
["г.Байконур",null,"2024","Ноябрь",null,null,"VDET_NAME"]
["г.Санкт-Петербург",null,"2025","Декабрь",null,null,"NSRF"]
["Еврейская автономная область",null,null,"Год"]
["Забайкальский край"]
["Ивановская область"]
["Иркутская область"]
["Кабардино-Балкарская республика"]
["Калининградская область"]
["Калужская область"]
["Камчатский край"]
["Карачаево-Черкесская республика"]
["Кемеровская область"]
["Кировская область"]
["Костромская область"]
["Краснодарский край"]
["Красноярский край"]
["Курганская область"]
["Курская область"]
["Ленинградская область"]
["Липецкая область"]
["Магаданская область"]
["Московская область"]
["Мурманская область"]
["Ненецкий автономный округ"]
["Нижегородская область"]
["Новгородская область"]
["Новосибирская область"]
["Омская область"]
["Оренбургская область"]
["Орловская область"]
["Пензенская область"]
["Пермский край"]
["Приморский край"]
["Псковская область"]
["Республика Адыгея"]
["Республика Алтай"]
["Республика Башкортостан"]
["Республика Бурятия"]
["Республика Дагестан"]
["Республика Ингушетия"]
["Республика Калмыкия"]
["Республика Карелия"]
["Республика Коми"]
["Республика Марий Эл"]
["Республика Мордовия"]
["Республика Саха (Якутия)"]
["Республика Северная Осетия-Алания"]
["Республика Татарстан"]
["Республика Тыва"]
["Республика Хакасия"]
["Ростовская область"]
["Рязанская область"]
["Самарская область"]
["Саратовская область"]
["Сахалинская область"]
["Свердловская область"]
["Смоленская область"]
["Ставропольский край"]
["Тамбовская область"]
["Тверская область"]
["Томская область"]
["Тульская область"]
["Тюменская область"]
["Удмуртская республика"]
["Ульяновская область"]
["Хабаровский край"]
["Ханты-Мансийский автономный округ"]
["Челябинская область"]
["Чеченская республика"]
["Чувашская республика"]
["Чукотский автономный округ"]
["Ямало-Ненецкий автономный округ"]
["Ярославская область"]

{"sheet":"REESTR_ORG","index":7,"n_rows":784,"n_cols":54,"rows_kept":784,"cut":false,"hidden":true,"merged":[]}
["ОРГАНИЗАЦИЯ","ИНН","КПП","ТИП ОРГАНИЗАЦИИ","РЕГИОН",null,"ЕНЭС"]
["АО \"Газпром энергосбыт\"","7705750968","772901001","Региональная генерация","Тюменская область",null,"Конечные потребители (кроме ТСО)"]
["АО \"ИНТЕР РАО - Электрогенерация\"","7704784450","862450001","Региональная генерация","Тюменская область",null,"Региональная генерация"]
["АО \"СУЭНКО\"","7205011944","720350001","Региональная генерация","Тюменская область",null,"Оптовая генерация"]
["АО \"СибурТюменьГаз\"","7202116628","862450001","Региональная генерация","Тюменская область",null,"ТСО других субъектов РФ"]
["АО \"Югорская энергетическая компания децентрализованной зоны\" (АО \"Юграэнерго\")","8601029263","860101001","Региональная генерация","Тюменская область",null,"Прямой договор"]
["АО Нижневартовская ГРЭС","8620018330","785150001","Региональная генерация","Тюменская область",null,"Независимые сбытовые компании"]
["Блокстанции ТЭ","7200000000","720000001","Региональная генерация","Тюменская область",null,"Оптовый рынок"]
["ЗАО \"Завод \"Сантехкомплект\"","7203039648","720301001","Региональная генерация","Тюменская область",null,"Прочие конечные потребители"]
["ЗАО \"ЛУКОЙЛ-АИК\"","8608180070","860801001","Региональная генерация","Тюменская область"]
["МУП \"Байкаловский ККП\"","7223000825","722301001","Региональная генерация","Тюменская область"]
["ОАО \"Первая генерирующая компания оптового рынка электроэнергии\"","7203158282","770401001","Региональная генерация","Тюменская область"]
["ОАО \"ТНК-Нягань\"","8610010727","997150001","Региональная генерация","Тюменская область"]
["ОАО \"Фортум\" (Тобольская ТЭЦ)","7203162698","720602001","Региональная генерация","Тюменская область"]
["ОАО \"Фортум\" (Тюменская ТЭЦ-1)","7203162698","720302001","Региональная генерация","Тюменская область"]
["ООО \"Башнефть-Добыча\"","0277106840","025250001","Региональная генерация","Тюменская область"]
["ООО \"Газпром добыча Уренгой\"","8904034784","997250001","Региональная генерация","Тюменская область"]
["ООО \"Газпром добыча Ямбург\" Филиал \"Ямбурское районное энергетическое управление\"","8904034777","890401001","Региональная генерация","Тюменская область"]
["ООО \"Газпромнефть-Хантос\"","8618006063","997150001","Региональная генерация","Тюменская область"]
["ООО \"Западно-Малобалыкское\"","8619010665","997150001","Региональная генерация","Тюменская область"]
["ООО \"Ноябрьская ПГЭ\"","8905037499","890501001","Региональная генерация","Тюменская область"]
["ООО \"РН-Уватнефтегаз\"","7225003194","722501001","Региональная генерация","Тюменская область"]
["ООО \"СИБУР Тобольск\"","7206025040","720601001","Региональная генерация","Тюменская область"]
["ООО \"Салым Петролеум\"","8619013320","861901001","Региональная генерация","Тюменская область"]
["ООО \"Северная ПЛЭС\"","7716605105","890345001","Региональная генерация","Тюменская область"]
["ООО \"Соровскнефть\"","7202170632","720301001","Региональная генерация","Тюменская область"]
["ООО \"Тобольская ТЭЦ\"","7206048859","720601001","Региональная генерация","Тюменская область"]
["ПАО \"Передвижная энергетика\"","7719019846","771901001","Региональная генерация","Тюменская область"]
["ПАО \"Передвижная энергетика\"  филиал ПЭС \"Уренгой\"","7719019846","890402001","Региональная генерация","Тюменская область"]
["ПАО \"Передвижная энергетика\" филиал \"ПЭС Казым\"","7719019846","861102001","Региональная генерация","Тюменская область"]
["ПАО \"Славнефть-Мегионнефтегаз\"","8605003932","860501001","Региональная генерация","Тюменская область"]
["ПАО \"Сургутнефтегаз\"","8602060555","997250001","Региональная генерация","Тюменская область"]
["ПАО \"Фортум\"","7203162698","745301001","Региональная генерация","Тюменская область"]
["ПАО \"Фортум\"","7203162698","997150001","Региональная генерация","Тюменская область"]
["ПАО \"Фортум\" (Няганская ГРЭС)","7203162698","861002001","Региональная генерация","Тюменская область"]
["ПИИ ОАО \"Газтурбосервис\"","7203078728","720301001","Региональная генерация","Тюменская область"]
["Филиал \"Уренгойская ГРЭС\" АО \"Интер РАО - Электрогенерация\"","7704784450","890443001","Региональная генерация","Тюменская область"]
["Филиал ПАО \"ОГК-2\"- Сургутская ГРЭС-1","2607018122","860202001","Региональная генерация","Тюменская область"]
["филиал \"Сургутская ГРЭС-2\" ПАО \"Юнипро\"","8602067092","860202001","Региональная генерация","Тюменская область"]
["АО \"Газпром энергосбыт Тюмень\"","8602067215","862450001","Сбытовая компания","Тюменская область"]
["АО \"Газпром энергосбыт\"","7705750968","772901001","Сбытовая компания","Тюменская область"]
["АО \"ЕЭСнК\"","7727232575","997650001","Сбытовая компания","Тюменская область"]
["АО \"Мосэнергосбыт\"","7736520080","997650001","Сбытовая компания","Тюменская область"]
["АО \"Новосибирскэнергосбыт\"","5407025576","997650001","Сбытовая компания","Тюменская область"]
["АО \"Оборонэнергосбыт\"","7704731218","773043001","Сбытовая компания","Тюменская область"]
["АО \"Салехардэнерго\"","8901030855","890101001","Сбытовая компания","Тюменская область"]
["АО \"Сибурэнергоменеджмент\"","7727276526","366301001","Сбытовая компания","Тюменская область"]
["АО \"Синэрго\"","6672261117","668501001","Сбытовая компания","Тюменская область"]
["АО \"СУЭНКО\"","7205011944","720350001","Сбытовая компания","Тюменская область"]
["АО \"Энергосбытовая компания \"Восток\"","7705424509","997650001","Сбытовая компания","Тюменская область"]
["АО \"ЮТЭК\"","8601022317","862450001","Сбытовая компания","Тюменская область"]
["Закрытое акционерное общество \"Энергопромышленная компания\", г. Екатеринбург","6661105959","666101001","Сбытовая компания","Тюменская область"]
["ЗАО \"Дирекция по энергообеспечению Восточного промузла\"","7203009876","720301001","Сбытовая компания","Тюменская область"]
["ООО \"Городские электрические сети\"",8601070751,860101001,"Сбытовая компания","Тюменская область"]
["ОАО \"ОБОРОНЭНЕРГОСБЫТ\" филиал \"УРАЛЬСКИЙ\"","7704731218","720445001","Сбытовая компания","Тюменская область"]
["ОАО \"Промышленная энергетика\"","7705736716","770501001","Сбытовая компания","Тюменская область"]
["ОАО \"Северная энергетическая компания\"","8911019579","890501001","Сбытовая компания","Тюменская область"]
["ОАО «ЭСК РусГидро»","7804403972","772801001","Сбытовая компания","Тюменская область"]
["Общество с ограниченной ответственностью «Энергосбытовая компания»","0275075272","027501001","Сбытовая компания","Тюменская область"]
["ООО \"АГГРЕКО ЕВРАЗИЯ\"","7705838531","720301001","Сбытовая компания","Тюменская область"]
["ООО \"Альянс-Энергджи\" Стрежевской филиал","7709843116","770401001","Сбытовая компания","Тюменская область"]
["ООО \"Газпром добыча Ямбург\" Филиал \"Ямбурское районное энергетическое управление\"","8904034777","890401001","Сбытовая компания","Тюменская область"]
["ООО \"Газпром энергосбыт Брянск\"","8602173527","785150001","Сбытовая компания","Тюменская область"]
["ООО \"Гарант Энерго\"","7709782777","770901001","Сбытовая компания","Тюменская область"]
["ООО \"Дизаж М\"","7728587330","772801001","Сбытовая компания","Тюменская область"]
["ООО \"ЕЭС-Гарант\"","5024173259","502401001","Сбытовая компания","Тюменская область"]
["ООО \"Ижэнергосбыт\"","1834024515","184001001","Сбытовая компания","Тюменская область"]
["ООО \"Инженерные изыскания\"","1103029229","352801001","Сбытовая компания","Тюменская область"]
["ООО \"КНАУФ ЭНЕРГИЯ\"","7729677594","772901001","Сбытовая компания","Тюменская область"]
["ООО \"ЛУКОЙЛ-ЭНЕРГОСЕРВИС\"","5030040730","503001001","Сбытовая компания","Тюменская область"]
["ООО \"ЛУКОЙЛ-ЭНЕРГОСЕРВИС\"","5030040730","997650001","Сбытовая компания","Тюменская область"]
["ООО \"МСК Энерго\"","7725567512","772901001","Сбытовая компания","Тюменская область"]
["ООО \"МагнитЭнерго\"","7715902899","231001001","Сбытовая компания","Тюменская область"]
["ООО \"МТС ЭНЕРГО\"","9709006506","772601001","Сбытовая компания","Тюменская область"]
["ООО \"Независимое энергосбытовое предприятие\"","8602171819","860201001","Сбытовая компания","Тюменская область"]
["ООО \"Нижневартовская энергосбытовая компания\"","8603109926","860301001","Сбытовая компания","Тюменская область"]
["ООО \"Промэнергосбыт\"","7206036155","720601001","Сбытовая компания","Тюменская область"]
["ООО \"ПрофСервисТрейд\"","7707820378","771401001","Сбытовая компания","Тюменская область"]
["ООО \"Региональная энергосбытовая компания\" (ОПП)","4633017746","463301001","Сбытовая компания","Тюменская область"]
["ООО \"РН-Энерго\"","7706525041","997650001","Сбытовая компания","Тюменская область"]
["ООО \"РУСЭНЕРГО\"","4401144416","770501001","Сбытовая компания","Тюменская область"]
["ООО \"Русэнергоресурс\"","7706288496","770601001","Сбытовая компания","Тюменская область"]
["ООО \"Русэнергосбыт\"","7706284124","770401001","Сбытовая компания","Тюменская область"]
["ООО \"СИБУР Тобольск\"","7206025040","720601001","Сбытовая компания","Тюменская область"]
["ООО \"Сургутская энергосбытовая компания\"","8602153048","860201001","Сбытовая компания","Тюменская область"]
["ООО \"Транснефтьэнерго\"","7703552167","772301001","Сбытовая компания","Тюменская область"]
["ООО \"ТРОЯН\"","7203433010","720301001","Сбытовая компания","Тюменская область"]
["ООО \"Энергокомплекс\"","7203394515","720301001","Сбытовая компания","Тюменская область"]
["ООО \"Энергопрогноз\"","3328454924","332801001","Сбытовая компания","Тюменская область"]
["ООО \"Энергосбытовая компания Черногорэнерго\"","8603126569","860301001","Сбытовая компания","Тюменская область"]
["ООО \"ЭСК \"Независимость\"","7701383354","770801001","Сбытовая компания","Тюменская область"]
["ООО «РЭК»","7714974474","645401001","Сбытовая компания","Тюменская область"]
["ООО Энергосбытовая компания \"Аган\",г.Радужный","8609018048","860901001","Сбытовая компания","Тюменская область"]
["ПАО \"Фортум\"","7203162698","997150001","Сбытовая компания","Тюменская область"]
["РЭУ  ОАО \"Запсибгазпром\"","7203001796","720345001","Сбытовая компания","Тюменская область"]
["Свердловский филиал ООО \"ЕЭС-Гарант\"","5024173259","667043001","Сбытовая компания","Тюменская область"]
["АО \"Аэропорт Белоярский\"","8611002077","861101001","Сетевая компания","Тюменская область"]
["АО \"Аэропорт Рощино\"","7204660086","720301001","Сетевая компания","Тюменская область"]
["АО \"Аэропорт Сургут\"","8602060523","860201001","Сетевая компания","Тюменская область"]
["АО \"Аэропорт Урай\"","8606010379","860601001","Сетевая компания","Тюменская область"]
["АО \"Вынгапуровский тепловодоканал\"","8905045443","890501001","Сетевая компания","Тюменская область"]
["АО \"Городские электрические сети\" г.Нижневартовск","8603004190","860301001","Сетевая компания","Тюменская область"]
["АО \"Губкинские городские электрические сети\"","8911015126","891101001","Сетевая компания","Тюменская область"]
["АО \"Муравленковское предприятие городских электрических сетей\"","8905063058","890501001","Сетевая компания","Тюменская область"]
["АО \"Надымское авиапредприятие\"","8903025610","890301001","Сетевая компания","Тюменская область"]
["АО \"Нижневартовское нефтегазодобывающее предприятие\"","8603089941","860301001","Сетевая компания","Тюменская область"]
["АО \"Новоуренгойский ОАО\"","8904045602","890401001","Сетевая компания","Тюменская область"]
["АО \"НордЭнерджиСистемс\"","8903032551","720301001","Сетевая компания","Тюменская область"]
["АО \"РСК Ямала\"","8901008899","890101001","Сетевая компания","Тюменская область"]
["АО \"Россети Тюмень\"","8602060185","997450001","Сетевая компания","Тюменская область"]
["АО \"СУЭНКО\"","7205011944","720350001","Сетевая компания","Тюменская область"]
["АО \"Самотлорнефтегаз\"","8603089934","997250001","Сетевая компания","Тюменская область"]
["АО \"Тюменский завод медицинского оборудования и инструментов\"","7203000834","720301001","Сетевая компания","Тюменская область"]
["АО \"Тюменский электромеханический завод\"","7204003108","720301001","Сетевая компания","Тюменская область"]
["АО \"Уренгойская электросетевая компания\"",8904092592,"890401001","Сетевая компания","Тюменская область"]
["АО \"Элек\"","8602066853","860201001","Сетевая компания","Тюменская область"]
["АО \"Энерго-Газ-Ноябрьск\"","8905033649","890501001","Сетевая компания","Тюменская область"]
["АО \"ЮРЭСК\"","8601045152","862450001","Сетевая компания","Тюменская область"]
["АО \"ЮТЭК-Региональные сети\"","8601033125","860101001","Сетевая компания","Тюменская область"]
["АО \"Ямальская железнодорожная компания\"","8904042048","890401001","Сетевая компания","Тюменская область"]
["АО \"Оборонэнерго\" - филиал \"Уральский\"","7704726225","667243001","Сетевая компания","Тюменская область"]
["ЗАО \" Тюменский приборостроительный завод\"","7203000841","720301001","Сетевая компания","Тюменская область"]
["ЗАО \"Завод Тюменьремдормаш\"","7204005867","722401001","Сетевая компания","Тюменская область"]
["АО \"Ханты-Мансийские городские электрические сети\"","8601073745",860101001,"Сетевая компания","Тюменская область"]
["МП \"Ханты-Мансийские городские электрические сети\" МО г. Ханты-Мансийск","8601065832","860101001","Сетевая компания","Тюменская область"]
["МУП \"Надымские городские электрические сети\"","8903030850","890301001","Сетевая компания","Тюменская область"]
["МУП \"Сургутские районные электрические сети\" МО Сургутский район","8617017320","861701001","Сетевая компания","Тюменская область"]
["Муниципальное предприятие \"Эксплуатационная генерирующая компания\"  муниципального образования городское поселение Приобье","8614008285","861401001","Сетевая компания","Тюменская область"]
["ОАО \"Варьеганэнергонефть\"","8609003059","860901001","Сетевая компания","Тюменская область"]
["ОАО \"ГЭС\" г. Мегион","8605017251","860501001","Сетевая компания","Тюменская область"]
["ОАО \"Пойковские электрические сети\"","8619013546","861901001","Сетевая компания","Тюменская область"]
["ОАО \"РН-НЯГАНЬНЕФТЕГАЗ\"","8610010727","861001001","Сетевая компания","Тюменская область"]
["ОАО \"Радужнинские городские электрические сети\"","8609004670","860901001","Сетевая компания","Тюменская область"]
["ОАО \"Сибнефтепровод\"","7201000726","720301001","Сетевая компания","Тюменская область"]
["ОАО \"ТНК-Нягань\"","8610010727","997150001","Сетевая компания","Тюменская область"]
["ОАО \"Черногорэнерго\"","8620001023","860301001","Сетевая компания","Тюменская область"]
["ОАО \"ЮТЭК-Покачи\"","8621005479","862101001","Сетевая компания","Тюменская область"]
["ОАО ТТК \"КРОСНО\"","7203001250","720301001","Сетевая компания","Тюменская область"]
["ООО \"Тюменская электросетевая компания\"","7204160220","720401001","Сетевая компания","Тюменская область"]
["ООО \"Агентство Интеллект-Сервис\"","7202082778","720301001","Сетевая компания","Тюменская область"]
["ООО \"Агропромэнергия\"","7224014468","722401001","Сетевая компания","Тюменская область"]
["ООО \"Альтера\"","7203252461","720301001","Сетевая компания","Тюменская область"]
["ООО \"Аэропорт Советский\"","8615001243","861501001","Сетевая компания","Тюменская область"]
["ООО \"Башнефть-Добыча\"","0277106840","025250001","Сетевая компания","Тюменская область"]
["ООО \"Башнефть-Добыча\"","0277106840","027501001","Сетевая компания","Тюменская область"]
["ООО \"Белозерный газоперерабатывающий комплекс\"","8603138733","862450001","Сетевая компания","Тюменская область"]
["ООО \"Газпром добыча Уренгой\"","8904034784","997250001","Сетевая компания","Тюменская область"]
["ООО \"Газпром трансгаз Сургут\"","8617002073","997250001","Сетевая компания","Тюменская область"]
["ООО \"Газпром трансгаз Сургут\" Демьянское ЛПУ МГ","8617002073","722503003","Сетевая компания","Тюменская область"]
["ООО \"Газпром трансгаз Сургут\" Ишимское ЛПУ МГ","8617002073","720503001","Сетевая компания","Тюменская область"]
["ООО \"Газпром трансгаз Сургут\" Тобольское ЛПУ МГ","8617002073","720603002","Сетевая компания","Тюменская область"]
["ООО \"Газпром трансгаз Сургут\" Туртасское ЛПУ МГ","8617002073","722503004","Сетевая компания","Тюменская область"]
["ООО \"Газпром трансгаз Сургут\" Ярковское ЛПУ МГ","8617002073","722943001","Сетевая компания","Тюменская область"]
["ООО \"Газпромнефть-Хантос\"","8618006063","997150001","Сетевая компания","Тюменская область"]
["ООО \"ДОК-Энерго\"","7204129541","720301001","Сетевая компания","Тюменская область"]
["ООО \"ДСК-Энерго\"","7203144385","720301001","Сетевая компания","Тюменская область"]
["ООО \"Дака\"","7224003201","720301001","Сетевая компания","Тюменская область"]
["ООО \"Дорстрой\"","7204080494","720301001","Сетевая компания","Тюменская область"]
["ООО \"Западно-Малобалыкское\"","8619010665","997150001","Сетевая компания","Тюменская область"]
["ООО \"ИНТЕГРУС\"","7202190565","720201001","Сетевая компания","Тюменская область"]
["ООО \"ЛУКОЙЛ-ЭНЕРГОСЕТИ\"","5260230051","525350001","Сетевая компания","Тюменская область"]
["ООО \"Луч-Электро\"","8603097124","860301001","Сетевая компания","Тюменская область"]
["ООО \"Мегионэнергонефть\"","8605016890","860501001","Сетевая компания","Тюменская область"]
["ООО \"МинЭл\"","8614008550","861401001","Сетевая компания","Тюменская область"]
["ООО \"Нижневартовский газоперерабатывающий комплекс\"","8603138726","862450001","Сетевая компания","Тюменская область"]
["ООО \"Нижневартовскэнергонефть\"","8603104220","862450001","Сетевая компания","Тюменская область"]
["ООО \"Газпромнефть Энергосистемы\"","8905032490","891450001","Сетевая компания","Тюменская область"]
["ООО \"РН - Юганскнефтегаз\"","8604035473","997150001","Сетевая компания","Тюменская область"]
["ООО \"РН - Юганскнефтегаз\"","8604035473","997250001","Сетевая компания","Тюменская область"]
["ООО \"Региональная энергетическая компания\"","7203412147","720301001","Сетевая компания","Тюменская область"]
["ООО \"Ремэнергостройсервис\"","7224023014","722401001","Сетевая компания","Тюменская область"]
["ООО \"Русская тепловая компания\"","8602062560","860201001","Сетевая компания","Тюменская область"]
["ООО \"СИБУР Тобольск\"","7206025040","720601001","Сетевая компания","Тюменская область"]
["ООО \"СеверСетьРазвитие\"","8901021265","667101001","Сетевая компания","Тюменская область"]
["ООО \"Северремприбор\"","8602248187","860201001","Сетевая компания","Тюменская область"]
["ООО \"Сетевая компания \"Вектор\"","7204143715","720301001","Сетевая компания","Тюменская область"]
["ООО \"Сибирь-Электро\"","7224035725","722401001","Сетевая компания","Тюменская область"]
["ООО \"Сибтрансэлектро\"","8604010454","860401001","Сетевая компания","Тюменская область"]
["ООО \"Сибэнергокомплектмонтаж\"","8602253660","860201001","Сетевая компания","Тюменская область"]
["ООО \"Статус\"","7202153919","720401001","Сетевая компания","Тюменская область"]
["ООО \"Строительно-промышленный комбинат\"","8603214825","860301001","Сетевая компания","Тюменская область"]
["ООО \"Сургутские городские электрические сети\"","8602015464","860201001","Сетевая компания","Тюменская область"]
["ООО \"ТРАНССЕТЬ\"","7203395220","720301001","Сетевая компания","Тюменская область"]
["ООО \"Тарманское-Центральное\"","7203141497","720301001","Сетевая компания","Тюменская область"]
["ООО \"Тобольскпромэнергосеть\"","7206032440","720601001","Сетевая компания","Тюменская область"]
["ООО \"Транзит-Электро-Тюмень\"","7203249540","720301001","Сетевая компания","Тюменская область"]
["ООО \"ТюменьСеть\"",7203508113,"720301001","Сетевая компания","Тюменская область"]
["ООО \"Управляющая компания - Тюменские моторостроители\"","7203179282","720301001","Сетевая компания","Тюменская область"]
["ООО \"ЭлектроСпецСтрой\"","7224038532","720301001","Сетевая компания","Тюменская область"]
["ООО \"ЭЛЕКОНТ\"",7224046773,"722401001","Сетевая компания","Тюменская область"]
["ООО \"Элтранс\"","7224042747","720301001","Сетевая компания","Тюменская область"]
["ООО \"Энергия-2006\"","7203180111","720301001","Сетевая компания","Тюменская область"]
["ООО \"Энерго Тюмень\"","7204161070","720401001","Сетевая компания","Тюменская область"]
["ООО \"Энерго-Лидер\"","7204162073","720401001","Сетевая компания","Тюменская область"]
["ООО \"Энергонефть Томск\"","7022010799","702201001","Сетевая компания","Тюменская область"]
["ООО «Газпром переработка» в зоне деятельности филиала Завод по стабилизации конденсата имени В.С. Черномырдина","1102054991","860201001","Сетевая компания","Тюменская область"]
["ООО «Газпром энерго» в зоне деятельности Сургутского филиала Общества с ограниченной ответственностью «Газпром энерго»","7736186950","860202001","Сетевая компания","Тюменская область"]
["ООО «ЭЛЕК»","8602281868","860201001","Сетевая компания","Тюменская область"]
["ООО СК \"Восток\"","7203304688","720301001","Сетевая компания","Тюменская область"]
["ПАО \"Птицефабрика \"Боровская\"","7224008030","722401001","Сетевая компания","Тюменская область"]
["ПАО \"Сургутнефтегаз\"","8602060555","997250001","Сетевая компания","Тюменская область"]
["ПАО \"ФСК ЕЭС\"","4716016979","772801001","Сетевая компания","Тюменская область"]
["ПАО \"ФСК ЕЭС\"","4716016979","997450001","Сетевая компания","Тюменская область"]
["Северная дирекция по энергообеспечению - структурное подразделение Трансэнерго - филиала ОАО \"Российские железные дороги\"","7708503727","760445013","Сетевая компания","Тюменская область"]
["Уренгойский филиал ООО \"Газпром энерго\"","7736186950","890402001","Сетевая компания","Тюменская область"]
["ФБУ \"Центр реабилитации ФСС РФ \"Тараскуль\"","7204013642","720301001","Сетевая компания","Тюменская область"]
["ФГУП \"Стройтранс №1\"","7203019680","720201001","Сетевая компания","Тюменская область"]
["акционерное общество \"Юграавиа\"","8601053210","860101001","Сетевая компания","Тюменская область"]
["филиал ОАО \"РЖД\" - Свердловская ж.д. (Сургутская дистанция)","7708503727","860245012","Сетевая компания","Тюменская область"]
["филиал ОАО \"РЖД\"- Свердловская ж.д. (Тюменская дистанция)","7708503727","720445015","Сетевая компания","Тюменская область"]
["АО \"Газпром энергосбыт\"","7705750968","772901001","Станция - поставщик ЭЭ","Тюменская область"]
["АО \"ИНТЕР РАО - Электрогенерация\"","7704784450","862450001","Станция - поставщик ЭЭ","Тюменская область"]
["АО \"СУЭНКО\"","7205011944","720350001","Станция - поставщик ЭЭ","Тюменская область"]
["АО \"СибурТюменьГаз\"","7202116628","862450001","Станция - поставщик ЭЭ","Тюменская область"]
["АО \"Югорская энергетическая компания децентрализованной зоны\" (АО \"Юграэнерго\")","8601029263","860101001","Станция - поставщик ЭЭ","Тюменская область"]
["АО Нижневартовская ГРЭС","8620018330","785150001","Станция - поставщик ЭЭ","Тюменская область"]
["Блокстанции ТЭ","7200000000","720000001","Станция - поставщик ЭЭ","Тюменская область"]
["ЗАО \"Завод \"Сантехкомплект\"","7203039648","720301001","Станция - поставщик ЭЭ","Тюменская область"]
["ЗАО \"ЛУКОЙЛ-АИК\"","8608180070","860801001","Станция - поставщик ЭЭ","Тюменская область"]
["МУП \"Байкаловский ККП\"","7223000825","722301001","Станция - поставщик ЭЭ","Тюменская область"]
["ОАО \"Первая генерирующая компания оптового рынка электроэнергии\"","7203158282","770401001","Станция - поставщик ЭЭ","Тюменская область"]
["ОАО \"ТНК-Нягань\"","8610010727","997150001","Станция - поставщик ЭЭ","Тюменская область"]
["ОАО \"Фортум\" (Тобольская ТЭЦ)","7203162698","720602001","Станция - поставщик ЭЭ","Тюменская область"]
["ОАО \"Фортум\" (Тюменская ТЭЦ-1)","7203162698","720302001","Станция - поставщик ЭЭ","Тюменская область"]
["ООО \"Башнефть-Добыча\"","0277106840","025250001","Станция - поставщик ЭЭ","Тюменская область"]
["ООО \"Газпром добыча Уренгой\"","8904034784","997250001","Станция - поставщик ЭЭ","Тюменская область"]
["ООО \"Газпром добыча Ямбург\" Филиал \"Ямбурское районное энергетическое управление\"","8904034777","890401001","Станция - поставщик ЭЭ","Тюменская область"]
["ООО \"Газпромнефть-Хантос\"","8618006063","997150001","Станция - поставщик ЭЭ","Тюменская область"]
["ООО \"Западно-Малобалыкское\"","8619010665","997150001","Станция - поставщик ЭЭ","Тюменская область"]
["ООО \"Ноябрьская ПГЭ\"","8905037499","890501001","Станция - поставщик ЭЭ","Тюменская область"]
["ООО \"РН-Уватнефтегаз\"","7225003194","722501001","Станция - поставщик ЭЭ","Тюменская область"]
["ООО \"СИБУР Тобольск\"","7206025040","720601001","Станция - поставщик ЭЭ","Тюменская область"]
["ООО \"Салым Петролеум\"","8619013320","861901001","Станция - поставщик ЭЭ","Тюменская область"]
["ООО \"Северная ПЛЭС\"","7716605105","890345001","Станция - поставщик ЭЭ","Тюменская область"]
["ООО \"Соровскнефть\"","7202170632","720301001","Станция - поставщик ЭЭ","Тюменская область"]
["ООО \"Тобольская ТЭЦ\"","7206048859","720601001","Станция - поставщик ЭЭ","Тюменская область"]
["ПАО \"Передвижная энергетика\"","7719019846","771901001","Станция - поставщик ЭЭ","Тюменская область"]
["ПАО \"Передвижная энергетика\"  филиал ПЭС \"Уренгой\"","7719019846","890402001","Станция - поставщик ЭЭ","Тюменская область"]
["ПАО \"Передвижная энергетика\" филиал \"ПЭС Казым\"","7719019846","861102001","Станция - поставщик ЭЭ","Тюменская область"]
["ПАО \"Славнефть-Мегионнефтегаз\"","8605003932","860501001","Станция - поставщик ЭЭ","Тюменская область"]
["ПАО \"Сургутнефтегаз\"","8602060555","997250001","Станция - поставщик ЭЭ","Тюменская область"]
["ПАО \"Фортум\"","7203162698","745301001","Станция - поставщик ЭЭ","Тюменская область"]
["ПАО \"Фортум\"","7203162698","997150001","Станция - поставщик ЭЭ","Тюменская область"]
["ПАО \"Фортум\" (Няганская ГРЭС)","7203162698","861002001","Станция - поставщик ЭЭ","Тюменская область"]
["ПИИ ОАО \"Газтурбосервис\"","7203078728","720301001","Станция - поставщик ЭЭ","Тюменская область"]
["Филиал \"Уренгойская ГРЭС\" АО \"Интер РАО - Электрогенерация\"","7704784450","890443001","Станция - поставщик ЭЭ","Тюменская область"]
["Филиал ПАО \"ОГК-2\"- Сургутская ГРЭС-1","2607018122","860202001","Станция - поставщик ЭЭ","Тюменская область"]
["филиал \"Сургутская ГРЭС-2\" ПАО \"Юнипро\"","8602067092","860202001","Станция - поставщик ЭЭ","Тюменская область"]
["АО \"СУЭНКО\"","7205011944","720350001","ЭСО","Тюменская область"]
["ООО \"СИБУР Тобольск\"","7206025040","720601001","ЭСО","Тюменская область"]
["АО \"Югорская энергетическая компания децентрализованной зоны\" (АО \"Юграэнерго\")","8601029263","860101001","Региональная генерация","Ханты-Мансийский автономный округ"]
["АО Нижневартовская ГРЭС","8620018330","785150001","Региональная генерация","Ханты-Мансийский автономный округ"]
["ЗАО \"Энерго Сервис\"","7022014560","702201001","Региональная генерация","Ханты-Мансийский автономный округ"]
["ООО \"Газпром трансгаз Югорск\"","8622000931","997250001","Региональная генерация","Ханты-Мансийский автономный округ"]
["ПАО \"Фортум\" (Няганская ГРЭС)","7203162698","861002001","Региональная генерация","Ханты-Мансийский автономный округ"]
["Филиал ПАО \"ОГК-2\"- Сургутская ГРЭС-1","2607018122","860202001","Региональная генерация","Ханты-Мансийский автономный округ"]
["филиал \"Сургутская ГРЭС-2\" ПАО \"Юнипро\"","8602067092","860202001","Региональная генерация","Ханты-Мансийский автономный округ"]
["АО \"Газпром энергосбыт Тюмень\"","8602067215","862450001","Сбытовая компания","Ханты-Мансийский автономный округ"]
["АО \"Энергосбытовая компания \"Восток\"","7705424509","997650001","Сбытовая компания","Ханты-Мансийский автономный округ"]
["АО \"ЮТЭК\"","8601022317","862450001","Сбытовая компания","Ханты-Мансийский автономный округ"]
["АО \"Югорская энергетическая компания децентрализованной зоны\" (АО \"Юграэнерго\")","8601029263","860101001","Сбытовая компания","Ханты-Мансийский автономный округ"]
["ООО \"Городские электрические сети\"",8601070751,860101001,"Сбытовая компания","Ханты-Мансийский автономный округ"]
["ОАО \"ОБОРОНЭНЕРГОСБЫТ\" филиал \"УРАЛЬСКИЙ\"","7704731218","720445001","Сбытовая компания","Ханты-Мансийский автономный округ"]
["ООО \"Газпром трансгаз Югорск\"","8622000931","997250001","Сбытовая компания","Ханты-Мансийский автономный округ"]
["ООО \"МагнитЭнерго\"","7715902899","231001001","Сбытовая компания","Ханты-Мансийский автономный округ"]
["ООО \"Нижневартовская энергосбытовая компания\"","8603109926","860301001","Сбытовая компания","Ханты-Мансийский автономный округ"]
["ПАО \"Фортум\" (Няганская ГРЭС)","7203162698","861002001","Сбытовая компания","Ханты-Мансийский автономный округ"]
["АО \"Аэропорт Сургут\"","8602060523","860201001","Сетевая компания","Ханты-Мансийский автономный округ"]
["АО \"Городские электрические сети\" г.Нижневартовск","8603004190","860301001","Сетевая компания","Ханты-Мансийский автономный округ"]
["АО \"Нижневартовское нефтегазодобывающее предприятие\"","8603089941","860301001","Сетевая компания","Ханты-Мансийский автономный округ"]
["АО \"Россети Тюмень\"","8602060185","997450001","Сетевая компания","Ханты-Мансийский автономный округ"]
["АО \"Элек\"","8602066853","860201001","Сетевая компания","Ханты-Мансийский автономный округ"]
["АО \"ЮРЭСК\"","8601045152","862450001","Сетевая компания","Ханты-Мансийский автономный округ"]
["АО \"ЮТЭК-Региональные сети\"","8601033125","860101001","Сетевая компания","Ханты-Мансийский автономный округ"]
["АО \"Югорская энергетическая компания децентрализованной зоны\" (АО \"Юграэнерго\")","8601029263","860101001","Сетевая компания","Ханты-Мансийский автономный округ"]
["МП \"Ханты-Мансийские городские электрические сети\" МО г. Ханты-Мансийск","8601065832","860101001","Сетевая компания","Ханты-Мансийский автономный округ"]
["МУП \"Сургутские районные электрические сети\" МО Сургутский район","8617017320","861701001","Сетевая компания","Ханты-Мансийский автономный округ"]
["ОАО \"Варьеганэнергонефть\"","8609003059","860901001","Сетевая компания","Ханты-Мансийский автономный округ"]
["ОАО \"Пойковские электрические сети\"","8619013546","861901001","Сетевая компания","Ханты-Мансийский автономный округ"]
["ОАО \"РН-НЯГАНЬНЕФТЕГАЗ\"","8610010727","861001001","Сетевая компания","Ханты-Мансийский автономный округ"]
["ОАО \"Радужнинские городские электрические сети\"","8609004670","860901001","Сетевая компания","Ханты-Мансийский автономный округ"]
["ОАО \"ЮТЭК-Покачи\"","8621005479","862101001","Сетевая компания","Ханты-Мансийский автономный округ"]
["ООО \"Газпром переработка\"","1102054991","780201001","Сетевая компания","Ханты-Мансийский автономный округ"]
["ООО \"Газпром трансгаз Сургут\"","8617002073","997250001","Сетевая компания","Ханты-Мансийский автономный округ"]
["ООО \"Газпром трансгаз Югорск\"","8622000931","997250001","Сетевая компания","Ханты-Мансийский автономный округ"]
["ООО \"Газпром энерго\"","7736186950","773601001","Сетевая компания","Ханты-Мансийский автономный округ"]
["ООО \"Луч-Электро\"","8603097124","860301001","Сетевая компания","Ханты-Мансийский автономный округ"]
["ООО \"Мегионэнергонефть\"","8605016890","860501001","Сетевая компания","Ханты-Мансийский автономный округ"]
["ООО \"МинЭл\"","8614008550","861401001","Сетевая компания","Ханты-Мансийский автономный округ"]
["ООО \"Нижневартовскэнергонефть\"","8603104220","862450001","Сетевая компания","Ханты-Мансийский автономный округ"]
["ООО \"РН - Юганскнефтегаз\"","8604035473","997150001","Сетевая компания","Ханты-Мансийский автономный округ"]
["ООО \"Северремприбор\"","8602248187","860201001","Сетевая компания","Ханты-Мансийский автономный округ"]
["ООО \"Сибтрансэлектро\"","8604010454","860401001","Сетевая компания","Ханты-Мансийский автономный округ"]
["ООО \"Сургутские городские электрические сети\"","8602015464","860201001","Сетевая компания","Ханты-Мансийский автономный округ"]
["ООО «ЭЛЕК»","8602281868","860201001","Сетевая компания","Ханты-Мансийский автономный округ"]
["ПАО \"Сургутнефтегаз\"","8602060555","997250001","Сетевая компания","Ханты-Мансийский автономный округ"]
["ПАО \"ФСК ЕЭС\"","4716016979","997450001","Сетевая компания","Ханты-Мансийский автономный округ"]
["филиал ОАО \"РЖД\" - Свердловская ж.д. (Сургутская дистанция)","7708503727","860245012","Сетевая компания","Ханты-Мансийский автономный округ"]
["филиал ОАО \"РЖД\"- Свердловская ж.д. (Тюменская дистанция)","7708503727","720445015","Сетевая компания","Ханты-Мансийский автономный округ"]
["АО \"Югорская энергетическая компания децентрализованной зоны\" (АО \"Юграэнерго\")","8601029263","860101001","Станция - поставщик ЭЭ","Ханты-Мансийский автономный округ"]
["АО Нижневартовская ГРЭС","8620018330","785150001","Станция - поставщик ЭЭ","Ханты-Мансийский автономный округ"]
["ЗАО \"Энерго Сервис\"","7022014560","702201001","Станция - поставщик ЭЭ","Ханты-Мансийский автономный округ"]
["ООО \"Газпром трансгаз Югорск\"","8622000931","997250001","Станция - поставщик ЭЭ","Ханты-Мансийский автономный округ"]
["ПАО \"Фортум\" (Няганская ГРЭС)","7203162698","861002001","Станция - поставщик ЭЭ","Ханты-Мансийский автономный округ"]
["Филиал ПАО \"ОГК-2\"- Сургутская ГРЭС-1","2607018122","860202001","Станция - поставщик ЭЭ","Ханты-Мансийский автономный округ"]
["филиал \"Сургутская ГРЭС-2\" ПАО \"Юнипро\"","8602067092","860202001","Станция - поставщик ЭЭ","Ханты-Мансийский автономный округ"]
["ООО \"Газпром трансгаз Югорск\"","8622000931","997250001","ЭСО","Ханты-Мансийский автономный округ"]
["АО \"Аэропорт Сургут\"","8602060523","860201001","Региональная генерация","Ямало-Ненецкий автономный округ"]
["АО \"Газпром энергосбыт Тюмень\"","8602067215","862450001","Региональная генерация","Ямало-Ненецкий автономный округ"]
["АО \"Мессояханефтегаз\"","8910002621","546050001","Региональная генерация","Ямало-Ненецкий автономный округ"]
["АО \"Салехардэнерго\"","8901030855","890101001","Региональная генерация","Ямало-Ненецкий автономный округ"]
["АО \"Харп-Энерго-Газ\"","8901016850","890801001","Региональная генерация","Ямало-Ненецкий автономный округ"]
["АО \"Ямалкоммунэнерго\"","8901025421","890101001","Региональная генерация","Ямало-Ненецкий автономный округ"]
["АО \"Ямалкоммунэнерго\" филиал в Надымском районе","8901025421","890343001","Региональная генерация","Ямало-Ненецкий автономный округ"]
["АО \"Ямалкоммунэнерго\" филиал в Приуральском районе","8901025421","890801001","Региональная генерация","Ямало-Ненецкий автономный округ"]
["АО \"Ямалкоммунэнерго\" филиал в Тазовском районе","8901025421","891000354","Региональная генерация","Ямало-Ненецкий автономный округ"]
["АО \"Ямалкоммунэнерго\" филиал в Шурышкарском районе","8901025421","890701001","Региональная генерация","Ямало-Ненецкий автономный округ"]
["АО \"Ямалкоммунэнерго\" филиал в Ямальском районе","8901025421","890943001","Региональная генерация","Ямало-Ненецкий автономный округ"]
["Государственное бюджетное учреждение ЯНАО \"Ямалтур\"","8901019080","890101001","Региональная генерация","Ямало-Ненецкий автономный округ"]
["МПП ЖКХ МО г. Лабытнанги \"Ямал\"","8902009197","890201001","Региональная генерация","Ямало-Ненецкий автономный округ"]
["МУП \"Управление энергоснабжения и инженерных сетей\"","8903028065","890301001","Региональная генерация","Ямало-Ненецкий автономный округ"]
["Ново-Уренгойское ЛПУ МГ ООО \"Газпром трансгаз Сургут\"","8617002073","890403001","Региональная генерация","Ямало-Ненецкий автономный округ"]
["ОАО \"Ростелеком\" Ханты-Мансийский филиал макрорегионального филиала \"Урал\"","7707049388","720332001","Региональная генерация","Ямало-Ненецкий автономный округ"]
["ОАО \"Ямал СПГ\"","7709602713","891450001","Региональная генерация","Ямало-Ненецкий автономный округ"]
["ООО \"Газпром добыча Уренгой\"","8904034784","997250001","Региональная генерация","Ямало-Ненецкий автономный округ"]
["ООО \"Газпром добыча Ямбург\" Филиал \"Ямбурское районное энергетическое управление\"","8904034777","890401001","Региональная генерация","Ямало-Ненецкий автономный округ"]
["ООО \"Газпромтранс\" (Ямальский филиал)","7728262893","890243001","Региональная генерация","Ямало-Ненецкий автономный округ"]
["ООО \"Геолог-Инвест\"","8901024146","890101001","Региональная генерация","Ямало-Ненецкий автономный округ"]
["ООО \"ЛУКОЙЛ-ЭНЕРГОСЕТИ\"","5260230051","770901001","Региональная генерация","Ямало-Ненецкий автономный округ"]
["ООО \"Ноябрьская ПГЭ\"","8905037499","890501001","Региональная генерация","Ямало-Ненецкий автономный округ"]
["ООО \"Ратта\"","8912002352","891201001","Региональная генерация","Ямало-Ненецкий автономный округ"]
["ООО \"Самбургские электрические сети\"","8911024755","891101001","Региональная генерация","Ямало-Ненецкий автономный округ"]
["ООО \"Северная ПЛЭС\"","7716605105","890345001","Региональная генерация","Ямало-Ненецкий автономный округ"]
["ООО \"Фотон\"","8910002438","890401001","Региональная генерация","Ямало-Ненецкий автономный округ"]
["ООО \"Энергетическая компания \"Урал Промышленный - Урал Полярный\"","8908002631","890801001","Региональная генерация","Ямало-Ненецкий автономный округ"]
["ООО \"Ямал-Энерго\"","8912002546","891201001","Региональная генерация","Ямало-Ненецкий автономный округ"]
["ООО ЭК \"Тепло-Водо-Электро-Сервис\"","8912002592","891201001","Региональная генерация","Ямало-Ненецкий автономный округ"]
["Общество с ограниченой ответственностью \"Газпромнефть-Ямал\"","8901001822","997250001","Региональная генерация","Ямало-Ненецкий автономный округ"]
["ПАО \"Передвижная энергетика\"  филиал ПЭС \"Уренгой\"","7719019846","890402001","Региональная генерация","Ямало-Ненецкий автономный округ"]
["ПАО \"Передвижная энергетика\" филиал \"ПЭС Лабытнанги\"","7719019846","890202001","Региональная генерация","Ямало-Ненецкий автономный округ"]
["Управление \"Ямалэнергогаз\" ООО \"Газпром добыча Надым\"","8903019871","890303004","Региональная генерация","Ямало-Ненецкий автономный округ"]
["Филиал \"Уренгойская ГРЭС\" АО \"Интер РАО - Электрогенерация\"","7704784450","890443001","Региональная генерация","Ямало-Ненецкий автономный округ"]
["филиал - Надымское нефтегазодобывающее управление ООО \"Газпром Добыча Надым\"","8903019871","890303005","Региональная генерация","Ямало-Ненецкий автономный округ"]
["АО \"Газпром энергосбыт Тюмень\"","8602067215","862450001","Сбытовая компания","Ямало-Ненецкий автономный округ"]
["АО \"Мессояханефтегаз\"","8910002621","546050001","Сбытовая компания","Ямало-Ненецкий автономный округ"]
["АО \"Оборонэнергосбыт\"","7704731218","773043001","Сбытовая компания","Ямало-Ненецкий автономный округ"]
["АО \"Салехардэнерго\"","8901030855","890101001","Сбытовая компания","Ямало-Ненецкий автономный округ"]
["АО \"Харп-Энерго-Газ\"","8901016850","890801001","Сбытовая компания","Ямало-Ненецкий автономный округ"]
["АО \"Энергосбытовая компания \"Восток\"","7705424509","997650001","Сбытовая компания","Ямало-Ненецкий автономный округ"]
["АО \"Ямалкоммунэнерго\"","8901025421","890101001","Сбытовая компания","Ямало-Ненецкий автономный округ"]
["АО \"Ямалкоммунэнерго\" филиал в Надымском районе","8901025421","890343001","Сбытовая компания","Ямало-Ненецкий автономный округ"]
["АО \"Ямалкоммунэнерго\" филиал в Приуральском районе","8901025421","890801001","Сбытовая компания","Ямало-Ненецкий автономный округ"]
["АО \"Ямалкоммунэнерго\" филиал в Тазовском районе","8901025421","891000354","Сбытовая компания","Ямало-Ненецкий автономный округ"]
["АО \"Ямалкоммунэнерго\" филиал в Шурышкарском районе","8901025421","890701001","Сбытовая компания","Ямало-Ненецкий автономный округ"]
["АО \"Ямалкоммунэнерго\" филиал в Ямальском районе","8901025421","890943001","Сбытовая компания","Ямало-Ненецкий автономный округ"]
["Государственное бюджетное учреждение ЯНАО \"Ямалтур\"","8901019080","890101001","Сбытовая компания","Ямало-Ненецкий автономный округ"]
["МПП ЖКХ МО г. Лабытнанги \"Ямал\"","8902009197","890201001","Сбытовая компания","Ямало-Ненецкий автономный округ"]
["МУП \"Управление энергоснабжения и инженерных сетей\"","8903028065","890301001","Сбытовая компания","Ямало-Ненецкий автономный округ"]
["Ново-Уренгойское ЛПУ МГ ООО \"Газпром трансгаз Сургут\"","8617002073","890403001","Сбытовая компания","Ямало-Ненецкий автономный округ"]
["ОАО \"ОБОРОНЭНЕРГОСБЫТ\" филиал \"УРАЛЬСКИЙ\"","7704731218","720445001","Сбытовая компания","Ямало-Ненецкий автономный округ"]
["ОАО \"Ростелеком\" Ханты-Мансийский филиал макрорегионального филиала \"Урал\"","7707049388","720332001","Сбытовая компания","Ямало-Ненецкий автономный округ"]
["ОАО \"Северная энергетическая компания\"","8911019579","890501001","Сбытовая компания","Ямало-Ненецкий автономный округ"]
["ОАО \"Ямал СПГ\"","7709602713","891450001","Сбытовая компания","Ямало-Ненецкий автономный округ"]
["ООО \"Газпром добыча Ямбург\" Филиал \"Ямбурское районное энергетическое управление\"","8904034777","890401001","Сбытовая компания","Ямало-Ненецкий автономный округ"]
["ООО \"Газпромтранс\" (Ямальский филиал)","7728262893","890243001","Сбытовая компания","Ямало-Ненецкий автономный округ"]
["ООО \"Геолог-Инвест\"","8901024146","890101001","Сбытовая компания","Ямало-Ненецкий автономный округ"]
["ООО \"ЛУКОЙЛ-ЭНЕРГОСЕТИ\"","5260230051","770901001","Сбытовая компания","Ямало-Ненецкий автономный округ"]
["ООО \"Ратта\"","8912002352","891201001","Сбытовая компания","Ямало-Ненецкий автономный округ"]
["ООО \"Самбургские электрические сети\"","8911024755","891101001","Сбытовая компания","Ямало-Ненецкий автономный округ"]
["ООО \"Фотон\"","8910002438","890401001","Сбытовая компания","Ямало-Ненецкий автономный округ"]
["ООО \"Энергетическая компания \"Урал Промышленный - Урал Полярный\"","8908002631","890801001","Сбытовая компания","Ямало-Ненецкий автономный округ"]
["ООО \"Ямал-Энерго\"","8912002546","891201001","Сбытовая компания","Ямало-Ненецкий автономный округ"]
["ООО ЭК \"Тепло-Водо-Электро-Сервис\"","8912002592","891201001","Сбытовая компания","Ямало-Ненецкий автономный округ"]
["ПАО \"Передвижная энергетика\" филиал \"ПЭС Лабытнанги\"","7719019846","890202001","Сбытовая компания","Ямало-Ненецкий автономный округ"]
["Управление \"Ямалэнергогаз\" ООО \"Газпром добыча Надым\"","8903019871","890303004","Сбытовая компания","Ямало-Ненецкий автономный округ"]
["филиал - Надымское нефтегазодобывающее управление ООО \"Газпром Добыча Надым\"","8903019871","890303005","Сбытовая компания","Ямало-Ненецкий автономный округ"]
["АО \"Аэропорт Сургут\"","8602060523","860201001","Сетевая компания","Ямало-Ненецкий автономный округ"]
["АО \"Вынгапуровский тепловодоканал\"","8905045443","890501001","Сетевая компания","Ямало-Ненецкий автономный округ"]
["АО \"Губкинские городские электрические сети\"","8911015126","891101001","Сетевая компания","Ямало-Ненецкий автономный округ"]
["АО \"Мессояханефтегаз\"","8910002621","546050001","Сетевая компания","Ямало-Ненецкий автономный округ"]
["АО \"Муравленковское предприятие городских электрических сетей\"","8905063058","890501001","Сетевая компания","Ямало-Ненецкий автономный округ"]
["АО \"Надымское авиапредприятие\"","8903025610","890301001","Сетевая компания","Ямало-Ненецкий автономный округ"]
["АО \"Новоуренгойский ОАО\"","8904045602","890401001","Сетевая компания","Ямало-Ненецкий автономный округ"]
["АО \"НордЭнерджиСистемс\"","8903032551","720301001","Сетевая компания","Ямало-Ненецкий автономный округ"]
["АО \"РСК Ямала\"","8901008899","890101001","Сетевая компания","Ямало-Ненецкий автономный округ"]
["АО \"Распределительная сетевая компания Ямала\"","8901008899","890143001","Сетевая компания","Ямало-Ненецкий автономный округ"]
["АО \"Россети Тюмень\"","8602060185","997450001","Сетевая компания","Ямало-Ненецкий автономный округ"]
["АО \"Салехардэнерго\"","8901030855","890101001","Сетевая компания","Ямало-Ненецкий автономный округ"]
["АО \"Уренгойская электросетевая компания\"",8904092592,"890401001","Сетевая компания","Ямало-Ненецкий автономный округ"]
["АО \"Харп-Энерго-Газ\"","8901016850","890801001","Сетевая компания","Ямало-Ненецкий автономный округ"]
["АО \"Энерго-Газ-Ноябрьск\"","8905033649","890501001","Сетевая компания","Ямало-Ненецкий автономный округ"]
["АО \"Ямалкоммунэнерго\"","8901025421","890101001","Сетевая компания","Ямало-Ненецкий автономный округ"]
["АО \"Ямалкоммунэнерго\" филиал в Надымском районе","8901025421","890343001","Сетевая компания","Ямало-Ненецкий автономный округ"]
["АО \"Ямалкоммунэнерго\" филиал в Приуральском районе","8901025421","890801001","Сетевая компания","Ямало-Ненецкий автономный округ"]
["АО \"Ямалкоммунэнерго\" филиал в Тазовском районе","8901025421","891000354","Сетевая компания","Ямало-Ненецкий автономный округ"]
["АО \"Ямалкоммунэнерго\" филиал в Шурышкарском районе","8901025421","890701001","Сетевая компания","Ямало-Ненецкий автономный округ"]
["АО \"Ямалкоммунэнерго\" филиал в Ямальском районе","8901025421","890943001","Сетевая компания","Ямало-Ненецкий автономный округ"]
["АО \"Ямальская железнодорожная компания\"","8904042048","890401001","Сетевая компания","Ямало-Ненецкий автономный округ"]
["Государственное бюджетное учреждение ЯНАО \"Ямалтур\"","8901019080","890101001","Сетевая компания","Ямало-Ненецкий автономный округ"]
["МУП \"Надымские городские электрические сети\"","8903030850","890301001","Сетевая компания","Ямало-Ненецкий автономный округ"]
["МУП \"Управление энергоснабжения и инженерных сетей\"","8903028065","890301001","Сетевая компания","Ямало-Ненецкий автономный округ"]
["Надымский филиал ООО \"Газпром энерго\"","7736186950","890302001","Сетевая компания","Ямало-Ненецкий автономный округ"]
["Ново-Уренгойское ЛПУ МГ ООО \"Газпром трансгаз Сургут\"","8617002073","890403001","Сетевая компания","Ямало-Ненецкий автономный округ"]
["Ноябрьский филиал АО \"Аэропорт Сургут\"","8602060523","890543001","Сетевая компания","Ямало-Ненецкий автономный округ"]
["ОАО \"РЖД\" Свердловская дирекция по энергообеспечению","7708503727","665945012","Сетевая компания","Ямало-Ненецкий автономный округ"]
["ОАО \"Ямал СПГ\"","7709602713","891450001","Сетевая компания","Ямало-Ненецкий автономный округ"]
["ООО \"Газпром трансгаз Сургут\"","8617002073","997250001","Сетевая компания","Ямало-Ненецкий автономный округ"]
["ООО \"Газпромтранс\" (Ямальский филиал)","7728262893","890243001","Сетевая компания","Ямало-Ненецкий автономный округ"]
["ООО \"Геолог-Инвест\"","8901024146","890101001","Сетевая компания","Ямало-Ненецкий автономный округ"]
["ООО \"ЛУКОЙЛ-ЭНЕРГОСЕТИ\"","5260230051","770901001","Сетевая компания","Ямало-Ненецкий автономный округ"]
["ООО \"Газпромнефть Энергосистемы\"","8905032490","891450001","Сетевая компания","Ямало-Ненецкий автономный округ"]
["ООО \"Самбургские электрические сети\"","8911024755","891101001","Сетевая компания","Ямало-Ненецкий автономный округ"]
["ООО \"СеверСетьРазвитие\"","8901021265","667101001","Сетевая компания","Ямало-Ненецкий автономный округ"]
["ООО \"Фотон\"","8910002438","890401001","Сетевая компания","Ямало-Ненецкий автономный округ"]
["ООО \"Ямал-Энерго\"","8912002546","891201001","Сетевая компания","Ямало-Ненецкий автономный округ"]
["ООО ЭК \"Тепло-Водо-Электро-Сервис\"","8912002592","891201001","Сетевая компания","Ямало-Ненецкий автономный округ"]
["Общество с ограниченой ответственностью \"Газпромнефть-Ямал\"","8901001822","997250001","Сетевая компания","Ямало-Ненецкий автономный округ"]
["ПАО \"Передвижная энергетика\" филиал \"ПЭС Лабытнанги\"","7719019846","890202001","Сетевая компания","Ямало-Ненецкий автономный округ"]
["Северная дирекция по энергообеспечению - структурное подразделение Трансэнерго - филиала ОАО \"Российские железные дороги\"","7708503727","760445013","Сетевая компания","Ямало-Ненецкий автономный округ"]
["Управление \"Ямалэнергогаз\" ООО \"Газпром добыча Надым\"","8903019871","890303004","Сетевая компания","Ямало-Ненецкий автономный округ"]
["Уренгойский филиал ООО \"Газпром энерго\"","7736186950","890402001","Сетевая компания","Ямало-Ненецкий автономный округ"]
["филиал - Надымское нефтегазодобывающее управление ООО \"Газпром Добыча Надым\"","8903019871","890303005","Сетевая компания","Ямало-Ненецкий автономный округ"]
["АО \"Аэропорт Сургут\"","8602060523","860201001","Станция - поставщик ЭЭ","Ямало-Ненецкий автономный округ"]
["АО \"Газпром энергосбыт Тюмень\"","8602067215","862450001","Станция - поставщик ЭЭ","Ямало-Ненецкий автономный округ"]
["АО \"Мессояханефтегаз\"","8910002621","546050001","Станция - поставщик ЭЭ","Ямало-Ненецкий автономный округ"]
["АО \"Салехардэнерго\"","8901030855","890101001","Станция - поставщик ЭЭ","Ямало-Ненецкий автономный округ"]
["АО \"Харп-Энерго-Газ\"","8901016850","890801001","Станция - поставщик ЭЭ","Ямало-Ненецкий автономный округ"]
["АО \"Ямалкоммунэнерго\"","8901025421","890101001","Станция - поставщик ЭЭ","Ямало-Ненецкий автономный округ"]
["АО \"Ямалкоммунэнерго\" филиал в Надымском районе","8901025421","890343001","Станция - поставщик ЭЭ","Ямало-Ненецкий автономный округ"]
["АО \"Ямалкоммунэнерго\" филиал в Приуральском районе","8901025421","890801001","Станция - поставщик ЭЭ","Ямало-Ненецкий автономный округ"]
["АО \"Ямалкоммунэнерго\" филиал в Тазовском районе","8901025421","891000354","Станция - поставщик ЭЭ","Ямало-Ненецкий автономный округ"]
["АО \"Ямалкоммунэнерго\" филиал в Шурышкарском районе","8901025421","890701001","Станция - поставщик ЭЭ","Ямало-Ненецкий автономный округ"]
["АО \"Ямалкоммунэнерго\" филиал в Ямальском районе","8901025421","890943001","Станция - поставщик ЭЭ","Ямало-Ненецкий автономный округ"]
["Государственное бюджетное учреждение ЯНАО \"Ямалтур\"","8901019080","890101001","Станция - поставщик ЭЭ","Ямало-Ненецкий автономный округ"]
["МПП ЖКХ МО г. Лабытнанги \"Ямал\"","8902009197","890201001","Станция - поставщик ЭЭ","Ямало-Ненецкий автономный округ"]
["МУП \"Управление энергоснабжения и инженерных сетей\"","8903028065","890301001","Станция - поставщик ЭЭ","Ямало-Ненецкий автономный округ"]
["Ново-Уренгойское ЛПУ МГ ООО \"Газпром трансгаз Сургут\"","8617002073","890403001","Станция - поставщик ЭЭ","Ямало-Ненецкий автономный округ"]
["ОАО \"Ростелеком\" Ханты-Мансийский филиал макрорегионального филиала \"Урал\"","7707049388","720332001","Станция - поставщик ЭЭ","Ямало-Ненецкий автономный округ"]
["ОАО \"Ямал СПГ\"","7709602713","891450001","Станция - поставщик ЭЭ","Ямало-Ненецкий автономный округ"]
["ООО \"Газпром добыча Уренгой\"","8904034784","997250001","Станция - поставщик ЭЭ","Ямало-Ненецкий автономный округ"]
["ООО \"Газпром добыча Ямбург\" Филиал \"Ямбурское районное энергетическое управление\"","8904034777","890401001","Станция - поставщик ЭЭ","Ямало-Ненецкий автономный округ"]
["ООО \"Газпромтранс\" (Ямальский филиал)","7728262893","890243001","Станция - поставщик ЭЭ","Ямало-Ненецкий автономный округ"]
["ООО \"Геолог-Инвест\"","8901024146","890101001","Станция - поставщик ЭЭ","Ямало-Ненецкий автономный округ"]
["ООО \"ЛУКОЙЛ-ЭНЕРГОСЕТИ\"","5260230051","770901001","Станция - поставщик ЭЭ","Ямало-Ненецкий автономный округ"]
["ООО \"Ноябрьская ПГЭ\"","8905037499","890501001","Станция - поставщик ЭЭ","Ямало-Ненецкий автономный округ"]
["ООО \"Ратта\"","8912002352","891201001","Станция - поставщик ЭЭ","Ямало-Ненецкий автономный округ"]
["ООО \"Самбургские электрические сети\"","8911024755","891101001","Станция - поставщик ЭЭ","Ямало-Ненецкий автономный округ"]
["ООО \"Северная ПЛЭС\"","7716605105","890345001","Станция - поставщик ЭЭ","Ямало-Ненецкий автономный округ"]
["ООО \"Фотон\"","8910002438","890401001","Станция - поставщик ЭЭ","Ямало-Ненецкий автономный округ"]
["ООО \"Энергетическая компания \"Урал Промышленный - Урал Полярный\"","8908002631","890801001","Станция - поставщик ЭЭ","Ямало-Ненецкий автономный округ"]
["ООО \"Ямал-Энерго\"","8912002546","891201001","Станция - поставщик ЭЭ","Ямало-Ненецкий автономный округ"]
["ООО ЭК \"Тепло-Водо-Электро-Сервис\"","8912002592","891201001","Станция - поставщик ЭЭ","Ямало-Ненецкий автономный округ"]
["Общество с ограниченой ответственностью \"Газпромнефть-Ямал\"","8901001822","997250001","Станция - поставщик ЭЭ","Ямало-Ненецкий автономный округ"]
["ПАО \"Передвижная энергетика\"  филиал ПЭС \"Уренгой\"","7719019846","890402001","Станция - поставщик ЭЭ","Ямало-Ненецкий автономный округ"]
["ПАО \"Передвижная энергетика\" филиал \"ПЭС Лабытнанги\"","7719019846","890202001","Станция - поставщик ЭЭ","Ямало-Ненецкий автономный округ"]
["Управление \"Ямалэнергогаз\" ООО \"Газпром добыча Надым\"","8903019871","890303004","Станция - поставщик ЭЭ","Ямало-Ненецкий автономный округ"]
["Филиал \"Уренгойская ГРЭС\" АО \"Интер РАО - Электрогенерация\"","7704784450","890443001","Станция - поставщик ЭЭ","Ямало-Ненецкий автономный округ"]
["филиал - Надымское нефтегазодобывающее управление ООО \"Газпром Добыча Надым\"","8903019871","890303005","Станция - поставщик ЭЭ","Ямало-Ненецкий автономный округ"]
["АО \"Мессояханефтегаз\"","8910002621","546050001","ЭСО","Ямало-Ненецкий автономный округ"]
["АО \"Салехардэнерго\"","8901030855","890101001","ЭСО","Ямало-Ненецкий автономный округ"]
["АО \"Харп-Энерго-Газ\"","8901016850","890801001","ЭСО","Ямало-Ненецкий автономный округ"]
["АО \"Ямалкоммунэнерго\"","8901025421","890101001","ЭСО","Ямало-Ненецкий автономный округ"]
["АО \"Ямалкоммунэнерго\" филиал в Приуральском районе","8901025421","890801001","ЭСО","Ямало-Ненецкий автономный округ"]
["АО \"Ямалкоммунэнерго\" филиал в Тазовском районе","8901025421","891000354","ЭСО","Ямало-Ненецкий автономный округ"]
["АО \"Ямалкоммунэнерго\" филиал в Ямальском районе","8901025421","890943001","ЭСО","Ямало-Ненецкий автономный округ"]
["Государственное бюджетное учреждение ЯНАО \"Ямалтур\"","8901019080","890101001","ЭСО","Ямало-Ненецкий автономный округ"]
["МУП \"Управление энергоснабжения и инженерных сетей\"","8903028065","890301001","ЭСО","Ямало-Ненецкий автономный округ"]
["Ново-Уренгойское ЛПУ МГ ООО \"Газпром трансгаз Сургут\"","8617002073","890403001","ЭСО","Ямало-Ненецкий автономный округ"]
["ОАО \"Ямал СПГ\"","7709602713","891450001","ЭСО","Ямало-Ненецкий автономный округ"]
["ООО \"Газпромтранс\" (Ямальский филиал)","7728262893","890243001","ЭСО","Ямало-Ненецкий автономный округ"]
["ООО \"ЛУКОЙЛ-ЭНЕРГОСЕТИ\"","5260230051","770901001","ЭСО","Ямало-Ненецкий автономный округ"]
["ООО \"Самбургские электрические сети\"","8911024755","891101001","ЭСО","Ямало-Ненецкий автономный округ"]
["ООО \"Фотон\"","8910002438","890401001","ЭСО","Ямало-Ненецкий автономный округ"]
["ООО \"Ямал-Энерго\"","8912002546","891201001","ЭСО","Ямало-Ненецкий автономный округ"]
["ООО ЭК \"Тепло-Водо-Электро-Сервис\"","8912002592","891201001","ЭСО","Ямало-Ненецкий автономный округ"]
["ПАО \"Передвижная энергетика\" филиал \"ПЭС Лабытнанги\"","7719019846","890202001","ЭСО","Ямало-Ненецкий автономный округ"]
["Управление \"Ямалэнергогаз\" ООО \"Газпром добыча Надым\"","8903019871","890303004","ЭСО","Ямало-Ненецкий автономный округ"]
["филиал - Надымское нефтегазодобывающее управление ООО \"Газпром Добыча Надым\"","8903019871","890303005","ЭСО","Ямало-Ненецкий автономный округ"]
[]
[]
[]
["tso_name",null,null,"title_tso_name",null,null,null,"sbwt_name",null,null,null,"title_sbwt_name",null,null,null,"sbwt_name_p",null,null,null,"post_name",null,null,null,"post_without_enes_name",null,null,null,"title_post_name",null,null,null,"title_post_without_enes_name",null,null,null,"tso_name_p",null,null,null,"potr_name",null,null,null,"sbwt_post_name",null,null,null,"sbwt_name_o",null,null,null,"sbwt_name_oep"]
["ОРГАНИЗАЦИЯ","ИНН","КПП","ОРГАНИЗАЦИЯ","ИНН","КПП",null,"ОРГАНИЗАЦИЯ","ИНН","КПП",null,"ОРГАНИЗАЦИЯ","ИНН","КПП",null,"ОРГАНИЗАЦИЯ","ИНН","КПП",null,"ОРГАНИЗАЦИЯ","ИНН","КПП",null,"ОРГАНИЗАЦИЯ","ИНН","КПП",null,"ОРГАНИЗАЦИЯ","ИНН","КПП",null,"ОРГАНИЗАЦИЯ","ИНН","КПП",null,"ОРГАНИЗАЦИЯ","ИНН","КПП",null,"ОРГАНИЗАЦИЯ","ИНН","КПП",null,"ОРГАНИЗАЦИЯ","ИНН","КПП",null,"ОРГАНИЗАЦИЯ","ИНН","КПП",null,"ОРГАНИЗАЦИЯ","ИНН","КПП"]
["АО \"Оборонэнерго\" - филиал \"Уральский\"","7704726225","667243001","АО \"Оборонэнерго\" - филиал \"Уральский\"","7704726225","667243001",null,"АО \"Газпром энергосбыт Тюмень\"","8602067215","862450001",null,"АО \"Газпром энергосбыт Тюмень\"","8602067215","862450001",null,"АО \"Газпром энергосбыт Тюмень\"","8602067215","862450001",null,"АО \"Аэропорт Сургут\"","8602060523","860201001",null,"АО \"Аэропорт Сургут\"","8602060523","860201001",null,"АО \"Аэропорт Сургут\"","8602060523","860201001",null,"АО \"Аэропорт Сургут\"","8602060523","860201001",null,"АО \"Оборонэнерго\" - филиал \"Уральский\"","7704726225","667243001",null,"Конечные потребители (кроме ТСО)",null,null,null,"АО \"Аэропорт Сургут\"","8602060523","860201001",null,"АО \"Газпром энергосбыт Тюмень\"","8602067215","862450001",null,"АО \"Газпром энергосбыт Тюмень\"","8602067215","862450001"]
["АО \"Юграавиа\"","8601053210","860101001","АО \"Юграавиа\"","8601053210","860101001",null,"АО \"Газпром энергосбыт\"","7705750968","772901001",null,"АО \"Газпром энергосбыт\"","7705750968","772901001",null,"АО \"Газпром энергосбыт\"","7705750968","772901001",null,"АО \"Аэропорт Сургут\"","8602060523","860201001",null,"АО \"Аэропорт Сургут\"","8602060523","860201001",null,"АО \"Аэропорт Сургут\"","8602060523","860201001",null,"АО \"Аэропорт Сургут\"","8602060523","860201001",null,"АО \"Юграавиа\"","8601053210","860101001",null,null,null,null,null,"АО \"Аэропорт Сургут\"","8602060523","860201001",null,"АО \"Газпром энергосбыт\"","7705750968","772901001",null,"АО \"Газпром энергосбыт\"","7705750968","772901001"]
["АО \"Аэропорт Белоярский\"","8611002077","861101001","АО \"Аэропорт Белоярский\"","8611002077","861101001",null,"АО \"ЕЭСнК\"","7727232575","997650001",null,"АО \"ЕЭСнК\"","7727232575","997650001",null,"АО \"ЕЭСнК\"","7727232575","997650001",null,"АО \"Газпром энергосбыт Тюмень\"","8602067215","862450001",null,"АО \"Газпром энергосбыт Тюмень\"","8602067215","862450001",null,"АО \"Газпром энергосбыт Тюмень\"","8602067215","862450001",null,"АО \"Газпром энергосбыт Тюмень\"","8602067215","862450001",null,"АО \"Аэропорт Белоярский\"","8611002077","861101001",null,null,null,null,null,"АО \"Газпром энергосбыт Тюмень\"","8602067215","862450001",null,"АО \"ЕЭСнК\"","7727232575","997650001",null,"АО \"ЕЭСнК\"","7727232575","997650001"]
["АО \"Аэропорт Рощино\"","7204660086","720301001","АО \"Аэропорт Рощино\"","7204660086","720301001",null,"АО \"Мессояханефтегаз\"","8910002621","546050001",null,"АО \"Мессояханефтегаз\"","8910002621","546050001",null,"АО \"Мессояханефтегаз\"","8910002621","546050001",null,"АО \"Газпром энергосбыт\"","7705750968","772901001",null,"АО \"Газпром энергосбыт\"","7705750968","772901001",null,"АО \"Газпром энергосбыт\"","7705750968","772901001",null,"АО \"Газпром энергосбыт\"","7705750968","772901001",null,"АО \"Аэропорт Рощино\"","7204660086","720301001",null,null,null,null,null,"АО \"Газпром энергосбыт\"","7705750968","772901001",null,"АО \"Мессояханефтегаз\"","8910002621","546050001",null,"АО \"Мессояханефтегаз\"","8910002621","546050001"]
["АО \"Аэропорт Сургут\"","8602060523","860201001","АО \"Аэропорт Сургут\"","8602060523","860201001",null,"АО \"Мессояханефтегаз\"","8910002621","546050001",null,"АО \"Мессояханефтегаз\"","8910002621","546050001",null,"АО \"Мессояханефтегаз\"","8910002621","546050001",null,"АО \"ИНТЕР РАО - Электрогенерация\"","7704784450","862450001",null,"АО \"ИНТЕР РАО - Электрогенерация\"","7704784450","862450001",null,"АО \"ИНТЕР РАО - Электрогенерация\"","7704784450","862450001",null,"АО \"ИНТЕР РАО - Электрогенерация\"","7704784450","862450001",null,"АО \"Аэропорт Сургут\"","8602060523","860201001",null,null,null,null,null,"АО \"ЕЭСнК\"","7727232575","997650001",null,"АО \"Мессояханефтегаз\"","8910002621","546050001",null,"АО \"Мессояханефтегаз\"","8910002621","546050001"]
["АО \"Аэропорт Урай\"","8606010379","860601001","АО \"Аэропорт Урай\"","8606010379","860601001",null,"АО \"Мосэнергосбыт\"","7736520080","997650001",null,"АО \"Мосэнергосбыт\"","7736520080","997650001",null,"АО \"Мосэнергосбыт\"","7736520080","997650001",null,"АО \"ИНТЕР РАО - Электрогенерация\"","7704784450","862450001",null,"АО \"ИНТЕР РАО - Электрогенерация\"","7704784450","862450001",null,"АО \"ИНТЕР РАО - Электрогенерация\"","7704784450","862450001",null,"АО \"ИНТЕР РАО - Электрогенерация\"","7704784450","862450001",null,"АО \"Аэропорт Сургут\"","8602060523","860201001",null,null,null,null,null,"АО \"ИНТЕР РАО - Электрогенерация\"","7704784450","862450001",null,"АО \"Мосэнергосбыт\"","7736520080","997650001",null,"АО \"Мосэнергосбыт\"","7736520080","997650001"]
["АО \"Вынгапуровский тепловодоканал\"","8905045443","890501001","АО \"Вынгапуровский тепловодоканал\"","8905045443","890501001",null,"АО \"Новосибирскэнергосбыт\"","5407025576","997650001",null,"АО \"Новосибирскэнергосбыт\"","5407025576","997650001",null,"АО \"Новосибирскэнергосбыт\"","5407025576","997650001",null,"АО \"Мессояханефтегаз\"","8910002621","546050001",null,"АО \"Мессояханефтегаз\"","8910002621","546050001",null,"АО \"Мессояханефтегаз\"","8910002621","546050001",null,"АО \"Мессояханефтегаз\"","8910002621","546050001",null,"АО \"Аэропорт Сургут\"","8602060523","860201001",null,null,null,null,null,"АО \"ИНТЕР РАО - Электрогенерация\"","7704784450","862450001",null,"АО \"Новосибирскэнергосбыт\"","5407025576","997650001",null,"АО \"Новосибирскэнергосбыт\"","5407025576","997650001"]
["АО \"Городские электрические сети\" г.Нижневартовск","8603004190","860301001","АО \"Городские электрические сети\" г.Нижневартовск","8603004190","860301001",null,"АО \"Оборонэнергосбыт\"","7704731218","773043001",null,"АО \"Оборонэнергосбыт\"","7704731218","773043001",null,"АО \"Оборонэнергосбыт\"","7704731218","773043001",null,"АО \"Мессояханефтегаз\"","8910002621","546050001",null,"АО \"Мессояханефтегаз\"","8910002621","546050001",null,"АО \"Мессояханефтегаз\"","8910002621","546050001",null,"АО \"Мессояханефтегаз\"","8910002621","546050001",null,"АО \"Аэропорт Урай\"","8606010379","860601001",null,null,null,null,null,"АО \"Мессояханефтегаз\"","8910002621","546050001",null,"АО \"Оборонэнергосбыт\"","7704731218","773043001",null,"АО \"Оборонэнергосбыт\"","7704731218","773043001"]
["АО \"Губкинские городские электрические сети\"","8911015126","891101001","АО \"Губкинские городские электрические сети\"","8911015126","891101001",null,"АО \"Салехардэнерго\"","8901030855","890101001",null,"АО \"Салехардэнерго\"","8901030855","890101001",null,"АО \"Салехардэнерго\"","8901030855","890101001",null,"АО \"Салехардэнерго\"","8901030855","890101001",null,"АО \"Салехардэнерго\"","8901030855","890101001",null,"АО \"Салехардэнерго\"","8901030855","890101001",null,"АО \"Салехардэнерго\"","8901030855","890101001",null,"АО \"Вынгапуровский тепловодоканал\"","8905045443","890501001",null,null,null,null,null,"АО \"Мессояханефтегаз\"","8910002621","546050001",null,"АО \"Салехардэнерго\"","8901030855","890101001",null,"АО \"Салехардэнерго\"","8901030855","890101001"]
["АО \"Мессояханефтегаз\"","8910002621","546050001","АО \"Мессояханефтегаз\"","8910002621","546050001",null,"АО \"Салехардэнерго\"","8901030855","890101001",null,"АО \"Салехардэнерго\"","8901030855","890101001",null,"АО \"Салехардэнерго\"","8901030855","890101001",null,"АО \"Салехардэнерго\"","8901030855","890101001",null,"АО \"Салехардэнерго\"","8901030855","890101001",null,"АО \"Салехардэнерго\"","8901030855","890101001",null,"АО \"Салехардэнерго\"","8901030855","890101001",null,"АО \"Газпром энергосбыт Тюмень\"","8602067215","862450001",null,null,null,null,null,"АО \"Мессояханефтегаз\"","8910002621","546050001",null,"АО \"Салехардэнерго\"","8901030855","890101001",null,"АО \"Салехардэнерго\"","8901030855","890101001"]
["АО \"Мессояханефтегаз\"","8910002621","546050001","АО \"Мессояханефтегаз\"","8910002621","546050001",null,"АО \"Сибурэнергоменеджмент\"","7727276526","366301001",null,"АО \"Сибурэнергоменеджмент\"","7727276526","366301001",null,"АО \"Сибурэнергоменеджмент\"","7727276526","366301001",null,"АО \"СибурТюменьГаз\"","7202116628","862450001",null,"АО \"СибурТюменьГаз\"","7202116628","862450001",null,"АО \"СибурТюменьГаз\"","7202116628","862450001",null,"АО \"СибурТюменьГаз\"","7202116628","862450001",null,"АО \"Газпром энергосбыт Тюмень\"","8602067215","862450001",null,null,null,null,null,"АО \"Мессояханефтегаз\"","8910002621","546050001",null,"АО \"Сибурэнергоменеджмент\"","7727276526","366301001",null,"АО \"Сибурэнергоменеджмент\"","7727276526","366301001"]
["АО \"Муравленковское предприятие городских электрических сетей\"","8905063058","890501001","АО \"Муравленковское предприятие городских электрических сетей\"","8905063058","890501001",null,"АО \"Синэрго\"","6672261117","668501001",null,"АО \"Синэрго\"","6672261117","668501001",null,"АО \"Синэрго\"","6672261117","668501001",null,"АО \"СибурТюменьГаз\"","7202116628","862450001",null,"АО \"СибурТюменьГаз\"","7202116628","862450001",null,"АО \"СибурТюменьГаз\"","7202116628","862450001",null,"АО \"СибурТюменьГаз\"","7202116628","862450001",null,"АО \"Газпром энергосбыт\"","7705750968","772901001",null,null,null,null,null,"АО \"Мосэнергосбыт\"","7736520080","997650001",null,"АО \"Синэрго\"","6672261117","668501001",null,"АО \"Синэрго\"","6672261117","668501001"]
["АО \"Надымское авиапредприятие\"","8903025610","890301001","АО \"Надымское авиапредприятие\"","8903025610","890301001",null,"АО \"СУЭНКО\"","7205011944","720350001",null,"АО \"СУЭНКО\"","7205011944","720350001",null,"АО \"СУЭНКО\"","7205011944","720350001",null,"АО \"СУЭНКО\"","7205011944","720350001",null,"АО \"СУЭНКО\"","7205011944","720350001",null,"АО \"СУЭНКО\"","7205011944","720350001",null,"АО \"СУЭНКО\"","7205011944","720350001",null,"АО \"Городские электрические сети\" г.Нижневартовск","8603004190","860301001",null,null,null,null,null,"АО \"Новосибирскэнергосбыт\"","5407025576","997650001",null,"АО \"СУЭНКО\"","7205011944","720350001",null,"АО \"СУЭНКО\"","7205011944","720350001"]
["АО \"Нижневартовское нефтегазодобывающее предприятие\"","8603089941","860301001","АО \"Нижневартовское нефтегазодобывающее предприятие\"","8603089941","860301001",null,"АО \"Харп-Энерго-Газ\"","8901016850","890801001",null,"АО \"Харп-Энерго-Газ\"","8901016850","890801001",null,"АО \"Харп-Энерго-Газ\"","8901016850","890801001",null,"АО \"Харп-Энерго-Газ\"","8901016850","890801001",null,"АО \"Харп-Энерго-Газ\"","8901016850","890801001",null,"АО \"Харп-Энерго-Газ\"","8901016850","890801001",null,"АО \"Харп-Энерго-Газ\"","8901016850","890801001",null,"АО \"Губкинские городские электрические сети\"","8911015126","891101001",null,null,null,null,null,"АО \"Оборонэнергосбыт\"","7704731218","773043001",null,"АО \"СУЭНКО\"","7205011944","720350001",null,"АО \"СУЭНКО\"","7205011944","720350001"]
["АО \"Новоуренгойский ОАО\"","8904045602","890401001","АО \"Новоуренгойский ОАО\"","8904045602","890401001",null,"АО \"Энергосбытовая компания \"Восток\"","7705424509","997650001",null,"АО \"Энергосбытовая компания \"Восток\"","7705424509","997650001",null,"АО \"Энергосбытовая компания \"Восток\"","7705424509","997650001",null,"АО \"Югорская энергетическая компания децентрализованной зоны\" (АО \"Юграэнерго\")","8601029263","860101001",null,"АО \"Югорская энергетическая компания децентрализованной зоны\" (АО \"Юграэнерго\")","8601029263","860101001",null,"АО \"Югорская энергетическая компания децентрализованной зоны\" (АО \"Юграэнерго\")","8601029263","860101001",null,"АО \"Югорская энергетическая компания децентрализованной зоны\" (АО \"Юграэнерго\")","8601029263","860101001",null,"АО \"ИНТЕР РАО - Электрогенерация\"","7704784450","862450001",null,null,null,null,null,"АО \"Салехардэнерго\"","8901030855","890101001",null,"АО \"Харп-Энерго-Газ\"","8901016850","890801001",null,"АО \"Харп-Энерго-Газ\"","8901016850","890801001"]
["АО \"НордЭнерджиСистемс\"","8903032551","720301001","АО \"НордЭнерджиСистемс\"","8903032551","720301001",null,"АО \"Югорская энергетическая компания децентрализованной зоны\" (АО \"Юграэнерго\")","8601029263","860101001",null,"АО \"Югорская энергетическая компания децентрализованной зоны\" (АО \"Юграэнерго\")","8601029263","860101001",null,"АО \"Югорская энергетическая компания децентрализованной зоны\" (АО \"Юграэнерго\")","8601029263","860101001",null,"АО \"Ямалкоммунэнерго\"","8901025421","890101001",null,"АО \"Ямалкоммунэнерго\"","8901025421","890101001",null,"АО \"Ямалкоммунэнерго\"","8901025421","890101001",null,"АО \"Ямалкоммунэнерго\"","8901025421","890101001",null,"АО \"ИНТЕР РАО - Электрогенерация\"","7704784450","862450001",null,null,null,null,null,"АО \"СибурТюменьГаз\"","7202116628","862450001",null,"АО \"Энергосбытовая компания \"Восток\"","7705424509","997650001",null,"АО \"Энергосбытовая компания \"Восток\"","7705424509","997650001"]
["АО \"Распределительная сетевая компания Ямала\"","8901008899","890143001","АО \"Распределительная сетевая компания Ямала\"","8901008899","890143001",null,"АО \"ЮТЭК\"","8601022317","862450001",null,"АО \"ЮТЭК\"","8601022317","862450001",null,"АО \"ЮТЭК\"","8601022317","862450001",null,"АО \"Ямалкоммунэнерго\"","8901025421","890101001",null,"АО \"Ямалкоммунэнерго\"","8901025421","890101001",null,"АО \"Ямалкоммунэнерго\"","8901025421","890101001",null,"АО \"Ямалкоммунэнерго\"","8901025421","890101001",null,"АО \"Мессояханефтегаз\"","8910002621","546050001",null,null,null,null,null,"АО \"СибурТюменьГаз\"","7202116628","862450001",null,"АО \"Югорская энергетическая компания децентрализованной зоны\" (АО \"Юграэнерго\")","8601029263","860101001",null,"АО \"Югорская энергетическая компания децентрализованной зоны\" (АО \"Юграэнерго\")","8601029263","860101001"]
["АО \"Россети Тюмень\"","8602060185","997450001","АО \"Россети Тюмень\"","8602060185","997450001",null,"АО \"Ямалкоммунэнерго\"","8901025421","890101001",null,"АО \"Ямалкоммунэнерго\"","8901025421","890101001",null,"АО \"Ямалкоммунэнерго\"","8901025421","890101001",null,"АО \"Ямалкоммунэнерго\" филиал в Надымском районе","8901025421","890343001",null,"АО \"Ямалкоммунэнерго\" филиал в Надымском районе","8901025421","890343001",null,"АО \"Ямалкоммунэнерго\" филиал в Надымском районе","8901025421","890343001",null,"АО \"Ямалкоммунэнерго\" филиал в Надымском районе","8901025421","890343001",null,"АО \"Мессояханефтегаз\"","8910002621","546050001",null,null,null,null,null,"АО \"Сибурэнергоменеджмент\"","7727276526","366301001",null,"АО \"ЮТЭК\"","8601022317","862450001",null,"АО \"ЮТЭК\"","8601022317","862450001"]
["АО \"РСК Ямала\"","8901008899","890101001","АО \"РСК Ямала\"","8901008899","890101001",null,"АО \"Ямалкоммунэнерго\"","8901025421","890101001",null,"АО \"Ямалкоммунэнерго\"","8901025421","890101001",null,"АО \"Ямалкоммунэнерго\"","8901025421","890101001",null,"АО \"Ямалкоммунэнерго\" филиал в Надымском районе","8901025421","890343001",null,"АО \"Ямалкоммунэнерго\" филиал в Надымском районе","8901025421","890343001",null,"АО \"Ямалкоммунэнерго\" филиал в Надымском районе","8901025421","890343001",null,"АО \"Ямалкоммунэнерго\" филиал в Надымском районе","8901025421","890343001",null,"АО \"Мессояханефтегаз\"","8910002621","546050001",null,null,null,null,null,"АО \"СУЭНКО\"","7205011944","720350001",null,"АО \"Ямалкоммунэнерго\"","8901025421","890101001",null,"АО \"Ямалкоммунэнерго\"","8901025421","890101001"]
["АО \"Салехардэнерго\"","8901030855","890101001","АО \"Салехардэнерго\"","8901030855","890101001",null,"АО \"Ямалкоммунэнерго\" филиал в Надымском районе","8901025421","890343001",null,"АО \"Ямалкоммунэнерго\" филиал в Надымском районе","8901025421","890343001",null,"АО \"Ямалкоммунэнерго\" филиал в Надымском районе","8901025421","890343001",null,"АО \"Ямалкоммунэнерго\" филиал в Приуральском районе","8901025421","890801001",null,"АО \"Ямалкоммунэнерго\" филиал в Приуральском районе","8901025421","890801001",null,"АО \"Ямалкоммунэнерго\" филиал в Приуральском районе","8901025421","890801001",null,"АО \"Ямалкоммунэнерго\" филиал в Приуральском районе","8901025421","890801001",null,"АО \"Мессояханефтегаз\"","8910002621","546050001",null,null,null,null,null,"АО \"Харп-Энерго-Газ\"","8901016850","890801001",null,"АО \"Ямалкоммунэнерго\"","8901025421","890101001",null,"АО \"Ямалкоммунэнерго\"","8901025421","890101001"]
["АО \"Салехардэнерго\"","8901030855","890101001","АО \"Салехардэнерго\"","8901030855","890101001",null,"АО \"Ямалкоммунэнерго\" филиал в Приуральском районе","8901025421","890801001",null,"АО \"Ямалкоммунэнерго\" филиал в Приуральском районе","8901025421","890801001",null,"АО \"Ямалкоммунэнерго\" филиал в Приуральском районе","8901025421","890801001",null,"АО \"Ямалкоммунэнерго\" филиал в Приуральском районе","8901025421","890801001",null,"АО \"Ямалкоммунэнерго\" филиал в Приуральском районе","8901025421","890801001",null,"АО \"Ямалкоммунэнерго\" филиал в Приуральском районе","8901025421","890801001",null,"АО \"Ямалкоммунэнерго\" филиал в Приуральском районе","8901025421","890801001",null,"АО \"Муравленковское предприятие городских электрических сетей\"","8905063058","890501001",null,null,null,null,null,"АО \"Энергосбытовая компания \"Восток\"","7705424509","997650001",null,"АО \"Ямалкоммунэнерго\" филиал в Надымском районе","8901025421","890343001",null,"АО \"Ямалкоммунэнерго\" филиал в Надымском районе","8901025421","890343001"]
["АО \"Самотлорнефтегаз\"","8603089934","997250001","АО \"Самотлорнефтегаз\"","8603089934","997250001",null,"АО \"Ямалкоммунэнерго\" филиал в Приуральском районе","8901025421","890801001",null,"АО \"Ямалкоммунэнерго\" филиал в Приуральском районе","8901025421","890801001",null,"АО \"Ямалкоммунэнерго\" филиал в Приуральском районе","8901025421","890801001",null,"АО \"Ямалкоммунэнерго\" филиал в Тазовском районе","8901025421","891000354",null,"АО \"Ямалкоммунэнерго\" филиал в Тазовском районе","8901025421","891000354",null,"АО \"Ямалкоммунэнерго\" филиал в Тазовском районе","8901025421","891000354",null,"АО \"Ямалкоммунэнерго\" филиал в Тазовском районе","8901025421","891000354",null,"АО \"Надымское авиапредприятие\"","8903025610","890301001",null,null,null,null,null,"АО \"Югорская энергетическая компания децентрализованной зоны\" (АО \"Юграэнерго\")","8601029263","860101001",null,"АО \"Ямалкоммунэнерго\" филиал в Приуральском районе","8901025421","890801001",null,"АО \"Ямалкоммунэнерго\" филиал в Приуральском районе","8901025421","890801001"]
["АО \"СУЭНКО\"","7205011944","720350001","АО \"СУЭНКО\"","7205011944","720350001",null,"АО \"Ямалкоммунэнерго\" филиал в Тазовском районе","8901025421","891000354",null,"АО \"Ямалкоммунэнерго\" филиал в Тазовском районе","8901025421","891000354",null,"АО \"Ямалкоммунэнерго\" филиал в Тазовском районе","8901025421","891000354",null,"АО \"Ямалкоммунэнерго\" филиал в Тазовском районе","8901025421","891000354",null,"АО \"Ямалкоммунэнерго\" филиал в Тазовском районе","8901025421","891000354",null,"АО \"Ямалкоммунэнерго\" филиал в Тазовском районе","8901025421","891000354",null,"АО \"Ямалкоммунэнерго\" филиал в Тазовском районе","8901025421","891000354",null,"АО \"Нижневартовское нефтегазодобывающее предприятие\"","8603089941","860301001",null,null,null,null,null,"АО \"Югорская энергетическая компания децентрализованной зоны\" (АО \"Юграэнерго\")","8601029263","860101001",null,"АО \"Ямалкоммунэнерго\" филиал в Приуральском районе","8901025421","890801001",null,"АО \"Ямалкоммунэнерго\" филиал в Приуральском районе","8901025421","890801001"]
["АО \"Тюменский завод медицинского оборудования и инструментов\"","7203000834","720301001","АО \"Тюменский завод медицинского оборудования и инструментов\"","7203000834","720301001",null,"АО \"Ямалкоммунэнерго\" филиал в Тазовском районе","8901025421","891000354",null,"АО \"Ямалкоммунэнерго\" филиал в Тазовском районе","8901025421","891000354",null,"АО \"Ямалкоммунэнерго\" филиал в Тазовском районе","8901025421","891000354",null,"АО \"Ямалкоммунэнерго\" филиал в Шурышкарском районе","8901025421","890701001",null,"АО \"Ямалкоммунэнерго\" филиал в Шурышкарском районе","8901025421","890701001",null,"АО \"Ямалкоммунэнерго\" филиал в Шурышкарском районе","8901025421","890701001",null,"АО \"Ямалкоммунэнерго\" филиал в Шурышкарском районе","8901025421","890701001",null,"АО \"Новоуренгойский ОАО\"","8904045602","890401001",null,null,null,null,null,"АО \"Югорская энергетическая компания децентрализованной зоны\" (АО \"Юграэнерго\")","8601029263","860101001",null,"АО \"Ямалкоммунэнерго\" филиал в Тазовском районе","8901025421","891000354",null,"АО \"Ямалкоммунэнерго\" филиал в Тазовском районе","8901025421","891000354"]
["АО \"Тюменский электромеханический завод\"","7204003108","720301001","АО \"Тюменский электромеханический завод\"","7204003108","720301001",null,"АО \"Ямалкоммунэнерго\" филиал в Шурышкарском районе","8901025421","890701001",null,"АО \"Ямалкоммунэнерго\" филиал в Шурышкарском районе","8901025421","890701001",null,"АО \"Ямалкоммунэнерго\" филиал в Шурышкарском районе","8901025421","890701001",null,"АО \"Ямалкоммунэнерго\" филиал в Шурышкарском районе","8901025421","890701001",null,"АО \"Ямалкоммунэнерго\" филиал в Шурышкарском районе","8901025421","890701001",null,"АО \"Ямалкоммунэнерго\" филиал в Шурышкарском районе","8901025421","890701001",null,"АО \"Ямалкоммунэнерго\" филиал в Шурышкарском районе","8901025421","890701001",null,"АО \"НордЭнерджиСистемс\"","8903032551","720301001",null,null,null,null,null,"АО \"ЮТЭК\"","8601022317","862450001",null,"АО \"Ямалкоммунэнерго\" филиал в Тазовском районе","8901025421","891000354",null,"АО \"Ямалкоммунэнерго\" филиал в Тазовском районе","8901025421","891000354"]
["АО \"Уренгойская электросетевая компания\"",8904092592,"890401001","АО \"Уренгойская электросетевая компания\"",8904092592,"890401001",null,"АО \"Ямалкоммунэнерго\" филиал в Ямальском районе","8901025421","890943001",null,"АО \"Ямалкоммунэнерго\" филиал в Ямальском районе","8901025421","890943001",null,"АО \"Ямалкоммунэнерго\" филиал в Ямальском районе","8901025421","890943001",null,"АО \"Ямалкоммунэнерго\" филиал в Ямальском районе","8901025421","890943001",null,"АО \"Ямалкоммунэнерго\" филиал в Ямальском районе","8901025421","890943001",null,"АО \"Ямалкоммунэнерго\" филиал в Ямальском районе","8901025421","890943001",null,"АО \"Ямалкоммунэнерго\" филиал в Ямальском районе","8901025421","890943001",null,"АО \"Распределительная сетевая компания Ямала\"","8901008899","890143001",null,null,null,null,null,"АО \"Ямалкоммунэнерго\"","8901025421","890101001",null,"АО \"Ямалкоммунэнерго\" филиал в Шурышкарском районе","8901025421","890701001",null,"АО \"Ямалкоммунэнерго\" филиал в Шурышкарском районе","8901025421","890701001"]
["АО \"Харп-Энерго-Газ\"","8901016850","890801001","АО \"Харп-Энерго-Газ\"","8901016850","890801001",null,"АО \"Ямалкоммунэнерго\" филиал в Ямальском районе","8901025421","890943001",null,"АО \"Ямалкоммунэнерго\" филиал в Ямальском районе","8901025421","890943001",null,"АО \"Ямалкоммунэнерго\" филиал в Ямальском районе","8901025421","890943001",null,"АО \"Ямалкоммунэнерго\" филиал в Ямальском районе","8901025421","890943001",null,"АО \"Ямалкоммунэнерго\" филиал в Ямальском районе","8901025421","890943001",null,"АО \"Ямалкоммунэнерго\" филиал в Ямальском районе","8901025421","890943001",null,"АО \"Ямалкоммунэнерго\" филиал в Ямальском районе","8901025421","890943001",null,"АО \"Россети Тюмень\"","8602060185","997450001",null,null,null,null,null,"АО \"Ямалкоммунэнерго\"","8901025421","890101001",null,"АО \"Ямалкоммунэнерго\" филиал в Ямальском районе","8901025421","890943001",null,"АО \"Ямалкоммунэнерго\" филиал в Ямальском районе","8901025421","890943001"]
["АО \"Элек\"","8602066853","860201001","АО \"Элек\"","8602066853","860201001",null,"Государственное бюджетное учреждение ЯНАО \"Ямалтур\"","8901019080","890101001",null,"Государственное бюджетное учреждение ЯНАО \"Ямалтур\"","8901019080","890101001",null,"Государственное бюджетное учреждение ЯНАО \"Ямалтур\"","8901019080","890101001",null,"АО Нижневартовская ГРЭС","8620018330","785150001",null,"АО Нижневартовская ГРЭС","8620018330","785150001",null,"АО Нижневартовская ГРЭС","8620018330","785150001",null,"АО Нижневартовская ГРЭС","8620018330","785150001",null,"АО \"РСК Ямала\"","8901008899","890101001",null,null,null,null,null,"АО \"Ямалкоммунэнерго\"","8901025421","890101001",null,"АО \"Ямалкоммунэнерго\" филиал в Ямальском районе","8901025421","890943001",null,"АО \"Ямалкоммунэнерго\" филиал в Ямальском районе","8901025421","890943001"]
["АО \"Энерго-Газ-Ноябрьск\"","8905033649","890501001","АО \"Энерго-Газ-Ноябрьск\"","8905033649","890501001",null,"Государственное бюджетное учреждение ЯНАО \"Ямалтур\"","8901019080","890101001",null,"Государственное бюджетное учреждение ЯНАО \"Ямалтур\"","8901019080","890101001",null,"Государственное бюджетное учреждение ЯНАО \"Ямалтур\"","8901019080","890101001",null,"АО Нижневартовская ГРЭС","8620018330","785150001",null,"АО Нижневартовская ГРЭС","8620018330","785150001",null,"АО Нижневартовская ГРЭС","8620018330","785150001",null,"АО Нижневартовская ГРЭС","8620018330","785150001",null,"АО \"Салехардэнерго\"","8901030855","890101001",null,null,null,null,null,"АО \"Ямалкоммунэнерго\"","8901025421","890101001",null,"Государственное бюджетное учреждение ЯНАО \"Ямалтур\"","8901019080","890101001",null,"Государственное бюджетное учреждение ЯНАО \"Ямалтур\"","8901019080","890101001"]
["АО \"Югорская энергетическая компания децентрализованной зоны\" (АО \"Юграэнерго\")","8601029263","860101001","АО \"Югорская энергетическая компания децентрализованной зоны\" (АО \"Юграэнерго\")","8601029263","860101001",null,"Закрытое акционерное общество \"Энергопромышленная компания\", г. Екатеринбург","6661105959","666101001",null,"Закрытое акционерное общество \"Энергопромышленная компания\", г. Екатеринбург","6661105959","666101001",null,"Закрытое акционерное общество \"Энергопромышленная компания\", г. Екатеринбург","6661105959","666101001",null,"Блокстанции ТЭ","7200000000","720000001",null,"Блокстанции ТЭ","7200000000","720000001",null,"Блокстанции ТЭ","7200000000","720000001",null,"Блокстанции ТЭ","7200000000","720000001",null,"АО \"Салехардэнерго\"","8901030855","890101001",null,null,null,null,null,"АО \"Ямалкоммунэнерго\" филиал в Надымском районе","8901025421","890343001",null,"Государственное бюджетное учреждение ЯНАО \"Ямалтур\"","8901019080","890101001",null,"Государственное бюджетное учреждение ЯНАО \"Ямалтур\"","8901019080","890101001"]
["АО \"ЮРЭСК\"","8601045152","862450001","АО \"ЮРЭСК\"","8601045152","862450001",null,"ЗАО \"Дирекция по энергообеспечению Восточного промузла\"","7203009876","720301001",null,"ЗАО \"Дирекция по энергообеспечению Восточного промузла\"","7203009876","720301001",null,"ЗАО \"Дирекция по энергообеспечению Восточного промузла\"","7203009876","720301001",null,"Блокстанции ТЭ","7200000000","720000001",null,"Блокстанции ТЭ","7200000000","720000001",null,"Блокстанции ТЭ","7200000000","720000001",null,"Блокстанции ТЭ","7200000000","720000001",null,"АО \"Салехардэнерго\"","8901030855","890101001",null,null,null,null,null,"АО \"Ямалкоммунэнерго\" филиал в Надымском районе","8901025421","890343001",null,"Закрытое акционерное общество \"Энергопромышленная компания\", г. Екатеринбург","6661105959","666101001",null,"Закрытое акционерное общество \"Энергопромышленная компания\", г. Екатеринбург","6661105959","666101001"]
["АО \"ЮТЭК-Региональные сети\"","8601033125","860101001","АО \"ЮТЭК-Региональные сети\"","8601033125","860101001",null,"ООО \"Городские электрические сети\"",8601070751,860101001,null,"ООО \"Городские электрические сети\"",8601070751,860101001,null,"ООО \"Городские электрические сети\"",8601070751,860101001,null,"Государственное бюджетное учреждение ЯНАО \"Ямалтур\"","8901019080","890101001",null,"Государственное бюджетное учреждение ЯНАО \"Ямалтур\"","8901019080","890101001",null,"Государственное бюджетное учреждение ЯНАО \"Ямалтур\"","8901019080","890101001",null,"Государственное бюджетное учреждение ЯНАО \"Ямалтур\"","8901019080","890101001",null,"АО \"Салехардэнерго\"","8901030855","890101001",null,null,null,null,null,"АО \"Ямалкоммунэнерго\" филиал в Надымском районе","8901025421","890343001",null,"ЗАО \"Дирекция по энергообеспечению Восточного промузла\"","7203009876","720301001",null,"ЗАО \"Дирекция по энергообеспечению Восточного промузла\"","7203009876","720301001"]
["АО \"Ямалкоммунэнерго\"","8901025421","890101001","АО \"Ямалкоммунэнерго\"","8901025421","890101001",null,"МПП ЖКХ МО г. Лабытнанги \"Ямал\"","8902009197","890201001",null,"МПП ЖКХ МО г. Лабытнанги \"Ямал\"","8902009197","890201001",null,"МПП ЖКХ МО г. Лабытнанги \"Ямал\"","8902009197","890201001",null,"Государственное бюджетное учреждение ЯНАО \"Ямалтур\"","8901019080","890101001",null,"Государственное бюджетное учреждение ЯНАО \"Ямалтур\"","8901019080","890101001",null,"Государственное бюджетное учреждение ЯНАО \"Ямалтур\"","8901019080","890101001",null,"Государственное бюджетное учреждение ЯНАО \"Ямалтур\"","8901019080","890101001",null,"АО \"Самотлорнефтегаз\"","8603089934","997250001",null,null,null,null,null,"АО \"Ямалкоммунэнерго\" филиал в Приуральском районе","8901025421","890801001",null,"ООО \"Городские электрические сети\"",8601070751,860101001,null,"ООО \"Городские электрические сети\"",8601070751,860101001]
["АО \"Ямалкоммунэнерго\"","8901025421","890101001","АО \"Ямалкоммунэнерго\"","8901025421","890101001",null,"МУП \"Управление энергоснабжения и инженерных сетей\"","8903028065","890301001",null,"МУП \"Управление энергоснабжения и инженерных сетей\"","8903028065","890301001",null,"МУП \"Управление энергоснабжения и инженерных сетей\"","8903028065","890301001",null,"ЕНЭС",null,null,null,"ЗАО \"Завод \"Сантехкомплект\"","7203039648","720301001",null,"ЕНЭС",null,null,null,"ЗАО \"Завод \"Сантехкомплект\"","7203039648","720301001",null,"АО \"СибурТюменьГаз\"","7202116628","862450001",null,null,null,null,null,"АО \"Ямалкоммунэнерго\" филиал в Приуральском районе","8901025421","890801001",null,"МПП ЖКХ МО г. Лабытнанги \"Ямал\"","8902009197","890201001",null,"МПП ЖКХ МО г. Лабытнанги \"Ямал\"","8902009197","890201001"]
["АО \"Ямалкоммунэнерго\" филиал в Надымском районе","8901025421","890343001","АО \"Ямалкоммунэнерго\" филиал в Надымском районе","8901025421","890343001",null,"МУП \"Управление энергоснабжения и инженерных сетей\"","8903028065","890301001",null,"МУП \"Управление энергоснабжения и инженерных сетей\"","8903028065","890301001",null,"МУП \"Управление энергоснабжения и инженерных сетей\"","8903028065","890301001",null,"ЗАО \"Завод \"Сантехкомплект\"","7203039648","720301001",null,"ЗАО \"Завод \"Сантехкомплект\"","7203039648","720301001",null,"ЗАО \"Завод \"Сантехкомплект\"","7203039648","720301001",null,"ЗАО \"Завод \"Сантехкомплект\"","7203039648","720301001",null,"АО \"СибурТюменьГаз\"","7202116628","862450001",null,null,null,null,null,"АО \"Ямалкоммунэнерго\" филиал в Приуральском районе","8901025421","890801001",null,"МУП \"Управление энергоснабжения и инженерных сетей\"","8903028065","890301001",null,"МУП \"Управление энергоснабжения и инженерных сетей\"","8903028065","890301001"]
["АО \"Ямалкоммунэнерго\" филиал в Приуральском районе","8901025421","890801001","АО \"Ямалкоммунэнерго\" филиал в Приуральском районе","8901025421","890801001",null,"Ново-Уренгойское ЛПУ МГ ООО \"Газпром трансгаз Сургут\"","8617002073","890403001",null,"Ново-Уренгойское ЛПУ МГ ООО \"Газпром трансгаз Сургут\"","8617002073","890403001",null,"Ново-Уренгойское ЛПУ МГ ООО \"Газпром трансгаз Сургут\"","8617002073","890403001",null,"ЗАО \"Завод \"Сантехкомплект\"","7203039648","720301001",null,"ЗАО \"ЛУКОЙЛ-АИК\"","8608180070","860801001",null,"ЗАО \"Завод \"Сантехкомплект\"","7203039648","720301001",null,"ЗАО \"ЛУКОЙЛ-АИК\"","8608180070","860801001",null,"АО \"СУЭНКО\"","7205011944","720350001",null,null,null,null,null,"АО \"Ямалкоммунэнерго\" филиал в Приуральском районе","8901025421","890801001",null,"МУП \"Управление энергоснабжения и инженерных сетей\"","8903028065","890301001",null,"МУП \"Управление энергоснабжения и инженерных сетей\"","8903028065","890301001"]
["АО \"Ямалкоммунэнерго\" филиал в Приуральском районе","8901025421","890801001","АО \"Ямалкоммунэнерго\" филиал в Приуральском районе","8901025421","890801001",null,"Ново-Уренгойское ЛПУ МГ ООО \"Газпром трансгаз Сургут\"","8617002073","890403001",null,"Ново-Уренгойское ЛПУ МГ ООО \"Газпром трансгаз Сургут\"","8617002073","890403001",null,"Ново-Уренгойское ЛПУ МГ ООО \"Газпром трансгаз Сургут\"","8617002073","890403001",null,"ЗАО \"ЛУКОЙЛ-АИК\"","8608180070","860801001",null,"ЗАО \"ЛУКОЙЛ-АИК\"","8608180070","860801001",null,"ЗАО \"ЛУКОЙЛ-АИК\"","8608180070","860801001",null,"ЗАО \"ЛУКОЙЛ-АИК\"","8608180070","860801001",null,"АО \"Тюменский завод медицинского оборудования и инструментов\"","7203000834","720301001",null,null,null,null,null,"АО \"Ямалкоммунэнерго\" филиал в Тазовском районе","8901025421","891000354",null,"Ново-Уренгойское ЛПУ МГ ООО \"Газпром трансгаз Сургут\"","8617002073","890403001",null,"Ново-Уренгойское ЛПУ МГ ООО \"Газпром трансгаз Сургут\"","8617002073","890403001"]
["АО \"Ямалкоммунэнерго\" филиал в Тазовском районе","8901025421","891000354","АО \"Ямалкоммунэнерго\" филиал в Тазовском районе","8901025421","891000354",null,"ОАО \"ОБОРОНЭНЕРГОСБЫТ\" филиал \"УРАЛЬСКИЙ\"","7704731218","720445001",null,"ОАО \"ОБОРОНЭНЕРГОСБЫТ\" филиал \"УРАЛЬСКИЙ\"","7704731218","720445001",null,"ОАО \"ОБОРОНЭНЕРГОСБЫТ\" филиал \"УРАЛЬСКИЙ\"","7704731218","720445001",null,"ЗАО \"ЛУКОЙЛ-АИК\"","8608180070","860801001",null,"ЗАО \"Энерго Сервис\"","7022014560","702201001",null,"ЗАО \"ЛУКОЙЛ-АИК\"","8608180070","860801001",null,"ЗАО \"Энерго Сервис\"","7022014560","702201001",null,"АО \"Тюменский электромеханический завод\"","7204003108","720301001",null,null,null,null,null,"АО \"Ямалкоммунэнерго\" филиал в Тазовском районе","8901025421","891000354",null,"Ново-Уренгойское ЛПУ МГ ООО \"Газпром трансгаз Сургут\"","8617002073","890403001",null,"Ново-Уренгойское ЛПУ МГ ООО \"Газпром трансгаз Сургут\"","8617002073","890403001"]
["АО \"Ямалкоммунэнерго\" филиал в Тазовском районе","8901025421","891000354","АО \"Ямалкоммунэнерго\" филиал в Тазовском районе","8901025421","891000354",null,"ОАО \"Промышленная энергетика\"","7705736716","770501001",null,"ОАО \"Промышленная энергетика\"","7705736716","770501001",null,"ОАО \"Промышленная энергетика\"","7705736716","770501001",null,"ЗАО \"Энерго Сервис\"","7022014560","702201001",null,"ЗАО \"Энерго Сервис\"","7022014560","702201001",null,"ЗАО \"Энерго Сервис\"","7022014560","702201001",null,"ЗАО \"Энерго Сервис\"","7022014560","702201001",null,"АО \"Уренгойская электросетевая компания\"",8904092592,"890401001",null,null,null,null,null,"АО \"Ямалкоммунэнерго\" филиал в Тазовском районе","8901025421","891000354",null,"ОАО \"ОБОРОНЭНЕРГОСБЫТ\" филиал \"УРАЛЬСКИЙ\"","7704731218","720445001",null,"ОАО \"ОБОРОНЭНЕРГОСБЫТ\" филиал \"УРАЛЬСКИЙ\"","7704731218","720445001"]
["АО \"Ямалкоммунэнерго\" филиал в Шурышкарском районе","8901025421","890701001","АО \"Ямалкоммунэнерго\" филиал в Шурышкарском районе","8901025421","890701001",null,"ОАО \"Ростелеком\" Ханты-Мансийский филиал макрорегионального филиала \"Урал\"","7707049388","720332001",null,"ОАО \"Ростелеком\" Ханты-Мансийский филиал макрорегионального филиала \"Урал\"","7707049388","720332001",null,"ОАО \"Ростелеком\" Ханты-Мансийский филиал макрорегионального филиала \"Урал\"","7707049388","720332001",null,"ЗАО \"Энерго Сервис\"","7022014560","702201001",null,"МПП ЖКХ МО г. Лабытнанги \"Ямал\"","8902009197","890201001",null,"ЗАО \"Энерго Сервис\"","7022014560","702201001",null,"МПП ЖКХ МО г. Лабытнанги \"Ямал\"","8902009197","890201001",null,"АО \"Харп-Энерго-Газ\"","8901016850","890801001",null,null,null,null,null,"АО \"Ямалкоммунэнерго\" филиал в Тазовском районе","8901025421","891000354",null,"ОАО \"Промышленная энергетика\"","7705736716","770501001",null,"ОАО \"Промышленная энергетика\"","7705736716","770501001"]
["АО \"Ямалкоммунэнерго\" филиал в Ямальском районе","8901025421","890943001","АО \"Ямалкоммунэнерго\" филиал в Ямальском районе","8901025421","890943001",null,"ОАО \"Северная энергетическая компания\"","8911019579","890501001",null,"ОАО \"Северная энергетическая компания\"","8911019579","890501001",null,"ОАО \"Северная энергетическая компания\"","8911019579","890501001",null,"МПП ЖКХ МО г. Лабытнанги \"Ямал\"","8902009197","890201001",null,"МУП \"Байкаловский ККП\"","7223000825","722301001",null,"МПП ЖКХ МО г. Лабытнанги \"Ямал\"","8902009197","890201001",null,"МУП \"Байкаловский ККП\"","7223000825","722301001",null,"АО \"Элек\"","8602066853","860201001",null,null,null,null,null,"АО \"Ямалкоммунэнерго\" филиал в Шурышкарском районе","8901025421","890701001",null,"ОАО \"Ростелеком\" Ханты-Мансийский филиал макрорегионального филиала \"Урал\"","7707049388","720332001",null,"ОАО \"Ростелеком\" Ханты-Мансийский филиал макрорегионального филиала \"Урал\"","7707049388","720332001"]
["АО \"Ямалкоммунэнерго\" филиал в Ямальском районе","8901025421","890943001","АО \"Ямалкоммунэнерго\" филиал в Ямальском районе","8901025421","890943001",null,"ОАО \"Ямал СПГ\"","7709602713","891450001",null,"ОАО \"Ямал СПГ\"","7709602713","891450001",null,"ОАО \"Ямал СПГ\"","7709602713","891450001",null,"МУП \"Байкаловский ККП\"","7223000825","722301001",null,"МУП \"Управление энергоснабжения и инженерных сетей\"","8903028065","890301001",null,"МУП \"Байкаловский ККП\"","7223000825","722301001",null,"МУП \"Управление энергоснабжения и инженерных сетей\"","8903028065","890301001",null,"АО \"Энерго-Газ-Ноябрьск\"","8905033649","890501001",null,null,null,null,null,"АО \"Ямалкоммунэнерго\" филиал в Шурышкарском районе","8901025421","890701001",null,"ОАО \"Северная энергетическая компания\"","8911019579","890501001",null,"ОАО \"Северная энергетическая компания\"","8911019579","890501001"]
["АО \"Ямальская железнодорожная компания\"","8904042048","890401001","АО \"Ямальская железнодорожная компания\"","8904042048","890401001",null,"ОАО \"Ямал СПГ\"","7709602713","891450001",null,"ОАО \"Ямал СПГ\"","7709602713","891450001",null,"ОАО \"Ямал СПГ\"","7709602713","891450001",null,"МУП \"Управление энергоснабжения и инженерных сетей\"","8903028065","890301001",null,"МУП \"Управление энергоснабжения и инженерных сетей\"","8903028065","890301001",null,"МУП \"Управление энергоснабжения и инженерных сетей\"","8903028065","890301001",null,"МУП \"Управление энергоснабжения и инженерных сетей\"","8903028065","890301001",null,"АО \"Югорская энергетическая компания децентрализованной зоны\" (АО \"Юграэнерго\")","8601029263","860101001",null,null,null,null,null,"АО \"Ямалкоммунэнерго\" филиал в Шурышкарском районе","8901025421","890701001",null,"ОАО \"Ямал СПГ\"","7709602713","891450001",null,"ОАО \"Ямал СПГ\"","7709602713","891450001"]
["Государственное бюджетное учреждение ЯНАО \"Ямалтур\"","8901019080","890101001","Государственное бюджетное учреждение ЯНАО \"Ямалтур\"","8901019080","890101001",null,"ОАО «ЭСК РусГидро»","7804403972","772801001",null,"ОАО «ЭСК РусГидро»","7804403972","772801001",null,"ОАО «ЭСК РусГидро»","7804403972","772801001",null,"МУП \"Управление энергоснабжения и инженерных сетей\"","8903028065","890301001",null,"Ново-Уренгойское ЛПУ МГ ООО \"Газпром трансгаз Сургут\"","8617002073","890403001",null,"МУП \"Управление энергоснабжения и инженерных сетей\"","8903028065","890301001",null,"Ново-Уренгойское ЛПУ МГ ООО \"Газпром трансгаз Сургут\"","8617002073","890403001",null,"АО \"Югорская энергетическая компания децентрализованной зоны\" (АО \"Юграэнерго\")","8601029263","860101001",null,null,null,null,null,"АО \"Ямалкоммунэнерго\" филиал в Ямальском районе","8901025421","890943001",null,"ОАО \"Ямал СПГ\"","7709602713","891450001",null,"ОАО \"Ямал СПГ\"","7709602713","891450001"]
["Государственное бюджетное учреждение ЯНАО \"Ямалтур\"","8901019080","890101001","Государственное бюджетное учреждение ЯНАО \"Ямалтур\"","8901019080","890101001",null,"Общество с ограниченной ответственностью «Энергосбытовая компания»","0275075272","027501001",null,"Общество с ограниченной ответственностью «Энергосбытовая компания»","0275075272","027501001",null,"Общество с ограниченной ответственностью «Энергосбытовая компания»","0275075272","027501001",null,"Ново-Уренгойское ЛПУ МГ ООО \"Газпром трансгаз Сургут\"","8617002073","890403001",null,"ОАО \"Первая генерирующая компания оптового рынка электроэнергии\"","7203158282","770401001",null,"Ново-Уренгойское ЛПУ МГ ООО \"Газпром трансгаз Сургут\"","8617002073","890403001",null,"ОАО \"Первая генерирующая компания оптового рынка электроэнергии\"","7203158282","770401001",null,"АО \"Югорская энергетическая компания децентрализованной зоны\" (АО \"Юграэнерго\")","8601029263","860101001",null,null,null,null,null,"АО \"Ямалкоммунэнерго\" филиал в Ямальском районе","8901025421","890943001",null,"ОАО «ЭСК РусГидро»","7804403972","772801001",null,"ОАО «ЭСК РусГидро»","7804403972","772801001"]
["ЗАО \" Тюменский приборостроительный завод\"","7203000841","720301001","ЗАО \" Тюменский приборостроительный завод\"","7203000841","720301001",null,"ООО \"АГГРЕКО ЕВРАЗИЯ\"","7705838531","720301001",null,"ООО \"АГГРЕКО ЕВРАЗИЯ\"","7705838531","720301001",null,"ООО \"АГГРЕКО ЕВРАЗИЯ\"","7705838531","720301001",null,"ОАО \"Первая генерирующая компания оптового рынка электроэнергии\"","7203158282","770401001",null,"ОАО \"Первая генерирующая компания оптового рынка электроэнергии\"","7203158282","770401001",null,"ОАО \"Первая генерирующая компания оптового рынка электроэнергии\"","7203158282","770401001",null,"ОАО \"Первая генерирующая компания оптового рынка электроэнергии\"","7203158282","770401001",null,"АО \"ЮРЭСК\"","8601045152","862450001",null,null,null,null,null,"АО \"Ямалкоммунэнерго\" филиал в Ямальском районе","8901025421","890943001",null,"Общество с ограниченной ответственностью «Энергосбытовая компания»","0275075272","027501001",null,"Общество с ограниченной ответственностью «Энергосбытовая компания»","0275075272","027501001"]
["ЗАО \"Завод Тюменьремдормаш\"","7204005867","722401001","ЗАО \"Завод Тюменьремдормаш\"","7204005867","722401001",null,"ООО \"Альянс-Энергджи\" Стрежевской филиал","7709843116","770401001",null,"ООО \"Альянс-Энергджи\" Стрежевской филиал","7709843116","770401001",null,"ООО \"Альянс-Энергджи\" Стрежевской филиал","7709843116","770401001",null,"ОАО \"Первая генерирующая компания оптового рынка электроэнергии\"","7203158282","770401001",null,"ОАО \"Ростелеком\" Ханты-Мансийский филиал макрорегионального филиала \"Урал\"","7707049388","720332001",null,"ОАО \"Первая генерирующая компания оптового рынка электроэнергии\"","7203158282","770401001",null,"ОАО \"Ростелеком\" Ханты-Мансийский филиал макрорегионального филиала \"Урал\"","7707049388","720332001",null,"АО \"ЮТЭК-Региональные сети\"","8601033125","860101001",null,null,null,null,null,"АО \"Ямалкоммунэнерго\" филиал в Ямальском районе","8901025421","890943001",null,"ООО \"АГГРЕКО ЕВРАЗИЯ\"","7705838531","720301001",null,"ООО \"АГГРЕКО ЕВРАЗИЯ\"","7705838531","720301001"]
["АО \"Ханты-Мансийские городские электрические сети\"","8601073745",860101001,"АО \"Ханты-Мансийские городские электрические сети\"","8601073745",860101001,null,"ООО \"Газпром добыча Ямбург\" Филиал \"Ямбурское районное энергетическое управление\"","8904034777","890401001",null,"ООО \"Газпром добыча Ямбург\" Филиал \"Ямбурское районное энергетическое управление\"","8904034777","890401001",null,"ООО \"Газпром добыча Ямбург\" Филиал \"Ямбурское районное энергетическое управление\"","8904034777","890401001",null,"ОАО \"Ростелеком\" Ханты-Мансийский филиал макрорегионального филиала \"Урал\"","7707049388","720332001",null,"ОАО \"Ростелеком\" Ханты-Мансийский филиал макрорегионального филиала \"Урал\"","7707049388","720332001",null,"ОАО \"Ростелеком\" Ханты-Мансийский филиал макрорегионального филиала \"Урал\"","7707049388","720332001",null,"ОАО \"Ростелеком\" Ханты-Мансийский филиал макрорегионального филиала \"Урал\"","7707049388","720332001",null,"АО \"Ямалкоммунэнерго\"","8901025421","890101001",null,null,null,null,null,"АО Нижневартовская ГРЭС","8620018330","785150001",null,"ООО \"Альянс-Энергджи\" Стрежевской филиал","7709843116","770401001",null,"ООО \"Альянс-Энергджи\" Стрежевской филиал","7709843116","770401001"]
["МП \"Ханты-Мансийские городские электрические сети\" МО г. Ханты-Мансийск","8601065832","860101001","МП \"Ханты-Мансийские городские электрические сети\" МО г. Ханты-Мансийск","8601065832","860101001",null,"ООО \"Газпром трансгаз Югорск\"","8622000931","997250001",null,"ООО \"Газпром трансгаз Югорск\"","8622000931","997250001",null,"ООО \"Газпром трансгаз Югорск\"","8622000931","997250001",null,"ОАО \"Ростелеком\" Ханты-Мансийский филиал макрорегионального филиала \"Урал\"","7707049388","720332001",null,"ОАО \"ТНК-Нягань\"","8610010727","997150001",null,"ОАО \"Ростелеком\" Ханты-Мансийский филиал макрорегионального филиала \"Урал\"","7707049388","720332001",null,"ОАО \"ТНК-Нягань\"","8610010727","997150001",null,"АО \"Ямалкоммунэнерго\"","8901025421","890101001",null,null,null,null,null,"АО Нижневартовская ГРЭС","8620018330","785150001",null,"ООО \"Газпром добыча Ямбург\" Филиал \"Ямбурское районное энергетическое управление\"","8904034777","890401001",null,"ООО \"Газпром добыча Ямбург\" Филиал \"Ямбурское районное энергетическое управление\"","8904034777","890401001"]
["Муниципальное предприятие \"Эксплуатационная генерирующая компания\"  муниципального образования городское поселение Приобье","8614008285","861401001","Муниципальное предприятие \"Эксплуатационная генерирующая компания\"  муниципального образования городское поселение Приобье","8614008285","861401001",null,"ООО \"Газпром трансгаз Югорск\"","8622000931","997250001",null,"ООО \"Газпром трансгаз Югорск\"","8622000931","997250001",null,"ООО \"Газпром трансгаз Югорск\"","8622000931","997250001",null,"ОАО \"ТНК-Нягань\"","8610010727","997150001",null,"ОАО \"ТНК-Нягань\"","8610010727","997150001",null,"ОАО \"ТНК-Нягань\"","8610010727","997150001",null,"ОАО \"ТНК-Нягань\"","8610010727","997150001",null,"АО \"Ямалкоммунэнерго\"","8901025421","890101001",null,null,null,null,null,"Блокстанции ТЭ","7200000000","720000001",null,"ООО \"Газпром трансгаз Югорск\"","8622000931","997250001",null,"ООО \"Газпром трансгаз Югорск\"","8622000931","997250001"]
["МУП \"Надымские городские электрические сети\"","8903030850","890301001","МУП \"Надымские городские электрические сети\"","8903030850","890301001",null,"ООО \"Газпром энергосбыт Брянск\"","8602173527","785150001",null,"ООО \"Газпром энергосбыт Брянск\"","8602173527","785150001",null,"ООО \"Газпром энергосбыт Брянск\"","8602173527","785150001",null,"ОАО \"ТНК-Нягань\"","8610010727","997150001",null,"ОАО \"Фортум\" (Тобольская ТЭЦ)","7203162698","720602001",null,"ОАО \"ТНК-Нягань\"","8610010727","997150001",null,"ОАО \"Фортум\" (Тобольская ТЭЦ)","7203162698","720602001",null,"АО \"Ямалкоммунэнерго\"","8901025421","890101001",null,null,null,null,null,"Блокстанции ТЭ","7200000000","720000001",null,"ООО \"Газпром трансгаз Югорск\"","8622000931","997250001",null,"ООО \"Газпром трансгаз Югорск\"","8622000931","997250001"]
["МУП \"Сургутские районные электрические сети\" МО Сургутский район","8617017320","861701001","МУП \"Сургутские районные электрические сети\" МО Сургутский район","8617017320","861701001",null,"ООО \"Газпромтранс\" (Ямальский филиал)","7728262893","890243001",null,"ООО \"Газпромтранс\" (Ямальский филиал)","7728262893","890243001",null,"ООО \"Газпромтранс\" (Ямальский филиал)","7728262893","890243001",null,"ОАО \"Фортум\" (Тобольская ТЭЦ)","7203162698","720602001",null,"ОАО \"Фортум\" (Тобольская ТЭЦ)","7203162698","720602001",null,"ОАО \"Фортум\" (Тобольская ТЭЦ)","7203162698","720602001",null,"ОАО \"Фортум\" (Тобольская ТЭЦ)","7203162698","720602001",null,"АО \"Ямалкоммунэнерго\" филиал в Надымском районе","8901025421","890343001",null,null,null,null,null,"Государственное бюджетное учреждение ЯНАО \"Ямалтур\"","8901019080","890101001",null,"ООО \"Газпром энергосбыт Брянск\"","8602173527","785150001",null,"ООО \"Газпром энергосбыт Брянск\"","8602173527","785150001"]
["МУП \"Управление энергоснабжения и инженерных сетей\"","8903028065","890301001","МУП \"Управление энергоснабжения и инженерных сетей\"","8903028065","890301001",null,"ООО \"Газпромтранс\" (Ямальский филиал)","7728262893","890243001",null,"ООО \"Газпромтранс\" (Ямальский филиал)","7728262893","890243001",null,"ООО \"Газпромтранс\" (Ямальский филиал)","7728262893","890243001",null,"ОАО \"Фортум\" (Тобольская ТЭЦ)","7203162698","720602001",null,"ОАО \"Фортум\" (Тюменская ТЭЦ-1)","7203162698","720302001",null,"ОАО \"Фортум\" (Тобольская ТЭЦ)","7203162698","720602001",null,"ОАО \"Фортум\" (Тюменская ТЭЦ-1)","7203162698","720302001",null,"АО \"Ямалкоммунэнерго\" филиал в Надымском районе","8901025421","890343001",null,null,null,null,null,"Государственное бюджетное учреждение ЯНАО \"Ямалтур\"","8901019080","890101001",null,"ООО \"Газпромтранс\" (Ямальский филиал)","7728262893","890243001",null,"ООО \"Газпромтранс\" (Ямальский филиал)","7728262893","890243001"]
["МУП \"Управление энергоснабжения и инженерных сетей\"","8903028065","890301001","МУП \"Управление энергоснабжения и инженерных сетей\"","8903028065","890301001",null,"ООО \"Гарант Энерго\"","7709782777","770901001",null,"ООО \"Гарант Энерго\"","7709782777","770901001",null,"ООО \"Гарант Энерго\"","7709782777","770901001",null,"ОАО \"Фортум\" (Тюменская ТЭЦ-1)","7203162698","720302001",null,"ОАО \"Фортум\" (Тюменская ТЭЦ-1)","7203162698","720302001",null,"ОАО \"Фортум\" (Тюменская ТЭЦ-1)","7203162698","720302001",null,"ОАО \"Фортум\" (Тюменская ТЭЦ-1)","7203162698","720302001",null,"АО \"Ямалкоммунэнерго\" филиал в Надымском районе","8901025421","890343001",null,null,null,null,null,"Государственное бюджетное учреждение ЯНАО \"Ямалтур\"","8901019080","890101001",null,"ООО \"Газпромтранс\" (Ямальский филиал)","7728262893","890243001",null,"ООО \"Газпромтранс\" (Ямальский филиал)","7728262893","890243001"]
["Надымский филиал ООО \"Газпром энерго\"","7736186950","890302001","Надымский филиал ООО \"Газпром энерго\"","7736186950","890302001",null,"ООО \"Геолог-Инвест\"","8901024146","890101001",null,"ООО \"Геолог-Инвест\"","8901024146","890101001",null,"ООО \"Геолог-Инвест\"","8901024146","890101001",null,"ОАО \"Фортум\" (Тюменская ТЭЦ-1)","7203162698","720302001",null,"ОАО \"Ямал СПГ\"","7709602713","891450001",null,"ОАО \"Фортум\" (Тюменская ТЭЦ-1)","7203162698","720302001",null,"ОАО \"Ямал СПГ\"","7709602713","891450001",null,"АО \"Ямалкоммунэнерго\" филиал в Приуральском районе","8901025421","890801001",null,null,null,null,null,"Государственное бюджетное учреждение ЯНАО \"Ямалтур\"","8901019080","890101001",null,"ООО \"Гарант Энерго\"","7709782777","770901001",null,"ООО \"Гарант Энерго\"","7709782777","770901001"]
["Ново-Уренгойское ЛПУ МГ ООО \"Газпром трансгаз Сургут\"","8617002073","890403001","Ново-Уренгойское ЛПУ МГ ООО \"Газпром трансгаз Сургут\"","8617002073","890403001",null,"ООО \"Дизаж М\"","7728587330","772801001",null,"ООО \"Дизаж М\"","7728587330","772801001",null,"ООО \"Дизаж М\"","7728587330","772801001",null,"ОАО \"Ямал СПГ\"","7709602713","891450001",null,"ОАО \"Ямал СПГ\"","7709602713","891450001",null,"ОАО \"Ямал СПГ\"","7709602713","891450001",null,"ОАО \"Ямал СПГ\"","7709602713","891450001",null,"АО \"Ямалкоммунэнерго\" филиал в Приуральском районе","8901025421","890801001",null,null,null,null,null,"Закрытое акционерное общество \"Энергопромышленная компания\", г. Екатеринбург","6661105959","666101001",null,"ООО \"Геолог-Инвест\"","8901024146","890101001",null,"ООО \"Геолог-Инвест\"","8901024146","890101001"]
["Ново-Уренгойское ЛПУ МГ ООО \"Газпром трансгаз Сургут\"","8617002073","890403001","Ново-Уренгойское ЛПУ МГ ООО \"Газпром трансгаз Сургут\"","8617002073","890403001",null,"ООО \"ЕЭС-Гарант\"","5024173259","502401001",null,"ООО \"ЕЭС-Гарант\"","5024173259","502401001",null,"ООО \"ЕЭС-Гарант\"","5024173259","502401001",null,"ОАО \"Ямал СПГ\"","7709602713","891450001",null,"Общество с ограниченой ответственностью \"Газпромнефть-Ямал\"","8901001822","997250001",null,"ОАО \"Ямал СПГ\"","7709602713","891450001",null,"Общество с ограниченой ответственностью \"Газпромнефть-Ямал\"","8901001822","997250001",null,"АО \"Ямалкоммунэнерго\" филиал в Приуральском районе","8901025421","890801001",null,null,null,null,null,"ЗАО \"Дирекция по энергообеспечению Восточного промузла\"","7203009876","720301001",null,"ООО \"Дизаж М\"","7728587330","772801001",null,"ООО \"Дизаж М\"","7728587330","772801001"]
["Ноябрьский филиал АО \"Аэропорт Сургут\"","8602060523","890543001","Ноябрьский филиал АО \"Аэропорт Сургут\"","8602060523","890543001",null,"ООО \"Ижэнергосбыт\"","1834024515","184001001",null,"ООО \"Ижэнергосбыт\"","1834024515","184001001",null,"ООО \"Ижэнергосбыт\"","1834024515","184001001",null,"Общество с ограниченой ответственностью \"Газпромнефть-Ямал\"","8901001822","997250001",null,"Общество с ограниченой ответственностью \"Газпромнефть-Ямал\"","8901001822","997250001",null,"Общество с ограниченой ответственностью \"Газпромнефть-Ямал\"","8901001822","997250001",null,"Общество с ограниченой ответственностью \"Газпромнефть-Ямал\"","8901001822","997250001",null,"АО \"Ямалкоммунэнерго\" филиал в Приуральском районе","8901025421","890801001",null,null,null,null,null,"ЗАО \"Завод \"Сантехкомплект\"","7203039648","720301001",null,"ООО \"ЕЭС-Гарант\"","5024173259","502401001",null,"ООО \"ЕЭС-Гарант\"","5024173259","502401001"]
["ОАО \"Варьеганэнергонефть\"","8609003059","860901001","ОАО \"Варьеганэнергонефть\"","8609003059","860901001",null,"ООО \"Инженерные изыскания\"","1103029229","352801001",null,"ООО \"Инженерные изыскания\"","1103029229","352801001",null,"ООО \"Инженерные изыскания\"","1103029229","352801001",null,"Общество с ограниченой ответственностью \"Газпромнефть-Ямал\"","8901001822","997250001",null,"ООО \"Башнефть-Добыча\"","0277106840","025250001",null,"Общество с ограниченой ответственностью \"Газпромнефть-Ямал\"","8901001822","997250001",null,"ООО \"Башнефть-Добыча\"","0277106840","025250001",null,"АО \"Ямалкоммунэнерго\" филиал в Тазовском районе","8901025421","891000354",null,null,null,null,null,"ЗАО \"Завод \"Сантехкомплект\"","7203039648","720301001",null,"ООО \"Ижэнергосбыт\"","1834024515","184001001",null,"ООО \"Ижэнергосбыт\"","1834024515","184001001"]
["ОАО \"ГЭС\" г. Мегион","8605017251","860501001","ОАО \"ГЭС\" г. Мегион","8605017251","860501001",null,"ООО \"КНАУФ ЭНЕРГИЯ\"","7729677594","772901001",null,"ООО \"КНАУФ ЭНЕРГИЯ\"","7729677594","772901001",null,"ООО \"КНАУФ ЭНЕРГИЯ\"","7729677594","772901001",null,"ООО \"Башнефть-Добыча\"","0277106840","025250001",null,"ООО \"Башнефть-Добыча\"","0277106840","025250001",null,"ООО \"Башнефть-Добыча\"","0277106840","025250001",null,"ООО \"Башнефть-Добыча\"","0277106840","025250001",null,"АО \"Ямалкоммунэнерго\" филиал в Тазовском районе","8901025421","891000354",null,null,null,null,null,"ЗАО \"ЛУКОЙЛ-АИК\"","8608180070","860801001",null,"ООО \"Инженерные изыскания\"","1103029229","352801001",null,"ООО \"Инженерные изыскания\"","1103029229","352801001"]
["ОАО \"Пойковские электрические сети\"","8619013546","861901001","ОАО \"Пойковские электрические сети\"","8619013546","861901001",null,"ООО \"ЛУКОЙЛ-ЭНЕРГОСЕРВИС\"","5030040730","503001001",null,"ООО \"ЛУКОЙЛ-ЭНЕРГОСЕРВИС\"","5030040730","503001001",null,"ООО \"ЛУКОЙЛ-ЭНЕРГОСЕРВИС\"","5030040730","503001001",null,"ООО \"Башнефть-Добыча\"","0277106840","025250001",null,"ООО \"Газпром добыча Уренгой\"","8904034784","997250001",null,"ООО \"Башнефть-Добыча\"","0277106840","025250001",null,"ООО \"Газпром добыча Уренгой\"","8904034784","997250001",null,"АО \"Ямалкоммунэнерго\" филиал в Тазовском районе","8901025421","891000354",null,null,null,null,null,"ЗАО \"ЛУКОЙЛ-АИК\"","8608180070","860801001",null,"ООО \"КНАУФ ЭНЕРГИЯ\"","7729677594","772901001",null,"ООО \"КНАУФ ЭНЕРГИЯ\"","7729677594","772901001"]
["ОАО \"Радужнинские городские электрические сети\"","8609004670","860901001","ОАО \"Радужнинские городские электрические сети\"","8609004670","860901001",null,"ООО \"ЛУКОЙЛ-ЭНЕРГОСЕРВИС\"","5030040730","997650001",null,"ООО \"ЛУКОЙЛ-ЭНЕРГОСЕРВИС\"","5030040730","997650001",null,"ООО \"ЛУКОЙЛ-ЭНЕРГОСЕРВИС\"","5030040730","997650001",null,"ООО \"Газпром добыча Уренгой\"","8904034784","997250001",null,"ООО \"Газпром добыча Уренгой\"","8904034784","997250001",null,"ООО \"Газпром добыча Уренгой\"","8904034784","997250001",null,"ООО \"Газпром добыча Уренгой\"","8904034784","997250001",null,"АО \"Ямалкоммунэнерго\" филиал в Тазовском районе","8901025421","891000354",null,null,null,null,null,"ЗАО \"Энерго Сервис\"","7022014560","702201001",null,"ООО \"ЛУКОЙЛ-ЭНЕРГОСЕРВИС\"","5030040730","503001001",null,"ООО \"ЛУКОЙЛ-ЭНЕРГОСЕРВИС\"","5030040730","503001001"]
["ОАО \"РЖД\" Свердловская дирекция по энергообеспечению","7708503727","665945012","ОАО \"РЖД\" Свердловская дирекция по энергообеспечению","7708503727","665945012",null,"ООО \"ЛУКОЙЛ-ЭНЕРГОСЕТИ\"","5260230051","770901001",null,"ООО \"ЛУКОЙЛ-ЭНЕРГОСЕТИ\"","5260230051","770901001",null,"ООО \"ЛУКОЙЛ-ЭНЕРГОСЕТИ\"","5260230051","770901001",null,"ООО \"Газпром добыча Уренгой\"","8904034784","997250001",null,"ООО \"Газпром добыча Ямбург\" Филиал \"Ямбурское районное энергетическое управление\"","8904034777","890401001",null,"ООО \"Газпром добыча Уренгой\"","8904034784","997250001",null,"ООО \"Газпром добыча Ямбург\" Филиал \"Ямбурское районное энергетическое управление\"","8904034777","890401001",null,"АО \"Ямалкоммунэнерго\" филиал в Шурышкарском районе","8901025421","890701001",null,null,null,null,null,"ЗАО \"Энерго Сервис\"","7022014560","702201001",null,"ООО \"ЛУКОЙЛ-ЭНЕРГОСЕРВИС\"","5030040730","997650001",null,"ООО \"ЛУКОЙЛ-ЭНЕРГОСЕРВИС\"","5030040730","997650001"]
["ОАО \"РН-НЯГАНЬНЕФТЕГАЗ\"","8610010727","861001001","ОАО \"РН-НЯГАНЬНЕФТЕГАЗ\"","8610010727","861001001",null,"ООО \"ЛУКОЙЛ-ЭНЕРГОСЕТИ\"","5260230051","770901001",null,"ООО \"ЛУКОЙЛ-ЭНЕРГОСЕТИ\"","5260230051","770901001",null,"ООО \"ЛУКОЙЛ-ЭНЕРГОСЕТИ\"","5260230051","770901001",null,"ООО \"Газпром добыча Ямбург\" Филиал \"Ямбурское районное энергетическое управление\"","8904034777","890401001",null,"ООО \"Газпром добыча Ямбург\" Филиал \"Ямбурское районное энергетическое управление\"","8904034777","890401001",null,"ООО \"Газпром добыча Ямбург\" Филиал \"Ямбурское районное энергетическое управление\"","8904034777","890401001",null,"ООО \"Газпром добыча Ямбург\" Филиал \"Ямбурское районное энергетическое управление\"","8904034777","890401001",null,"АО \"Ямалкоммунэнерго\" филиал в Шурышкарском районе","8901025421","890701001",null,null,null,null,null,"ООО \"Городские электрические сети\"",8601070751,860101001,null,"ООО \"ЛУКОЙЛ-ЭНЕРГОСЕТИ\"","5260230051","770901001",null,"ООО \"ЛУКОЙЛ-ЭНЕРГОСЕТИ\"","5260230051","770901001"]
["ОАО \"Сибнефтепровод\"","7201000726","720301001","ОАО \"Сибнефтепровод\"","7201000726","720301001",null,"ООО \"МСК Энерго\"","7725567512","772901001",null,"ООО \"МСК Энерго\"","7725567512","772901001",null,"ООО \"МСК Энерго\"","7725567512","772901001",null,"ООО \"Газпром добыча Ямбург\" Филиал \"Ямбурское районное энергетическое управление\"","8904034777","890401001",null,"ООО \"Газпром трансгаз Югорск\"","8622000931","997250001",null,"ООО \"Газпром добыча Ямбург\" Филиал \"Ямбурское районное энергетическое управление\"","8904034777","890401001",null,"ООО \"Газпром трансгаз Югорск\"","8622000931","997250001",null,"АО \"Ямалкоммунэнерго\" филиал в Шурышкарском районе","8901025421","890701001",null,null,null,null,null,"МПП ЖКХ МО г. Лабытнанги \"Ямал\"","8902009197","890201001",null,"ООО \"ЛУКОЙЛ-ЭНЕРГОСЕТИ\"","5260230051","770901001",null,"ООО \"ЛУКОЙЛ-ЭНЕРГОСЕТИ\"","5260230051","770901001"]
["ОАО \"ТНК-Нягань\"","8610010727","997150001","ОАО \"ТНК-Нягань\"","8610010727","997150001",null,"ООО \"МагнитЭнерго\"","7715902899","231001001",null,"ООО \"МагнитЭнерго\"","7715902899","231001001",null,"ООО \"МагнитЭнерго\"","7715902899","231001001",null,"ООО \"Газпром трансгаз Югорск\"","8622000931","997250001",null,"ООО \"Газпром трансгаз Югорск\"","8622000931","997250001",null,"ООО \"Газпром трансгаз Югорск\"","8622000931","997250001",null,"ООО \"Газпром трансгаз Югорск\"","8622000931","997250001",null,"АО \"Ямалкоммунэнерго\" филиал в Ямальском районе","8901025421","890943001",null,null,null,null,null,"МПП ЖКХ МО г. Лабытнанги \"Ямал\"","8902009197","890201001",null,"ООО \"МСК Энерго\"","7725567512","772901001",null,"ООО \"МСК Энерго\"","7725567512","772901001"]
["ОАО \"Черногорэнерго\"","8620001023","860301001","ОАО \"Черногорэнерго\"","8620001023","860301001",null,"ООО \"МТС ЭНЕРГО\"","9709006506","772601001",null,"ООО \"МТС ЭНЕРГО\"","9709006506","772601001",null,"ООО \"МТС ЭНЕРГО\"","9709006506","772601001",null,"ООО \"Газпром трансгаз Югорск\"","8622000931","997250001",null,"ООО \"Газпромнефть-Хантос\"","8618006063","997150001",null,"ООО \"Газпром трансгаз Югорск\"","8622000931","997250001",null,"ООО \"Газпромнефть-Хантос\"","8618006063","997150001",null,"АО \"Ямалкоммунэнерго\" филиал в Ямальском районе","8901025421","890943001",null,null,null,null,null,"МПП ЖКХ МО г. Лабытнанги \"Ямал\"","8902009197","890201001",null,"ООО \"МагнитЭнерго\"","7715902899","231001001",null,"ООО \"МагнитЭнерго\"","7715902899","231001001"]
["ОАО \"ЮТЭК-Покачи\"","8621005479","862101001","ОАО \"ЮТЭК-Покачи\"","8621005479","862101001",null,"ООО \"Независимое энергосбытовое предприятие\"","8602171819","860201001",null,"ООО \"Независимое энергосбытовое предприятие\"","8602171819","860201001",null,"ООО \"Независимое энергосбытовое предприятие\"","8602171819","860201001",null,"ООО \"Газпромнефть-Хантос\"","8618006063","997150001",null,"ООО \"Газпромнефть-Хантос\"","8618006063","997150001",null,"ООО \"Газпромнефть-Хантос\"","8618006063","997150001",null,"ООО \"Газпромнефть-Хантос\"","8618006063","997150001",null,"АО \"Ямалкоммунэнерго\" филиал в Ямальском районе","8901025421","890943001",null,null,null,null,null,"МУП \"Байкаловский ККП\"","7223000825","722301001",null,"ООО \"МТС ЭНЕРГО\"","9709006506","772601001",null,"ООО \"МТС ЭНЕРГО\"","9709006506","772601001"]
["ОАО \"Ямал СПГ\"","7709602713","891450001","ОАО \"Ямал СПГ\"","7709602713","891450001",null,"ООО \"Нижневартовская энергосбытовая компания\"","8603109926","860301001",null,"ООО \"Нижневартовская энергосбытовая компания\"","8603109926","860301001",null,"ООО \"Нижневартовская энергосбытовая компания\"","8603109926","860301001",null,"ООО \"Газпромнефть-Хантос\"","8618006063","997150001",null,"ООО \"Газпромтранс\" (Ямальский филиал)","7728262893","890243001",null,"ООО \"Газпромнефть-Хантос\"","8618006063","997150001",null,"ООО \"Газпромтранс\" (Ямальский филиал)","7728262893","890243001",null,"АО \"Ямалкоммунэнерго\" филиал в Ямальском районе","8901025421","890943001",null,null,null,null,null,"МУП \"Управление энергоснабжения и инженерных сетей\"","8903028065","890301001",null,"ООО \"Независимое энергосбытовое предприятие\"","8602171819","860201001",null,"ООО \"Независимое энергосбытовое предприятие\"","8602171819","860201001"]
["ОАО \"Ямал СПГ\"","7709602713","891450001","ОАО \"Ямал СПГ\"","7709602713","891450001",null,"ООО \"Промэнергосбыт\"","7206036155","720601001",null,"ООО \"Промэнергосбыт\"","7206036155","720601001",null,"ООО \"Промэнергосбыт\"","7206036155","720601001",null,"ООО \"Газпромтранс\" (Ямальский филиал)","7728262893","890243001",null,"ООО \"Газпромтранс\" (Ямальский филиал)","7728262893","890243001",null,"ООО \"Газпромтранс\" (Ямальский филиал)","7728262893","890243001",null,"ООО \"Газпромтранс\" (Ямальский филиал)","7728262893","890243001",null,"АО \"Ямальская железнодорожная компания\"","8904042048","890401001",null,null,null,null,null,"МУП \"Управление энергоснабжения и инженерных сетей\"","8903028065","890301001",null,"ООО \"Нижневартовская энергосбытовая компания\"","8603109926","860301001",null,"ООО \"Нижневартовская энергосбытовая компания\"","8603109926","860301001"]
["ОАО ТТК \"КРОСНО\"","7203001250","720301001","ОАО ТТК \"КРОСНО\"","7203001250","720301001",null,"ООО \"ПрофСервисТрейд\"","7707820378","771401001",null,"ООО \"ПрофСервисТрейд\"","7707820378","771401001",null,"ООО \"ПрофСервисТрейд\"","7707820378","771401001",null,"ООО \"Газпромтранс\" (Ямальский филиал)","7728262893","890243001",null,"ООО \"Геолог-Инвест\"","8901024146","890101001",null,"ООО \"Газпромтранс\" (Ямальский филиал)","7728262893","890243001",null,"ООО \"Геолог-Инвест\"","8901024146","890101001",null,"АО Нижневартовская ГРЭС","8620018330","785150001",null,null,null,null,null,"МУП \"Управление энергоснабжения и инженерных сетей\"","8903028065","890301001",null,"ООО \"Промэнергосбыт\"","7206036155","720601001",null,"ООО \"Промэнергосбыт\"","7206036155","720601001"]
["Общество с ограниченой ответственностью \"Газпромнефть-Ямал\"","8901001822","997250001","Общество с ограниченой ответственностью \"Газпромнефть-Ямал\"","8901001822","997250001",null,"ООО \"Ратта\"","8912002352","891201001",null,"ООО \"Ратта\"","8912002352","891201001",null,"ООО \"Ратта\"","8912002352","891201001",null,"ООО \"Геолог-Инвест\"","8901024146","890101001",null,"ООО \"Геолог-Инвест\"","8901024146","890101001",null,"ООО \"Геолог-Инвест\"","8901024146","890101001",null,"ООО \"Геолог-Инвест\"","8901024146","890101001",null,"АО Нижневартовская ГРЭС","8620018330","785150001",null,null,null,null,null,"МУП \"Управление энергоснабжения и инженерных сетей\"","8903028065","890301001",null,"ООО \"ПрофСервисТрейд\"","7707820378","771401001",null,"ООО \"ПрофСервисТрейд\"","7707820378","771401001"]
["ООО \"Тюменская электросетевая компания\"","7204160220","720401001","ООО \" Тюменская электросетевая компания\"","7204160220","720401001",null,"ООО \"Региональная энергосбытовая компания\" (ОПП)","4633017746","463301001",null,"ООО \"Региональная энергосбытовая компания\" (ОПП)","4633017746","463301001",null,"ООО \"Региональная энергосбытовая компания\" (ОПП)","4633017746","463301001",null,"ООО \"Геолог-Инвест\"","8901024146","890101001",null,"ООО \"Западно-Малобалыкское\"","8619010665","997150001",null,"ООО \"Геолог-Инвест\"","8901024146","890101001",null,"ООО \"Западно-Малобалыкское\"","8619010665","997150001",null,"Блокстанции ТЭ","7200000000","720000001",null,null,null,null,null,"Ново-Уренгойское ЛПУ МГ ООО \"Газпром трансгаз Сургут\"","8617002073","890403001",null,"ООО \"Ратта\"","8912002352","891201001",null,"ООО \"Ратта\"","8912002352","891201001"]
["ООО \"Агентство Интеллект-Сервис\"","7202082778","720301001","ООО \"Агентство Интеллект-Сервис\"","7202082778","720301001",null,"ООО \"РН-Энерго\"","7706525041","997650001",null,"ООО \"РН-Энерго\"","7706525041","997650001",null,"ООО \"РН-Энерго\"","7706525041","997650001",null,"ООО \"Западно-Малобалыкское\"","8619010665","997150001",null,"ООО \"Западно-Малобалыкское\"","8619010665","997150001",null,"ООО \"Западно-Малобалыкское\"","8619010665","997150001",null,"ООО \"Западно-Малобалыкское\"","8619010665","997150001",null,"Блокстанции ТЭ","7200000000","720000001",null,null,null,null,null,"Ново-Уренгойское ЛПУ МГ ООО \"Газпром трансгаз Сургут\"","8617002073","890403001",null,"ООО \"Региональная энергосбытовая компания\" (ОПП)","4633017746","463301001",null,"ООО \"Региональная энергосбытовая компания\" (ОПП)","4633017746","463301001"]
["ООО \"Агропромэнергия\"","7224014468","722401001","ООО \"Агропромэнергия\"","7224014468","722401001",null,"ООО \"РУСЭНЕРГО\"","4401144416","770501001",null,"ООО \"РУСЭНЕРГО\"","4401144416","770501001",null,"ООО \"РУСЭНЕРГО\"","4401144416","770501001",null,"ООО \"Западно-Малобалыкское\"","8619010665","997150001",null,"ООО \"ЛУКОЙЛ-ЭНЕРГОСЕТИ\"","5260230051","770901001",null,"ООО \"Западно-Малобалыкское\"","8619010665","997150001",null,"ООО \"ЛУКОЙЛ-ЭНЕРГОСЕТИ\"","5260230051","770901001",null,"Государственное бюджетное учреждение ЯНАО \"Ямалтур\"","8901019080","890101001",null,null,null,null,null,"Ново-Уренгойское ЛПУ МГ ООО \"Газпром трансгаз Сургут\"","8617002073","890403001",null,"ООО \"РН-Энерго\"","7706525041","997650001",null,"ООО \"РН-Энерго\"","7706525041","997650001"]
["ООО \"Альтера\"","7203252461","720301001","ООО \"Альтера\"","7203252461","720301001",null,"ООО \"Русэнергоресурс\"","7706288496","770601001",null,"ООО \"Русэнергоресурс\"","7706288496","770601001",null,"ООО \"Русэнергоресурс\"","7706288496","770601001",null,"ООО \"ЛУКОЙЛ-ЭНЕРГОСЕТИ\"","5260230051","770901001",null,"ООО \"ЛУКОЙЛ-ЭНЕРГОСЕТИ\"","5260230051","770901001",null,"ООО \"ЛУКОЙЛ-ЭНЕРГОСЕТИ\"","5260230051","770901001",null,"ООО \"ЛУКОЙЛ-ЭНЕРГОСЕТИ\"","5260230051","770901001",null,"Государственное бюджетное учреждение ЯНАО \"Ямалтур\"","8901019080","890101001",null,null,null,null,null,"Ново-Уренгойское ЛПУ МГ ООО \"Газпром трансгаз Сургут\"","8617002073","890403001",null,"ООО \"РУСЭНЕРГО\"","4401144416","770501001",null,"ООО \"РУСЭНЕРГО\"","4401144416","770501001"]
["ООО \"Аэропорт Советский\"","8615001243","861501001","ООО \"Аэропорт Советский\"","8615001243","861501001",null,"ООО \"Русэнергосбыт\"","7706284124","770401001",null,"ООО \"Русэнергосбыт\"","7706284124","770401001",null,"ООО \"Русэнергосбыт\"","7706284124","770401001",null,"ООО \"ЛУКОЙЛ-ЭНЕРГОСЕТИ\"","5260230051","770901001",null,"ООО \"Ноябрьская ПГЭ\"","8905037499","890501001",null,"ООО \"ЛУКОЙЛ-ЭНЕРГОСЕТИ\"","5260230051","770901001",null,"ООО \"Ноябрьская ПГЭ\"","8905037499","890501001",null,"Государственное бюджетное учреждение ЯНАО \"Ямалтур\"","8901019080","890101001",null,null,null,null,null,"ОАО \"ОБОРОНЭНЕРГОСБЫТ\" филиал \"УРАЛЬСКИЙ\"","7704731218","720445001",null,"ООО \"Русэнергоресурс\"","7706288496","770601001",null,"ООО \"Русэнергоресурс\"","7706288496","770601001"]
["ООО \"Башнефть-Добыча\"","0277106840","025250001","ООО \"Башнефть-Добыча\"","0277106840","025250001",null,"ООО \"Самбургские электрические сети\"","8911024755","891101001",null,"ООО \"Самбургские электрические сети\"","8911024755","891101001",null,"ООО \"Самбургские электрические сети\"","8911024755","891101001",null,"ООО \"Ноябрьская ПГЭ\"","8905037499","890501001",null,"ООО \"Ноябрьская ПГЭ\"","8905037499","890501001",null,"ООО \"Ноябрьская ПГЭ\"","8905037499","890501001",null,"ООО \"Ноябрьская ПГЭ\"","8905037499","890501001",null,"Государственное бюджетное учреждение ЯНАО \"Ямалтур\"","8901019080","890101001",null,null,null,null,null,"ОАО \"Первая генерирующая компания оптового рынка электроэнергии\"","7203158282","770401001",null,"ООО \"Русэнергосбыт\"","7706284124","770401001",null,"ООО \"Русэнергосбыт\"","7706284124","770401001"]
["ООО \"Башнефть-Добыча\"","0277106840","027501001","ООО \"Башнефть-Добыча\"","0277106840","027501001",null,"ООО \"Самбургские электрические сети\"","8911024755","891101001",null,"ООО \"Самбургские электрические сети\"","8911024755","891101001",null,"ООО \"Самбургские электрические сети\"","8911024755","891101001",null,"ООО \"Ноябрьская ПГЭ\"","8905037499","890501001",null,"ООО \"Ратта\"","8912002352","891201001",null,"ООО \"Ноябрьская ПГЭ\"","8905037499","890501001",null,"ООО \"Ратта\"","8912002352","891201001",null,"ЕНЭС",null,null,null,null,null,null,null,"ОАО \"Первая генерирующая компания оптового рынка электроэнергии\"","7203158282","770401001",null,"ООО \"Самбургские электрические сети\"","8911024755","891101001",null,"ООО \"Самбургские электрические сети\"","8911024755","891101001"]
["ООО \"Белозерный газоперерабатывающий комплекс\"","8603138733","862450001","ООО \"Белозерный газоперерабатывающий комплекс\"","8603138733","862450001",null,"ООО \"СИБУР Тобольск\"","7206025040","720601001",null,"ООО \"СИБУР Тобольск\"","7206025040","720601001",null,"ООО \"СИБУР Тобольск\"","7206025040","720601001",null,"ООО \"Ратта\"","8912002352","891201001",null,"ООО \"Ратта\"","8912002352","891201001",null,"ООО \"Ратта\"","8912002352","891201001",null,"ООО \"Ратта\"","8912002352","891201001",null,"ЗАО \" Тюменский приборостроительный завод\"","7203000841","720301001",null,null,null,null,null,"ОАО \"Промышленная энергетика\"","7705736716","770501001",null,"ООО \"Самбургские электрические сети\"","8911024755","891101001",null,"ООО \"Самбургские электрические сети\"","8911024755","891101001"]
["ООО \"Газпром добыча Уренгой\"","8904034784","997250001","ООО \"Газпром добыча Уренгой\"","8904034784","997250001",null,"ООО \"СИБУР Тобольск\"","7206025040","720601001",null,"ООО \"СИБУР Тобольск\"","7206025040","720601001",null,"ООО \"СИБУР Тобольск\"","7206025040","720601001",null,"ООО \"Ратта\"","8912002352","891201001",null,"ООО \"РН-Уватнефтегаз\"","7225003194","722501001",null,"ООО \"Ратта\"","8912002352","891201001",null,"ООО \"РН-Уватнефтегаз\"","7225003194","722501001",null,"ЗАО \"Завод \"Сантехкомплект\"","7203039648","720301001",null,null,null,null,null,"ОАО \"Ростелеком\" Ханты-Мансийский филиал макрорегионального филиала \"Урал\"","7707049388","720332001",null,"ООО \"СИБУР Тобольск\"","7206025040","720601001",null,"ООО \"СИБУР Тобольск\"","7206025040","720601001"]
["ООО \"Газпром переработка\"","1102054991","780201001","ООО \"Газпром переработка\"","1102054991","780201001",null,"ООО \"Сургутская энергосбытовая компания\"","8602153048","860201001",null,"ООО \"Сургутская энергосбытовая компания\"","8602153048","860201001",null,"ООО \"Сургутская энергосбытовая компания\"","8602153048","860201001",null,"ООО \"РН-Уватнефтегаз\"","7225003194","722501001",null,"ООО \"РН-Уватнефтегаз\"","7225003194","722501001",null,"ООО \"РН-Уватнефтегаз\"","7225003194","722501001",null,"ООО \"РН-Уватнефтегаз\"","7225003194","722501001",null,"ЗАО \"Завод \"Сантехкомплект\"","7203039648","720301001",null,null,null,null,null,"ОАО \"Ростелеком\" Ханты-Мансийский филиал макрорегионального филиала \"Урал\"","7707049388","720332001",null,"ООО \"СИБУР Тобольск\"","7206025040","720601001",null,"ООО \"СИБУР Тобольск\"","7206025040","720601001"]
["ООО \"Газпром трансгаз Сургут\"","8617002073","997250001","ООО \"Газпром трансгаз Сургут\"","8617002073","997250001",null,"ООО \"Транснефтьэнерго\"","7703552167","772301001",null,"ООО \"Транснефтьэнерго\"","7703552167","772301001",null,"ООО \"Транснефтьэнерго\"","7703552167","772301001",null,"ООО \"РН-Уватнефтегаз\"","7225003194","722501001",null,"ООО \"Салым Петролеум\"","8619013320","861901001",null,"ООО \"РН-Уватнефтегаз\"","7225003194","722501001",null,"ООО \"Салым Петролеум\"","8619013320","861901001",null,"ЗАО \"Завод Тюменьремдормаш\"","7204005867","722401001",null,null,null,null,null,"ОАО \"Ростелеком\" Ханты-Мансийский филиал макрорегионального филиала \"Урал\"","7707049388","720332001",null,"ООО \"Сургутская энергосбытовая компания\"","8602153048","860201001",null,"ООО \"Сургутская энергосбытовая компания\"","8602153048","860201001"]
["ООО \"Газпром трансгаз Сургут\" Демьянское ЛПУ МГ","8617002073","722503003","ООО \"Газпром трансгаз Сургут\" Демьянское ЛПУ МГ","8617002073","722503003",null,"ООО \"ТРОЯН\"","7203433010","720301001",null,"ООО \"ТРОЯН\"","7203433010","720301001",null,"ООО \"ТРОЯН\"","7203433010","720301001",null,"ООО \"Салым Петролеум\"","8619013320","861901001",null,"ООО \"Салым Петролеум\"","8619013320","861901001",null,"ООО \"Салым Петролеум\"","8619013320","861901001",null,"ООО \"Салым Петролеум\"","8619013320","861901001",null,"ЗАО \"ЛУКОЙЛ-АИК\"","8608180070","860801001",null,null,null,null,null,"ОАО \"Северная энергетическая компания\"","8911019579","890501001",null,"ООО \"Транснефтьэнерго\"","7703552167","772301001",null,"ООО \"Транснефтьэнерго\"","7703552167","772301001"]
["ООО \"Газпром трансгаз Сургут\" Ишимское ЛПУ МГ","8617002073","720503001","ООО \"Газпром трансгаз Сургут\" Ишимское ЛПУ МГ","8617002073","720503001",null,"ООО \"Фотон\"","8910002438","890401001",null,"ООО \"Фотон\"","8910002438","890401001",null,"ООО \"Фотон\"","8910002438","890401001",null,"ООО \"Салым Петролеум\"","8619013320","861901001",null,"ООО \"Самбургские электрические сети\"","8911024755","891101001",null,"ООО \"Салым Петролеум\"","8619013320","861901001",null,"ООО \"Самбургские электрические сети\"","8911024755","891101001",null,"ЗАО \"ЛУКОЙЛ-АИК\"","8608180070","860801001",null,null,null,null,null,"ОАО \"ТНК-Нягань\"","8610010727","997150001",null,"ООО \"ТРОЯН\"","7203433010","720301001",null,"ООО \"ТРОЯН\"","7203433010","720301001"]
["ООО \"Газпром трансгаз Сургут\" Тобольское ЛПУ МГ","8617002073","720603002","ООО \"Газпром трансгаз Сургут\" Тобольское ЛПУ МГ","8617002073","720603002",null,"ООО \"Фотон\"","8910002438","890401001",null,"ООО \"Фотон\"","8910002438","890401001",null,"ООО \"Фотон\"","8910002438","890401001",null,"ООО \"Самбургские электрические сети\"","8911024755","891101001",null,"ООО \"Самбургские электрические сети\"","8911024755","891101001",null,"ООО \"Самбургские электрические сети\"","8911024755","891101001",null,"ООО \"Самбургские электрические сети\"","8911024755","891101001",null,"ЗАО \"Энерго Сервис\"","7022014560","702201001",null,null,null,null,null,"ОАО \"ТНК-Нягань\"","8610010727","997150001",null,"ООО \"Фотон\"","8910002438","890401001",null,"ООО \"Фотон\"","8910002438","890401001"]
["ООО \"Газпром трансгаз Сургут\" Туртасское ЛПУ МГ","8617002073","722503004","ООО \"Газпром трансгаз Сургут\" Туртасское ЛПУ МГ","8617002073","722503004",null,"ООО \"Энергетическая компания \"Урал Промышленный - Урал Полярный\"","8908002631","890801001",null,"ООО \"Энергетическая компания \"Урал Промышленный - Урал Полярный\"","8908002631","890801001",null,"ООО \"Энергетическая компания \"Урал Промышленный - Урал Полярный\"","8908002631","890801001",null,"ООО \"Самбургские электрические сети\"","8911024755","891101001",null,"ООО \"Северная ПЛЭС\"","7716605105","890345001",null,"ООО \"Самбургские электрические сети\"","8911024755","891101001",null,"ООО \"Северная ПЛЭС\"","7716605105","890345001",null,"ЗАО \"Энерго Сервис\"","7022014560","702201001",null,null,null,null,null,"ОАО \"Фортум\" (Тобольская ТЭЦ)","7203162698","720602001",null,"ООО \"Фотон\"","8910002438","890401001",null,"ООО \"Фотон\"","8910002438","890401001"]
["ООО \"Газпром трансгаз Сургут\" Ярковское ЛПУ МГ","8617002073","722943001","ООО \"Газпром трансгаз Сургут\" Ярковское ЛПУ МГ","8617002073","722943001",null,"ООО \"Энергокомплекс\"","7203394515","720301001",null,"ООО \"Энергокомплекс\"","7203394515","720301001",null,"ООО \"Энергокомплекс\"","7203394515","720301001",null,"ООО \"Северная ПЛЭС\"","7716605105","890345001",null,"ООО \"Северная ПЛЭС\"","7716605105","890345001",null,"ООО \"Северная ПЛЭС\"","7716605105","890345001",null,"ООО \"Северная ПЛЭС\"","7716605105","890345001",null,"АО \"Ханты-Мансийские городские электрические сети\"","8601073745",860101001,null,null,null,null,null,"ОАО \"Фортум\" (Тобольская ТЭЦ)","7203162698","720602001",null,"ООО \"Энергетическая компания \"Урал Промышленный - Урал Полярный\"","8908002631","890801001",null,"ООО \"Энергетическая компания \"Урал Промышленный - Урал Полярный\"","8908002631","890801001"]
["ООО \"Газпром трансгаз Югорск\"","8622000931","997250001","ООО \"Газпром трансгаз Югорск\"","8622000931","997250001",null,"ООО \"Энергопрогноз\"","3328454924","332801001",null,"ООО \"Энергопрогноз\"","3328454924","332801001",null,"ООО \"Энергопрогноз\"","3328454924","332801001",null,"ООО \"Северная ПЛЭС\"","7716605105","890345001",null,"ООО \"СИБУР Тобольск\"","7206025040","720601001",null,"ООО \"Северная ПЛЭС\"","7716605105","890345001",null,"ООО \"СИБУР Тобольск\"","7206025040","720601001",null,"МП \"Ханты-Мансийские городские электрические сети\" МО г. Ханты-Мансийск","8601065832","860101001",null,null,null,null,null,"ОАО \"Фортум\" (Тюменская ТЭЦ-1)","7203162698","720302001",null,"ООО \"Энергокомплекс\"","7203394515","720301001",null,"ООО \"Энергокомплекс\"","7203394515","720301001"]
["ООО \"Газпром трансгаз Югорск\"","8622000931","997250001","ООО \"Газпром трансгаз Югорск\"","8622000931","997250001",null,"ООО \"Энергосбытовая компания Черногорэнерго\"","8603126569","860301001",null,"ООО \"Энергосбытовая компания Черногорэнерго\"","8603126569","860301001",null,"ООО \"Энергосбытовая компания Черногорэнерго\"","8603126569","860301001",null,"ООО \"СИБУР Тобольск\"","7206025040","720601001",null,"ООО \"СИБУР Тобольск\"","7206025040","720601001",null,"ООО \"СИБУР Тобольск\"","7206025040","720601001",null,"ООО \"СИБУР Тобольск\"","7206025040","720601001",null,"МПП ЖКХ МО г. Лабытнанги \"Ямал\"","8902009197","890201001",null,null,null,null,null,"ОАО \"Фортум\" (Тюменская ТЭЦ-1)","7203162698","720302001",null,"ООО \"Энергопрогноз\"","3328454924","332801001",null,"ООО \"Энергопрогноз\"","3328454924","332801001"]
["ООО \"Газпром энерго\"","7736186950","773601001","ООО \"Газпром энерго\"","7736186950","773601001",null,"ООО \"ЭСК \"Независимость\"","7701383354","770801001",null,"ООО \"ЭСК \"Независимость\"","7701383354","770801001",null,"ООО \"ЭСК \"Независимость\"","7701383354","770801001",null,"ООО \"СИБУР Тобольск\"","7206025040","720601001",null,"ООО \"Соровскнефть\"","7202170632","720301001",null,"ООО \"СИБУР Тобольск\"","7206025040","720601001",null,"ООО \"Соровскнефть\"","7202170632","720301001",null,"Муниципальное предприятие \"Эксплуатационная генерирующая компания\"  муниципального образования городское поселение Приобье","8614008285","861401001",null,null,null,null,null,"ОАО \"Ямал СПГ\"","7709602713","891450001",null,"ООО \"Энергосбытовая компания Черногорэнерго\"","8603126569","860301001",null,"ООО \"Энергосбытовая компания Черногорэнерго\"","8603126569","860301001"]
["ООО \"Газпромнефть-Хантос\"","8618006063","997150001","ООО \"Газпромнефть-Хантос\"","8618006063","997150001",null,"ООО \"Ямал-Энерго\"","8912002546","891201001",null,"ООО \"Ямал-Энерго\"","8912002546","891201001",null,"ООО \"Ямал-Энерго\"","8912002546","891201001",null,"ООО \"Соровскнефть\"","7202170632","720301001",null,"ООО \"Соровскнефть\"","7202170632","720301001",null,"ООО \"Соровскнефть\"","7202170632","720301001",null,"ООО \"Соровскнефть\"","7202170632","720301001",null,"МУП \"Байкаловский ККП\"","7223000825","722301001",null,null,null,null,null,"ОАО \"Ямал СПГ\"","7709602713","891450001",null,"ООО \"ЭСК \"Независимость\"","7701383354","770801001",null,"ООО \"ЭСК \"Независимость\"","7701383354","770801001"]
["ООО \"Газпромтранс\" (Ямальский филиал)","7728262893","890243001","ООО \"Газпромтранс\" (Ямальский филиал)","7728262893","890243001",null,"ООО \"Ямал-Энерго\"","8912002546","891201001",null,"ООО \"Ямал-Энерго\"","8912002546","891201001",null,"ООО \"Ямал-Энерго\"","8912002546","891201001",null,"ООО \"Соровскнефть\"","7202170632","720301001",null,"ООО \"Тобольская ТЭЦ\"","7206048859","720601001",null,"ООО \"Соровскнефть\"","7202170632","720301001",null,"ООО \"Тобольская ТЭЦ\"","7206048859","720601001",null,"МУП \"Надымские городские электрические сети\"","8903030850","890301001",null,null,null,null,null,"ОАО \"Ямал СПГ\"","7709602713","891450001",null,"ООО \"Ямал-Энерго\"","8912002546","891201001",null,"ООО \"Ямал-Энерго\"","8912002546","891201001"]
["ООО \"Газпромтранс\" (Ямальский филиал)","7728262893","890243001","ООО \"Газпромтранс\" (Ямальский филиал)","7728262893","890243001",null,"ООО «РЭК»","7714974474","645401001",null,"ООО «РЭК»","7714974474","645401001",null,"ООО «РЭК»","7714974474","645401001",null,"ООО \"Тобольская ТЭЦ\"","7206048859","720601001",null,"ООО \"Тобольская ТЭЦ\"","7206048859","720601001",null,"ООО \"Тобольская ТЭЦ\"","7206048859","720601001",null,"ООО \"Тобольская ТЭЦ\"","7206048859","720601001",null,"МУП \"Сургутские районные электрические сети\" МО Сургутский район","8617017320","861701001",null,null,null,null,null,"ОАО \"Ямал СПГ\"","7709602713","891450001",null,"ООО \"Ямал-Энерго\"","8912002546","891201001",null,"ООО \"Ямал-Энерго\"","8912002546","891201001"]
["ООО \"Геолог-Инвест\"","8901024146","890101001","ООО \"Геолог-Инвест\"","8901024146","890101001",null,"ООО ЭК \"Тепло-Водо-Электро-Сервис\"","8912002592","891201001",null,"ООО ЭК \"Тепло-Водо-Электро-Сервис\"","8912002592","891201001",null,"ООО ЭК \"Тепло-Водо-Электро-Сервис\"","8912002592","891201001",null,"ООО \"Тобольская ТЭЦ\"","7206048859","720601001",null,"ООО \"Фотон\"","8910002438","890401001",null,"ООО \"Тобольская ТЭЦ\"","7206048859","720601001",null,"ООО \"Фотон\"","8910002438","890401001",null,"МУП \"Управление энергоснабжения и инженерных сетей\"","8903028065","890301001",null,null,null,null,null,"ОАО «ЭСК РусГидро»","7804403972","772801001",null,"ООО «РЭК»","7714974474","645401001",null,"ООО «РЭК»","7714974474","645401001"]
["ООО \"Дака\"","7224003201","720301001","ООО \"Дака\"","7224003201","720301001",null,"ООО ЭК \"Тепло-Водо-Электро-Сервис\"","8912002592","891201001",null,"ООО ЭК \"Тепло-Водо-Электро-Сервис\"","8912002592","891201001",null,"ООО ЭК \"Тепло-Водо-Электро-Сервис\"","8912002592","891201001",null,"ООО \"Фотон\"","8910002438","890401001",null,"ООО \"Фотон\"","8910002438","890401001",null,"ООО \"Фотон\"","8910002438","890401001",null,"ООО \"Фотон\"","8910002438","890401001",null,"МУП \"Управление энергоснабжения и инженерных сетей\"","8903028065","890301001",null,null,null,null,null,"Общество с ограниченной ответственностью «Энергосбытовая компания»","0275075272","027501001",null,"ООО ЭК \"Тепло-Водо-Электро-Сервис\"","8912002592","891201001",null,"ООО ЭК \"Тепло-Водо-Электро-Сервис\"","8912002592","891201001"]
["ООО \"ДОК-Энерго\"","7204129541","720301001","ООО \"ДОК-Энерго\"","7204129541","720301001",null,"ООО Энергосбытовая компания \"Аган\",г.Радужный","8609018048","860901001",null,"ООО Энергосбытовая компания \"Аган\",г.Радужный","8609018048","860901001",null,"ООО Энергосбытовая компания \"Аган\",г.Радужный","8609018048","860901001",null,"ООО \"Фотон\"","8910002438","890401001",null,"ООО \"Энергетическая компания \"Урал Промышленный - Урал Полярный\"","8908002631","890801001",null,"ООО \"Фотон\"","8910002438","890401001",null,"ООО \"Энергетическая компания \"Урал Промышленный - Урал Полярный\"","8908002631","890801001",null,"МУП \"Управление энергоснабжения и инженерных сетей\"","8903028065","890301001",null,null,null,null,null,"Общество с ограниченой ответственностью \"Газпромнефть-Ямал\"","8901001822","997250001",null,"ООО ЭК \"Тепло-Водо-Электро-Сервис\"","8912002592","891201001",null,"ООО ЭК \"Тепло-Водо-Электро-Сервис\"","8912002592","891201001"]
["ООО \"Дорстрой\"","7204080494","720301001","ООО \"Дорстрой\"","7204080494","720301001",null,"ПАО \"Передвижная энергетика\" филиал \"ПЭС Лабытнанги\"","7719019846","890202001",null,"ПАО \"Передвижная энергетика\" филиал \"ПЭС Лабытнанги\"","7719019846","890202001",null,"ПАО \"Передвижная энергетика\" филиал \"ПЭС Лабытнанги\"","7719019846","890202001",null,"ООО \"Энергетическая компания \"Урал Промышленный - Урал Полярный\"","8908002631","890801001",null,"ООО \"Энергетическая компания \"Урал Промышленный - Урал Полярный\"","8908002631","890801001",null,"ООО \"Энергетическая компания \"Урал Промышленный - Урал Полярный\"","8908002631","890801001",null,"ООО \"Энергетическая компания \"Урал Промышленный - Урал Полярный\"","8908002631","890801001",null,"МУП \"Управление энергоснабжения и инженерных сетей\"","8903028065","890301001",null,null,null,null,null,"Общество с ограниченой ответственностью \"Газпромнефть-Ямал\"","8901001822","997250001",null,"ООО Энергосбытовая компания \"Аган\",г.Радужный","8609018048","860901001",null,"ООО Энергосбытовая компания \"Аган\",г.Радужный","8609018048","860901001"]
["ООО \"ДСК-Энерго\"","7203144385","720301001","ООО \"ДСК-Энерго\"","7203144385","720301001",null,"ПАО \"Передвижная энергетика\" филиал \"ПЭС Лабытнанги\"","7719019846","890202001",null,"ПАО \"Передвижная энергетика\" филиал \"ПЭС Лабытнанги\"","7719019846","890202001",null,"ПАО \"Передвижная энергетика\" филиал \"ПЭС Лабытнанги\"","7719019846","890202001",null,"ООО \"Энергетическая компания \"Урал Промышленный - Урал Полярный\"","8908002631","890801001",null,"ООО \"Ямал-Энерго\"","8912002546","891201001",null,"ООО \"Энергетическая компания \"Урал Промышленный - Урал Полярный\"","8908002631","890801001",null,"ООО \"Ямал-Энерго\"","8912002546","891201001",null,"Надымский филиал ООО \"Газпром энерго\"","7736186950","890302001",null,null,null,null,null,"ООО \"АГГРЕКО ЕВРАЗИЯ\"","7705838531","720301001",null,"Оптовый рынок",null,null,null,"ПАО \"Передвижная энергетика\" филиал \"ПЭС Лабытнанги\"","7719019846","890202001"]
["ООО \"Западно-Малобалыкское\"","8619010665","997150001","ООО \"Западно-Малобалыкское\"","8619010665","997150001",null,"ПАО \"Фортум\"","7203162698","997150001",null,"ПАО \"Фортум\"","7203162698","997150001",null,"ПАО \"Фортум\"","7203162698","997150001",null,"ООО \"Ямал-Энерго\"","8912002546","891201001",null,"ООО \"Ямал-Энерго\"","8912002546","891201001",null,"ООО \"Ямал-Энерго\"","8912002546","891201001",null,"ООО \"Ямал-Энерго\"","8912002546","891201001",null,"Ново-Уренгойское ЛПУ МГ ООО \"Газпром трансгаз Сургут\"","8617002073","890403001",null,null,null,null,null,"ООО \"Альянс-Энергджи\" Стрежевской филиал","7709843116","770401001",null,"ПАО \"Передвижная энергетика\" филиал \"ПЭС Лабытнанги\"","7719019846","890202001",null,"ПАО \"Передвижная энергетика\" филиал \"ПЭС Лабытнанги\"","7719019846","890202001"]
["ООО \"ИНТЕГРУС\"","7202190565","720201001","ООО \"ИНТЕГРУС\"","7202190565","720201001",null,"ПАО \"Фортум\" (Няганская ГРЭС)","7203162698","861002001",null,"ПАО \"Фортум\" (Няганская ГРЭС)","7203162698","861002001",null,"ПАО \"Фортум\" (Няганская ГРЭС)","7203162698","861002001",null,"ООО \"Ямал-Энерго\"","8912002546","891201001",null,"ООО ЭК \"Тепло-Водо-Электро-Сервис\"","8912002592","891201001",null,"ООО \"Ямал-Энерго\"","8912002546","891201001",null,"ООО ЭК \"Тепло-Водо-Электро-Сервис\"","8912002592","891201001",null,"Ново-Уренгойское ЛПУ МГ ООО \"Газпром трансгаз Сургут\"","8617002073","890403001",null,null,null,null,null,"ООО \"Башнефть-Добыча\"","0277106840","025250001",null,"ПАО \"Передвижная энергетика\" филиал \"ПЭС Лабытнанги\"","7719019846","890202001",null,"ПАО \"Фортум\"","7203162698","997150001"]
["ООО \"ЛУКОЙЛ-ЭНЕРГОСЕТИ\"","5260230051","525350001","ООО \"ЛУКОЙЛ-ЭНЕРГОСЕТИ\"","5260230051","525350001",null,"РЭУ  ОАО \"Запсибгазпром\"","7203001796","720345001",null,"РЭУ  ОАО \"Запсибгазпром\"","7203001796","720345001",null,"Прямой договор",null,null,null,"ООО ЭК \"Тепло-Водо-Электро-Сервис\"","8912002592","891201001",null,"ООО ЭК \"Тепло-Водо-Электро-Сервис\"","8912002592","891201001",null,"ООО ЭК \"Тепло-Водо-Электро-Сервис\"","8912002592","891201001",null,"ООО ЭК \"Тепло-Водо-Электро-Сервис\"","8912002592","891201001",null,"Ново-Уренгойское ЛПУ МГ ООО \"Газпром трансгаз Сургут\"","8617002073","890403001",null,null,null,null,null,"ООО \"Башнефть-Добыча\"","0277106840","025250001",null,"ПАО \"Фортум\"","7203162698","997150001",null,"ПАО \"Фортум\" (Няганская ГРЭС)","7203162698","861002001"]
["ООО \"ЛУКОЙЛ-ЭНЕРГОСЕТИ\"","5260230051","770901001","ООО \"ЛУКОЙЛ-ЭНЕРГОСЕТИ\"","5260230051","770901001",null,"Свердловский филиал ООО \"ЕЭС-Гарант\"","5024173259","667043001",null,"Свердловский филиал ООО \"ЕЭС-Гарант\"","5024173259","667043001",null,"РЭУ  ОАО \"Запсибгазпром\"","7203001796","720345001",null,"ООО ЭК \"Тепло-Водо-Электро-Сервис\"","8912002592","891201001",null,"ПАО \"Передвижная энергетика\"","7719019846","771901001",null,"ООО ЭК \"Тепло-Водо-Электро-Сервис\"","8912002592","891201001",null,"ПАО \"Передвижная энергетика\"","7719019846","771901001",null,"Ново-Уренгойское ЛПУ МГ ООО \"Газпром трансгаз Сургут\"","8617002073","890403001",null,null,null,null,null,"ООО \"Газпром добыча Уренгой\"","8904034784","997250001",null,"ПАО \"Фортум\" (Няганская ГРЭС)","7203162698","861002001",null,"Прочие конечные потребители"]
["ООО \"ЛУКОЙЛ-ЭНЕРГОСЕТИ\"","5260230051","770901001","ООО \"ЛУКОЙЛ-ЭНЕРГОСЕТИ\"","5260230051","770901001",null,"Управление \"Ямалэнергогаз\" ООО \"Газпром добыча Надым\"","8903019871","890303004",null,"Управление \"Ямалэнергогаз\" ООО \"Газпром добыча Надым\"","8903019871","890303004",null,"Свердловский филиал ООО \"ЕЭС-Гарант\"","5024173259","667043001",null,"ПАО \"Передвижная энергетика\"","7719019846","771901001",null,"ПАО \"Передвижная энергетика\"","7719019846","771901001",null,"ПАО \"Передвижная энергетика\"","7719019846","771901001",null,"ПАО \"Передвижная энергетика\"","7719019846","771901001",null,"Ноябрьский филиал АО \"Аэропорт Сургут\"","8602060523","890543001",null,null,null,null,null,"ООО \"Газпром добыча Уренгой\"","8904034784","997250001",null,"РЭУ  ОАО \"Запсибгазпром\"","7203001796","720345001",null,"РЭУ  ОАО \"Запсибгазпром\"","7203001796","720345001"]
["ООО \"Луч-Электро\"","8603097124","860301001","ООО \"Луч-Электро\"","8603097124","860301001",null,"Управление \"Ямалэнергогаз\" ООО \"Газпром добыча Надым\"","8903019871","890303004",null,"Управление \"Ямалэнергогаз\" ООО \"Газпром добыча Надым\"","8903019871","890303004",null,"Управление \"Ямалэнергогаз\" ООО \"Газпром добыча Надым\"","8903019871","890303004",null,"ПАО \"Передвижная энергетика\"","7719019846","771901001",null,"ПАО \"Передвижная энергетика\"  филиал ПЭС \"Уренгой\"","7719019846","890402001",null,"ПАО \"Передвижная энергетика\"","7719019846","771901001",null,"ПАО \"Передвижная энергетика\"  филиал ПЭС \"Уренгой\"","7719019846","890402001",null,"ОАО \"Варьеганэнергонефть\"","8609003059","860901001",null,null,null,null,null,"ООО \"Газпром добыча Ямбург\" Филиал \"Ямбурское районное энергетическое управление\"","8904034777","890401001",null,"Свердловский филиал ООО \"ЕЭС-Гарант\"","5024173259","667043001",null,"Свердловский филиал ООО \"ЕЭС-Гарант\"","5024173259","667043001"]
["ООО \"Мегионэнергонефть\"","8605016890","860501001","ООО \"Мегионэнергонефть\"","8605016890","860501001",null,"филиал - Надымское нефтегазодобывающее управление ООО \"Газпром Добыча Надым\"","8903019871","890303005",null,"филиал - Надымское нефтегазодобывающее управление ООО \"Газпром Добыча Надым\"","8903019871","890303005",null,"Управление \"Ямалэнергогаз\" ООО \"Газпром добыча Надым\"","8903019871","890303004",null,"ПАО \"Передвижная энергетика\"  филиал ПЭС \"Уренгой\"","7719019846","890402001",null,"ПАО \"Передвижная энергетика\"  филиал ПЭС \"Уренгой\"","7719019846","890402001",null,"ПАО \"Передвижная энергетика\"  филиал ПЭС \"Уренгой\"","7719019846","890402001",null,"ПАО \"Передвижная энергетика\"  филиал ПЭС \"Уренгой\"","7719019846","890402001",null,"ОАО \"ГЭС\" г. Мегион","8605017251","860501001",null,null,null,null,null,"ООО \"Газпром добыча Ямбург\" Филиал \"Ямбурское районное энергетическое управление\"","8904034777","890401001",null,"Управление \"Ямалэнергогаз\" ООО \"Газпром добыча Надым\"","8903019871","890303004",null,"Управление \"Ямалэнергогаз\" ООО \"Газпром добыча Надым\"","8903019871","890303004"]
["ООО \"МинЭл\"","8614008550","861401001","ООО \"МинЭл\"","8614008550","861401001",null,"филиал - Надымское нефтегазодобывающее управление ООО \"Газпром Добыча Надым\"","8903019871","890303005",null,"филиал - Надымское нефтегазодобывающее управление ООО \"Газпром Добыча Надым\"","8903019871","890303005",null,"филиал - Надымское нефтегазодобывающее управление ООО \"Газпром Добыча Надым\"","8903019871","890303005",null,"ПАО \"Передвижная энергетика\"  филиал ПЭС \"Уренгой\"","7719019846","890402001",null,"ПАО \"Передвижная энергетика\" филиал \"ПЭС Казым\"","7719019846","861102001",null,"ПАО \"Передвижная энергетика\"  филиал ПЭС \"Уренгой\"","7719019846","890402001",null,"ПАО \"Передвижная энергетика\" филиал \"ПЭС Казым\"","7719019846","861102001",null,"ОАО \"Первая генерирующая компания оптового рынка электроэнергии\"","7203158282","770401001",null,null,null,null,null,"ООО \"Газпром добыча Ямбург\" Филиал \"Ямбурское районное энергетическое управление\"","8904034777","890401001",null,"Управление \"Ямалэнергогаз\" ООО \"Газпром добыча Надым\"","8903019871","890303004",null,"Управление \"Ямалэнергогаз\" ООО \"Газпром добыча Надым\"","8903019871","890303004"]
["ООО \"Нижневартовский газоперерабатывающий комплекс\"","8603138726","862450001","ООО \"Нижневартовский газоперерабатывающий комплекс\"","8603138726","862450001",null,null,null,null,null,null,null,null,null,"филиал - Надымское нефтегазодобывающее управление ООО \"Газпром Добыча Надым\"","8903019871","890303005",null,"ПАО \"Передвижная энергетика\" филиал \"ПЭС Казым\"","7719019846","861102001",null,"ПАО \"Передвижная энергетика\" филиал \"ПЭС Казым\"","7719019846","861102001",null,"ПАО \"Передвижная энергетика\" филиал \"ПЭС Казым\"","7719019846","861102001",null,"ПАО \"Передвижная энергетика\" филиал \"ПЭС Казым\"","7719019846","861102001",null,"ОАО \"Первая генерирующая компания оптового рынка электроэнергии\"","7203158282","770401001",null,null,null,null,null,"ООО \"Газпром трансгаз Югорск\"","8622000931","997250001",null,"филиал - Надымское нефтегазодобывающее управление ООО \"Газпром Добыча Надым\"","8903019871","890303005",null,"филиал - Надымское нефтегазодобывающее управление ООО \"Газпром Добыча Надым\"","8903019871","890303005"]
["ООО \"Нижневартовскэнергонефть\"","8603104220","862450001","ООО \"Нижневартовскэнергонефть\"","8603104220","862450001",null,null,null,null,null,null,null,null,null,null,null,null,null,"ПАО \"Передвижная энергетика\" филиал \"ПЭС Казым\"","7719019846","861102001",null,"ПАО \"Передвижная энергетика\" филиал \"ПЭС Лабытнанги\"","7719019846","890202001",null,"ПАО \"Передвижная энергетика\" филиал \"ПЭС Казым\"","7719019846","861102001",null,"ПАО \"Передвижная энергетика\" филиал \"ПЭС Лабытнанги\"","7719019846","890202001",null,"ОАО \"Пойковские электрические сети\"","8619013546","861901001",null,null,null,null,null,"ООО \"Газпром трансгаз Югорск\"","8622000931","997250001",null,"филиал - Надымское нефтегазодобывающее управление ООО \"Газпром Добыча Надым\"","8903019871","890303005",null,"филиал - Надымское нефтегазодобывающее управление ООО \"Газпром Добыча Надым\"","8903019871","890303005"]
["ООО \"Газпромнефть Энергосистемы\"","8905032490","891450001","ООО \"Газпромнефть Энергосистемы\"","8905032490","891450001",null,null,null,null,null,null,null,null,null,null,null,null,null,"ПАО \"Передвижная энергетика\" филиал \"ПЭС Лабытнанги\"","7719019846","890202001",null,"ПАО \"Передвижная энергетика\" филиал \"ПЭС Лабытнанги\"","7719019846","890202001",null,"ПАО \"Передвижная энергетика\" филиал \"ПЭС Лабытнанги\"","7719019846","890202001",null,"ПАО \"Передвижная энергетика\" филиал \"ПЭС Лабытнанги\"","7719019846","890202001",null,"ОАО \"Радужнинские городские электрические сети\"","8609004670","860901001",null,null,null,null,null,"ООО \"Газпром трансгаз Югорск\"","8622000931","997250001"]
["ООО \"Региональная энергетическая компания\"","7203412147","720301001","ООО \"Региональная энергетическая компания\"","7203412147","720301001",null,null,null,null,null,null,null,null,null,null,null,null,null,"ПАО \"Передвижная энергетика\" филиал \"ПЭС Лабытнанги\"","7719019846","890202001",null,"ПАО \"Славнефть-Мегионнефтегаз\"","8605003932","860501001",null,"ПАО \"Передвижная энергетика\" филиал \"ПЭС Лабытнанги\"","7719019846","890202001",null,"ПАО \"Славнефть-Мегионнефтегаз\"","8605003932","860501001",null,"ОАО \"РЖД\" Свердловская дирекция по энергообеспечению","7708503727","665945012",null,null,null,null,null,"ООО \"Газпром трансгаз Югорск\"","8622000931","997250001"]
["ООО \"Ремэнергостройсервис\"","7224023014","722401001","ООО \"Ремэнергостройсервис\"","7224023014","722401001",null,null,null,null,null,null,null,null,null,null,null,null,null,"ПАО \"Славнефть-Мегионнефтегаз\"","8605003932","860501001",null,"ПАО \"Славнефть-Мегионнефтегаз\"","8605003932","860501001",null,"ПАО \"Славнефть-Мегионнефтегаз\"","8605003932","860501001",null,"ПАО \"Славнефть-Мегионнефтегаз\"","8605003932","860501001",null,"ОАО \"РН-НЯГАНЬНЕФТЕГАЗ\"","8610010727","861001001",null,null,null,null,null,"ООО \"Газпром энергосбыт Брянск\"","8602173527","785150001"]
["ООО \"РН - Юганскнефтегаз\"","8604035473","997150001","ООО \"РН - Юганскнефтегаз\"","8604035473","997150001",null,null,null,null,null,null,null,null,null,null,null,null,null,"ПАО \"Славнефть-Мегионнефтегаз\"","8605003932","860501001",null,"ПАО \"Сургутнефтегаз\"","8602060555","997250001",null,"ПАО \"Славнефть-Мегионнефтегаз\"","8605003932","860501001",null,"ПАО \"Сургутнефтегаз\"","8602060555","997250001",null,"ОАО \"Ростелеком\" Ханты-Мансийский филиал макрорегионального филиала \"Урал\"","7707049388","720332001",null,null,null,null,null,"ООО \"Газпромнефть-Хантос\"","8618006063","997150001"]
["ООО \"РН - Юганскнефтегаз\"","8604035473","997250001","ООО \"РН - Юганскнефтегаз\"","8604035473","997250001",null,null,null,null,null,null,null,null,null,null,null,null,null,"ПАО \"Сургутнефтегаз\"","8602060555","997250001",null,"ПАО \"Сургутнефтегаз\"","8602060555","997250001",null,"ПАО \"Сургутнефтегаз\"","8602060555","997250001",null,"ПАО \"Сургутнефтегаз\"","8602060555","997250001",null,"ОАО \"Ростелеком\" Ханты-Мансийский филиал макрорегионального филиала \"Урал\"","7707049388","720332001",null,null,null,null,null,"ООО \"Газпромнефть-Хантос\"","8618006063","997150001"]
["ООО \"Русская тепловая компания\"","8602062560","860201001","ООО \"Русская тепловая компания\"","8602062560","860201001",null,null,null,null,null,null,null,null,null,null,null,null,null,"ПАО \"Сургутнефтегаз\"","8602060555","997250001",null,"ПАО \"Фортум\"","7203162698","745301001",null,"ПАО \"Сургутнефтегаз\"","8602060555","997250001",null,"ПАО \"Фортум\"","7203162698","745301001",null,"ОАО \"Сибнефтепровод\"","7201000726","720301001",null,null,null,null,null,"ООО \"Газпромтранс\" (Ямальский филиал)","7728262893","890243001"]
["ООО \"Самбургские электрические сети\"","8911024755","891101001","ООО \"Самбургские электрические сети\"","8911024755","891101001",null,null,null,null,null,null,null,null,null,null,null,null,null,"ПАО \"Фортум\"","7203162698","745301001",null,"ПАО \"Фортум\"","7203162698","997150001",null,"ПАО \"Фортум\"","7203162698","745301001",null,"ПАО \"Фортум\"","7203162698","997150001",null,"ОАО \"ТНК-Нягань\"","8610010727","997150001",null,null,null,null,null,"ООО \"Газпромтранс\" (Ямальский филиал)","7728262893","890243001"]
["ООО \"Самбургские электрические сети\"","8911024755","891101001","ООО \"Самбургские электрические сети\"","8911024755","891101001",null,null,null,null,null,null,null,null,null,null,null,null,null,"ПАО \"Фортум\"","7203162698","997150001",null,"ПАО \"Фортум\"","7203162698","745301001",null,"ПАО \"Фортум\"","7203162698","997150001",null,"ПАО \"Фортум\"","7203162698","745301001",null,"ОАО \"ТНК-Нягань\"","8610010727","997150001",null,null,null,null,null,"ООО \"Газпромтранс\" (Ямальский филиал)","7728262893","890243001"]
["ООО \"Северремприбор\"","8602248187","860201001","ООО \"Северремприбор\"","8602248187","860201001",null,null,null,null,null,null,null,null,null,null,null,null,null,"ПАО \"Фортум\"","7203162698","745301001",null,"ПАО \"Фортум\"","7203162698","997150001",null,"ПАО \"Фортум\"","7203162698","745301001",null,"ПАО \"Фортум\"","7203162698","997150001",null,"ОАО \"ТНК-Нягань\"","8610010727","997150001",null,null,null,null,null,"ООО \"Газпромтранс\" (Ямальский филиал)","7728262893","890243001"]
["ООО \"СеверСетьРазвитие\"","8901021265","667101001","ООО \"СеверСетьРазвитие\"","8901021265","667101001",null,null,null,null,null,null,null,null,null,null,null,null,null,"ПАО \"Фортум\"","7203162698","997150001",null,"ПАО \"Фортум\" (Няганская ГРЭС)","7203162698","861002001",null,"ПАО \"Фортум\"","7203162698","997150001",null,"ПАО \"Фортум\" (Няганская ГРЭС)","7203162698","861002001",null,"ОАО \"Фортум\" (Тобольская ТЭЦ)","7203162698","720602001",null,null,null,null,null,"ООО \"Гарант Энерго\"","7709782777","770901001"]
["ООО \"Сетевая компания \"Вектор\"","7204143715","720301001","ООО \"Сетевая компания \"Вектор\"","7204143715","720301001",null,null,null,null,null,null,null,null,null,null,null,null,null,"ПАО \"Фортум\" (Няганская ГРЭС)","7203162698","861002001",null,"ПАО \"Фортум\" (Няганская ГРЭС)","7203162698","861002001",null,"ПАО \"Фортум\" (Няганская ГРЭС)","7203162698","861002001",null,"ПАО \"Фортум\" (Няганская ГРЭС)","7203162698","861002001",null,"ОАО \"Фортум\" (Тобольская ТЭЦ)","7203162698","720602001",null,null,null,null,null,"ООО \"Геолог-Инвест\"","8901024146","890101001"]
["ООО \"Сибирь-Электро\"","7224035725","722401001","ООО \"Сибирь-Электро\"","7224035725","722401001",null,null,null,null,null,null,null,null,null,null,null,null,null,"ПАО \"Фортум\" (Няганская ГРЭС)","7203162698","861002001",null,"ПИИ ОАО \"Газтурбосервис\"","7203078728","720301001",null,"ПАО \"Фортум\" (Няганская ГРЭС)","7203162698","861002001",null,"ПИИ ОАО \"Газтурбосервис\"","7203078728","720301001",null,"ОАО \"Фортум\" (Тюменская ТЭЦ-1)","7203162698","720302001",null,null,null,null,null,"ООО \"Геолог-Инвест\"","8901024146","890101001"]
["ООО \"Сибтрансэлектро\"","8604010454","860401001","ООО \"Сибтрансэлектро\"","8604010454","860401001",null,null,null,null,null,null,null,null,null,null,null,null,null,"ПИИ ОАО \"Газтурбосервис\"","7203078728","720301001",null,"ПИИ ОАО \"Газтурбосервис\"","7203078728","720301001",null,"ПИИ ОАО \"Газтурбосервис\"","7203078728","720301001",null,"ПИИ ОАО \"Газтурбосервис\"","7203078728","720301001",null,"ОАО \"Фортум\" (Тюменская ТЭЦ-1)","7203162698","720302001",null,null,null,null,null,"ООО \"Геолог-Инвест\"","8901024146","890101001"]
["ООО \"СИБУР Тобольск\"","7206025040","720601001","ООО \"СИБУР Тобольск\"","7206025040","720601001",null,null,null,null,null,null,null,null,null,null,null,null,null,"ПИИ ОАО \"Газтурбосервис\"","7203078728","720301001",null,"Управление \"Ямалэнергогаз\" ООО \"Газпром добыча Надым\"","8903019871","890303004",null,"ПИИ ОАО \"Газтурбосервис\"","7203078728","720301001",null,"Управление \"Ямалэнергогаз\" ООО \"Газпром добыча Надым\"","8903019871","890303004",null,"ОАО \"Черногорэнерго\"","8620001023","860301001",null,null,null,null,null,"ООО \"Дизаж М\"","7728587330","772801001"]
["ООО \"СИБУР Тобольск\"","7206025040","720601001","ООО \"СИБУР Тобольск\"","7206025040","720601001",null,null,null,null,null,null,null,null,null,null,null,null,null,"Управление \"Ямалэнергогаз\" ООО \"Газпром добыча Надым\"","8903019871","890303004",null,"Управление \"Ямалэнергогаз\" ООО \"Газпром добыча Надым\"","8903019871","890303004",null,"Управление \"Ямалэнергогаз\" ООО \"Газпром добыча Надым\"","8903019871","890303004",null,"Управление \"Ямалэнергогаз\" ООО \"Газпром добыча Надым\"","8903019871","890303004",null,"ОАО \"ЮТЭК-Покачи\"","8621005479","862101001",null,null,null,null,null,"ООО \"ЕЭС-Гарант\"","5024173259","502401001"]
["ООО \"Сибэнергокомплектмонтаж\"","8602253660","860201001","ООО \"Сибэнергокомплектмонтаж\"","8602253660","860201001",null,null,null,null,null,null,null,null,null,null,null,null,null,"Управление \"Ямалэнергогаз\" ООО \"Газпром добыча Надым\"","8903019871","890303004",null,"филиал - Надымское нефтегазодобывающее управление ООО \"Газпром Добыча Надым\"","8903019871","890303005",null,"Управление \"Ямалэнергогаз\" ООО \"Газпром добыча Надым\"","8903019871","890303004",null,"филиал - Надымское нефтегазодобывающее управление ООО \"Газпром Добыча Надым\"","8903019871","890303005",null,"ОАО \"Ямал СПГ\"","7709602713","891450001",null,null,null,null,null,"ООО \"Западно-Малобалыкское\"","8619010665","997150001"]
["ООО \"Статус\"","7202153919","720401001","ООО \"Статус\"","7202153919","720401001",null,null,null,null,null,null,null,null,null,null,null,null,null,"филиал - Надымское нефтегазодобывающее управление ООО \"Газпром Добыча Надым\"","8903019871","890303005",null,"филиал - Надымское нефтегазодобывающее управление ООО \"Газпром Добыча Надым\"","8903019871","890303005",null,"филиал - Надымское нефтегазодобывающее управление ООО \"Газпром Добыча Надым\"","8903019871","890303005",null,"филиал - Надымское нефтегазодобывающее управление ООО \"Газпром Добыча Надым\"","8903019871","890303005",null,"ОАО \"Ямал СПГ\"","7709602713","891450001",null,null,null,null,null,"ООО \"Западно-Малобалыкское\"","8619010665","997150001"]
["ООО \"Строительно-промышленный комбинат\"","8603214825","860301001","ООО \"Строительно-промышленный комбинат\"","8603214825","860301001",null,null,null,null,null,null,null,null,null,null,null,null,null,"филиал - Надымское нефтегазодобывающее управление ООО \"Газпром Добыча Надым\"","8903019871","890303005",null,"филиал \"Сургутская ГРЭС-2\" ПАО \"Юнипро\"","8602067092","860202001",null,"филиал - Надымское нефтегазодобывающее управление ООО \"Газпром Добыча Надым\"","8903019871","890303005",null,"филиал \"Сургутская ГРЭС-2\" ПАО \"Юнипро\"","8602067092","860202001",null,"ОАО \"Ямал СПГ\"","7709602713","891450001",null,null,null,null,null,"ООО \"Ижэнергосбыт\"","1834024515","184001001"]
["ООО \"Сургутские городские электрические сети\"","8602015464","860201001","ООО \"Сургутские городские электрические сети\"","8602015464","860201001",null,null,null,null,null,null,null,null,null,null,null,null,null,"филиал \"Сургутская ГРЭС-2\" ПАО \"Юнипро\"","8602067092","860202001",null,"филиал \"Сургутская ГРЭС-2\" ПАО \"Юнипро\"","8602067092","860202001",null,"филиал \"Сургутская ГРЭС-2\" ПАО \"Юнипро\"","8602067092","860202001",null,"филиал \"Сургутская ГРЭС-2\" ПАО \"Юнипро\"","8602067092","860202001",null,"ОАО \"Ямал СПГ\"","7709602713","891450001",null,null,null,null,null,"ООО \"Инженерные изыскания\"","1103029229","352801001"]
["ООО \"Тарманское-Центральное\"","7203141497","720301001","ООО \"Тарманское-Центральное\"","7203141497","720301001",null,null,null,null,null,null,null,null,null,null,null,null,null,"филиал \"Сургутская ГРЭС-2\" ПАО \"Юнипро\"","8602067092","860202001",null,"Филиал \"Уренгойская ГРЭС\" АО \"Интер РАО - Электрогенерация\"","7704784450","890443001",null,"филиал \"Сургутская ГРЭС-2\" ПАО \"Юнипро\"","8602067092","860202001",null,"Филиал \"Уренгойская ГРЭС\" АО \"Интер РАО - Электрогенерация\"","7704784450","890443001",null,"ОАО ТТК \"КРОСНО\"","7203001250","720301001",null,null,null,null,null,"ООО \"КНАУФ ЭНЕРГИЯ\"","7729677594","772901001"]
["ООО \"Тобольскпромэнергосеть\"","7206032440","720601001","ООО \"Тобольскпромэнергосеть\"","7206032440","720601001",null,null,null,null,null,null,null,null,null,null,null,null,null,"Филиал \"Уренгойская ГРЭС\" АО \"Интер РАО - Электрогенерация\"","7704784450","890443001",null,"Филиал \"Уренгойская ГРЭС\" АО \"Интер РАО - Электрогенерация\"","7704784450","890443001",null,"Филиал \"Уренгойская ГРЭС\" АО \"Интер РАО - Электрогенерация\"","7704784450","890443001",null,"Филиал \"Уренгойская ГРЭС\" АО \"Интер РАО - Электрогенерация\"","7704784450","890443001",null,"Общество с ограниченой ответственностью \"Газпромнефть-Ямал\"","8901001822","997250001",null,null,null,null,null,"ООО \"ЛУКОЙЛ-ЭНЕРГОСЕРВИС\"","5030040730","503001001"]
["ООО \"Транзит-Электро-Тюмень\"","7203249540","720301001","ООО \"Транзит-Электро-Тюмень\"","7203249540","720301001",null,null,null,null,null,null,null,null,null,null,null,null,null,"Филиал \"Уренгойская ГРЭС\" АО \"Интер РАО - Электрогенерация\"","7704784450","890443001",null,"Филиал ПАО \"ОГК-2\"- Сургутская ГРЭС-1","2607018122","860202001",null,"Филиал \"Уренгойская ГРЭС\" АО \"Интер РАО - Электрогенерация\"","7704784450","890443001",null,"Филиал ПАО \"ОГК-2\"- Сургутская ГРЭС-1","2607018122","860202001",null,"Общество с ограниченой ответственностью \"Газпромнефть-Ямал\"","8901001822","997250001",null,null,null,null,null,"ООО \"ЛУКОЙЛ-ЭНЕРГОСЕРВИС\"","5030040730","997650001"]
["ООО \"ТюменьСеть\"",7203508113,"720301001","ООО \"ТюменьСеть\"",7203508113,"720301001",null,null,null,null,null,null,null,null,null,null,null,null,null,"Филиал ПАО \"ОГК-2\"- Сургутская ГРЭС-1","2607018122","860202001",null,"Филиал ПАО \"ОГК-2\"- Сургутская ГРЭС-1","2607018122","860202001",null,"Филиал ПАО \"ОГК-2\"- Сургутская ГРЭС-1","2607018122","860202001",null,"Филиал ПАО \"ОГК-2\"- Сургутская ГРЭС-1","2607018122","860202001",null,"Общество с ограниченой ответственностью \"Газпромнефть-Ямал\"","8901001822","997250001",null,null,null,null,null,"ООО \"ЛУКОЙЛ-ЭНЕРГОСЕТИ\"","5260230051","770901001"]
["ООО \"ТРАНССЕТЬ\"","7203395220","720301001","ООО \"ТРАНССЕТЬ\"","7203395220","720301001",null,null,null,null,null,null,null,null,null,null,null,null,null,"Филиал ПАО \"ОГК-2\"- Сургутская ГРЭС-1","2607018122","860202001",null,null,null,null,null,"Филиал ПАО \"ОГК-2\"- Сургутская ГРЭС-1","2607018122","860202001",null,null,null,null,null,"ООО \"Тюменская электросетевая компания\"","7204160220","720401001",null,null,null,null,null,"ООО \"ЛУКОЙЛ-ЭНЕРГОСЕТИ\"","5260230051","770901001"]
["ООО \"Управляющая компания - Тюменские моторостроители\"","7203179282","720301001","ООО \"Управляющая компания - Тюменские моторостроители\"","7203179282","720301001",null,null,null,null,null,null,null,null,null,null,null,null,null,null,null,null,null,null,null,null,null,null,null,null,null,null,null,null,null,"ООО \"Агентство Интеллект-Сервис\"","7202082778","720301001",null,null,null,null,null,"ООО \"ЛУКОЙЛ-ЭНЕРГОСЕТИ\"","5260230051","770901001"]
["ООО \"Фотон\"","8910002438","890401001","ООО \"Фотон\"","8910002438","890401001",null,null,null,null,null,null,null,null,null,null,null,null,null,null,null,null,null,null,null,null,null,null,null,null,null,null,null,null,null,"ООО \"Агропромэнергия\"","7224014468","722401001",null,null,null,null,null,"ООО \"ЛУКОЙЛ-ЭНЕРГОСЕТИ\"","5260230051","770901001"]
["ООО \"Фотон\"","8910002438","890401001","ООО \"Фотон\"","8910002438","890401001",null,null,null,null,null,null,null,null,null,null,null,null,null,null,null,null,null,null,null,null,null,null,null,null,null,null,null,null,null,"ООО \"Альтера\"","7203252461","720301001",null,null,null,null,null,"ООО \"МСК Энерго\"","7725567512","772901001"]
["ООО \"ЭлектроСпецСтрой\"","7224038532","720301001","ООО \"ЭлектроСпецСтрой\"","7224038532","720301001",null,null,null,null,null,null,null,null,null,null,null,null,null,null,null,null,null,null,null,null,null,null,null,null,null,null,null,null,null,"ООО \"Аэропорт Советский\"","8615001243","861501001",null,null,null,null,null,"ООО \"МагнитЭнерго\"","7715902899","231001001"]
["ООО \"ЭЛЕКОНТ\"",7224046773,"722401001","ООО \"ЭЛЕКОНТ\"",7224046773,"722401001",null,null,null,null,null,null,null,null,null,null,null,null,null,null,null,null,null,null,null,null,null,null,null,null,null,null,null,null,null,"ООО \"Башнефть-Добыча\"","0277106840","025250001",null,null,null,null,null,"ООО \"МТС ЭНЕРГО\"","9709006506","772601001"]
["ООО \"Элтранс\"","7224042747","720301001","ООО \"Элтранс\"","7224042747","720301001",null,null,null,null,null,null,null,null,null,null,null,null,null,null,null,null,null,null,null,null,null,null,null,null,null,null,null,null,null,"ООО \"Башнефть-Добыча\"","0277106840","027501001",null,null,null,null,null,"ООО \"Независимое энергосбытовое предприятие\"","8602171819","860201001"]
["ООО \"Энергия-2006\"","7203180111","720301001","ООО \"Энергия-2006\"","7203180111","720301001",null,null,null,null,null,null,null,null,null,null,null,null,null,null,null,null,null,null,null,null,null,null,null,null,null,null,null,null,null,"ООО \"Башнефть-Добыча\"","0277106840","025250001",null,null,null,null,null,"ООО \"Нижневартовская энергосбытовая компания\"","8603109926","860301001"]
["ООО \"Энерго Тюмень\"","7204161070","720401001","ООО \"Энерго Тюмень\"","7204161070","720401001",null,null,null,null,null,null,null,null,null,null,null,null,null,null,null,null,null,null,null,null,null,null,null,null,null,null,null,null,null,"ООО \"Башнефть-Добыча\"","0277106840","025250001",null,null,null,null,null,"ООО \"Ноябрьская ПГЭ\"","8905037499","890501001"]
["ООО \"Энерго-Лидер\"","7204162073","720401001","ООО \"Энерго-Лидер\"","7204162073","720401001",null,null,null,null,null,null,null,null,null,null,null,null,null,null,null,null,null,null,null,null,null,null,null,null,null,null,null,null,null,"ООО \"Белозерный газоперерабатывающий комплекс\"","8603138733","862450001",null,null,null,null,null,"ООО \"Ноябрьская ПГЭ\"","8905037499","890501001"]
["ООО \"Энергонефть Томск\"","7022010799","702201001","ООО \"Энергонефть Томск\"","7022010799","702201001",null,null,null,null,null,null,null,null,null,null,null,null,null,null,null,null,null,null,null,null,null,null,null,null,null,null,null,null,null,"ООО \"Газпром добыча Уренгой\"","8904034784","997250001",null,null,null,null,null,"ООО \"Промэнергосбыт\"","7206036155","720601001"]
["ООО \"Ямал-Энерго\"","8912002546","891201001","ООО \"Ямал-Энерго\"","8912002546","891201001",null,null,null,null,null,null,null,null,null,null,null,null,null,null,null,null,null,null,null,null,null,null,null,null,null,null,null,null,null,"ООО \"Газпром добыча Уренгой\"","8904034784","997250001",null,null,null,null,null,"ООО \"ПрофСервисТрейд\"","7707820378","771401001"]
["ООО \"Ямал-Энерго\"","8912002546","891201001","ООО \"Ямал-Энерго\"","8912002546","891201001",null,null,null,null,null,null,null,null,null,null,null,null,null,null,null,null,null,null,null,null,null,null,null,null,null,null,null,null,null,"ООО \"Газпром добыча Уренгой\"","8904034784","997250001",null,null,null,null,null,"ООО \"Ратта\"","8912002352","891201001"]
["ООО «Газпром переработка» в зоне деятельности филиала Завод по стабилизации конденсата имени В.С. Черномырдина","1102054991","860201001","ООО «Газпром переработка» в зоне деятельности филиала Завод по стабилизации конденсата имени В.С. Черномырдина","1102054991","860201001",null,null,null,null,null,null,null,null,null,null,null,null,null,null,null,null,null,null,null,null,null,null,null,null,null,null,null,null,null,"ООО \"Газпром добыча Ямбург\" Филиал \"Ямбурское районное энергетическое управление\"","8904034777","890401001",null,null,null,null,null,"ООО \"Ратта\"","8912002352","891201001"]
["ООО «Газпром энерго» в зоне деятельности Сургутского филиала Общества с ограниченной ответственностью «Газпром энерго»","7736186950","860202001","ООО «Газпром энерго» в зоне деятельности Сургутского филиала Общества с ограниченной ответственностью «Газпром энерго»","7736186950","860202001",null,null,null,null,null,null,null,null,null,null,null,null,null,null,null,null,null,null,null,null,null,null,null,null,null,null,null,null,null,"ООО \"Газпром добыча Ямбург\" Филиал \"Ямбурское районное энергетическое управление\"","8904034777","890401001",null,null,null,null,null,"ООО \"Ратта\"","8912002352","891201001"]
["ООО «ЭЛЕК»","8602281868","860201001","ООО «ЭЛЕК»","8602281868","860201001",null,null,null,null,null,null,null,null,null,null,null,null,null,null,null,null,null,null,null,null,null,null,null,null,null,null,null,null,null,"ООО \"Газпром переработка\"","1102054991","780201001",null,null,null,null,null,"ООО \"Региональная энергосбытовая компания\" (ОПП)","4633017746","463301001"]
["ООО СК \"Восток\"","7203304688","720301001","ООО СК \"Восток\"","7203304688","720301001",null,null,null,null,null,null,null,null,null,null,null,null,null,null,null,null,null,null,null,null,null,null,null,null,null,null,null,null,null,"ООО \"Газпром трансгаз Сургут\"","8617002073","997250001",null,null,null,null,null,"ООО \"РН-Уватнефтегаз\"","7225003194","722501001"]
["ООО ЭК \"Тепло-Водо-Электро-Сервис\"","8912002592","891201001","ООО ЭК \"Тепло-Водо-Электро-Сервис\"","8912002592","891201001",null,null,null,null,null,null,null,null,null,null,null,null,null,null,null,null,null,null,null,null,null,null,null,null,null,null,null,null,null,"ООО \"Газпром трансгаз Сургут\" Демьянское ЛПУ МГ","8617002073","722503003",null,null,null,null,null,"ООО \"РН-Уватнефтегаз\"","7225003194","722501001"]
["ООО ЭК \"Тепло-Водо-Электро-Сервис\"","8912002592","891201001","ООО ЭК \"Тепло-Водо-Электро-Сервис\"","8912002592","891201001",null,null,null,null,null,null,null,null,null,null,null,null,null,null,null,null,null,null,null,null,null,null,null,null,null,null,null,null,null,"ООО \"Газпром трансгаз Сургут\" Ишимское ЛПУ МГ","8617002073","720503001",null,null,null,null,null,"ООО \"РН-Энерго\"","7706525041","997650001"]
["ПАО \"Передвижная энергетика\" филиал \"ПЭС Лабытнанги\"","7719019846","890202001","ПАО \"Передвижная энергетика\" филиал \"ПЭС Лабытнанги\"","7719019846","890202001",null,null,null,null,null,null,null,null,null,null,null,null,null,null,null,null,null,null,null,null,null,null,null,null,null,null,null,null,null,"ООО \"Газпром трансгаз Сургут\" Тобольское ЛПУ МГ","8617002073","720603002",null,null,null,null,null,"ООО \"РУСЭНЕРГО\"","4401144416","770501001"]
["ПАО \"Передвижная энергетика\" филиал \"ПЭС Лабытнанги\"","7719019846","890202001","ПАО \"Передвижная энергетика\" филиал \"ПЭС Лабытнанги\"","7719019846","890202001",null,null,null,null,null,null,null,null,null,null,null,null,null,null,null,null,null,null,null,null,null,null,null,null,null,null,null,null,null,"ООО \"Газпром трансгаз Сургут\" Туртасское ЛПУ МГ","8617002073","722503004",null,null,null,null,null,"ООО \"Русэнергоресурс\"","7706288496","770601001"]
["ПАО \"Птицефабрика \"Боровская\"","7224008030","722401001","ПАО \"Птицефабрика \"Боровская\"","7224008030","722401001",null,null,null,null,null,null,null,null,null,null,null,null,null,null,null,null,null,null,null,null,null,null,null,null,null,null,null,null,null,"ООО \"Газпром трансгаз Сургут\" Ярковское ЛПУ МГ","8617002073","722943001",null,null,null,null,null,"ООО \"Русэнергосбыт\"","7706284124","770401001"]
["ПАО \"Сургутнефтегаз\"","8602060555","997250001","ПАО \"Сургутнефтегаз\"","8602060555","997250001",null,null,null,null,null,null,null,null,null,null,null,null,null,null,null,null,null,null,null,null,null,null,null,null,null,null,null,null,null,"ООО \"Газпром трансгаз Югорск\"","8622000931","997250001",null,null,null,null,null,"ООО \"Салым Петролеум\"","8619013320","861901001"]
["ПАО \"ФСК ЕЭС\"","4716016979","772801001","ПАО \"ФСК ЕЭС\"","4716016979","772801001",null,null,null,null,null,null,null,null,null,null,null,null,null,null,null,null,null,null,null,null,null,null,null,null,null,null,null,null,null,"ООО \"Газпром трансгаз Югорск\"","8622000931","997250001",null,null,null,null,null,"ООО \"Салым Петролеум\"","8619013320","861901001"]
["ПАО \"ФСК ЕЭС\"","4716016979","997450001","ПАО \"ФСК ЕЭС\"","4716016979","997450001",null,null,null,null,null,null,null,null,null,null,null,null,null,null,null,null,null,null,null,null,null,null,null,null,null,null,null,null,null,"ООО \"Газпром трансгаз Югорск\"","8622000931","997250001",null,null,null,null,null,"ООО \"Самбургские электрические сети\"","8911024755","891101001"]
["Северная дирекция по энергообеспечению - структурное подразделение Трансэнерго - филиала ОАО \"Российские железные дороги\"","7708503727","760445013","Северная дирекция по энергообеспечению - структурное подразделение Трансэнерго - филиала ОАО \"Российские железные дороги\"","7708503727","760445013",null,null,null,null,null,null,null,null,null,null,null,null,null,null,null,null,null,null,null,null,null,null,null,null,null,null,null,null,null,"ООО \"Газпром трансгаз Югорск\"","8622000931","997250001",null,null,null,null,null,"ООО \"Самбургские электрические сети\"","8911024755","891101001"]
["Управление \"Ямалэнергогаз\" ООО \"Газпром добыча Надым\"","8903019871","890303004","Управление \"Ямалэнергогаз\" ООО \"Газпром добыча Надым\"","8903019871","890303004",null,null,null,null,null,null,null,null,null,null,null,null,null,null,null,null,null,null,null,null,null,null,null,null,null,null,null,null,null,"ООО \"Газпром энерго\"","7736186950","773601001",null,null,null,null,null,"ООО \"Самбургские электрические сети\"","8911024755","891101001"]
["Управление \"Ямалэнергогаз\" ООО \"Газпром добыча Надым\"","8903019871","890303004","Управление \"Ямалэнергогаз\" ООО \"Газпром добыча Надым\"","8903019871","890303004",null,null,null,null,null,null,null,null,null,null,null,null,null,null,null,null,null,null,null,null,null,null,null,null,null,null,null,null,null,"ООО \"Газпромнефть-Хантос\"","8618006063","997150001",null,null,null,null,null,"ООО \"Самбургские электрические сети\"","8911024755","891101001"]
["Уренгойский филиал ООО \"Газпром энерго\"","7736186950","890402001","Уренгойский филиал ООО \"Газпром энерго\"","7736186950","890402001",null,null,null,null,null,null,null,null,null,null,null,null,null,null,null,null,null,null,null,null,null,null,null,null,null,null,null,null,null,"ООО \"Газпромнефть-Хантос\"","8618006063","997150001",null,null,null,null,null,"ООО \"Северная ПЛЭС\"","7716605105","890345001"]
["ФБУ \"Центр реабилитации ФСС РФ \"Тараскуль\"","7204013642","720301001","ФБУ \"Центр реабилитации ФСС РФ \"Тараскуль\"","7204013642","720301001",null,null,null,null,null,null,null,null,null,null,null,null,null,null,null,null,null,null,null,null,null,null,null,null,null,null,null,null,null,"ООО \"Газпромнефть-Хантос\"","8618006063","997150001",null,null,null,null,null,"ООО \"Северная ПЛЭС\"","7716605105","890345001"]
["ФГУП \"Стройтранс №1\"","7203019680","720201001","ФГУП \"Стройтранс №1\"","7203019680","720201001",null,null,null,null,null,null,null,null,null,null,null,null,null,null,null,null,null,null,null,null,null,null,null,null,null,null,null,null,null,"ООО \"Газпромтранс\" (Ямальский филиал)","7728262893","890243001",null,null,null,null,null,"ООО \"СИБУР Тобольск\"","7206025040","720601001"]
["филиал - Надымское нефтегазодобывающее управление ООО \"Газпром Добыча Надым\"","8903019871","890303005","филиал - Надымское нефтегазодобывающее управление ООО \"Газпром Добыча Надым\"","8903019871","890303005",null,null,null,null,null,null,null,null,null,null,null,null,null,null,null,null,null,null,null,null,null,null,null,null,null,null,null,null,null,"ООО \"Газпромтранс\" (Ямальский филиал)","7728262893","890243001",null,null,null,null,null,"ООО \"СИБУР Тобольск\"","7206025040","720601001"]
["филиал - Надымское нефтегазодобывающее управление ООО \"Газпром Добыча Надым\"","8903019871","890303005","филиал - Надымское нефтегазодобывающее управление ООО \"Газпром Добыча Надым\"","8903019871","890303005",null,null,null,null,null,null,null,null,null,null,null,null,null,null,null,null,null,null,null,null,null,null,null,null,null,null,null,null,null,"ООО \"Газпромтранс\" (Ямальский филиал)","7728262893","890243001",null,null,null,null,null,"ООО \"СИБУР Тобольск\"","7206025040","720601001"]
["филиал ОАО \"РЖД\" - Свердловская ж.д. (Сургутская дистанция)","7708503727","860245012","филиал ОАО \"РЖД\" - Свердловская ж.д. (Сургутская дистанция)","7708503727","860245012",null,null,null,null,null,null,null,null,null,null,null,null,null,null,null,null,null,null,null,null,null,null,null,null,null,null,null,null,null,"ООО \"Газпромтранс\" (Ямальский филиал)","7728262893","890243001",null,null,null,null,null,"ООО \"СИБУР Тобольск\"","7206025040","720601001"]
["филиал ОАО \"РЖД\"- Свердловская ж.д. (Тюменская дистанция)","7708503727","720445015","филиал ОАО \"РЖД\"- Свердловская ж.д. (Тюменская дистанция)","7708503727","720445015",null,null,null,null,null,null,null,null,null,null,null,null,null,null,null,null,null,null,null,null,null,null,null,null,null,null,null,null,null,"ООО \"Геолог-Инвест\"","8901024146","890101001",null,null,null,null,null,"ООО \"Соровскнефть\"","7202170632","720301001"]
[null,null,null,null,null,null,null,null,null,null,null,null,null,null,null,null,null,null,null,null,null,null,null,null,null,null,null,null,null,null,null,null,null,null,null,"ООО \"Геолог-Инвест\"","8901024146","890101001",null,null,null,null,null,"ООО \"Соровскнефть\"","7202170632","720301001"]
[null,null,null,null,null,null,null,null,null,null,null,null,null,null,null,null,null,null,null,null,null,null,null,null,null,null,null,null,null,null,null,null,null,null,null,"ООО \"Геолог-Инвест\"","8901024146","890101001",null,null,null,null,null,"ООО \"Сургутская энергосбытовая компания\"","8602153048","860201001"]
[null,null,null,null,null,null,null,null,null,null,null,null,null,null,null,null,null,null,null,null,null,null,null,null,null,null,null,null,null,null,null,null,null,null,null,"ООО \"Дака\"","7224003201","720301001",null,null,null,null,null,"ООО \"Тобольская ТЭЦ\"","7206048859","720601001"]
[null,null,null,null,null,null,null,null,null,null,null,null,null,null,null,null,null,null,null,null,null,null,null,null,null,null,null,null,null,null,null,null,null,null,null,"ООО \"ДОК-Энерго\"","7204129541","720301001",null,null,null,null,null,"ООО \"Тобольская ТЭЦ\"","7206048859","720601001"]
[null,null,null,null,null,null,null,null,null,null,null,null,null,null,null,null,null,null,null,null,null,null,null,null,null,null,null,null,null,null,null,null,null,null,null,"ООО \"Дорстрой\"","7204080494","720301001",null,null,null,null,null,"ООО \"Транснефтьэнерго\"","7703552167","772301001"]
[null,null,null,null,null,null,null,null,null,null,null,null,null,null,null,null,null,null,null,null,null,null,null,null,null,null,null,null,null,null,null,null,null,null,null,"ООО \"ДСК-Энерго\"","7203144385","720301001",null,null,null,null,null,"ООО \"ТРОЯН\"","7203433010","720301001"]
[null,null,null,null,null,null,null,null,null,null,null,null,null,null,null,null,null,null,null,null,null,null,null,null,null,null,null,null,null,null,null,null,null,null,null,"ООО \"Западно-Малобалыкское\"","8619010665","997150001",null,null,null,null,null,"ООО \"Фотон\"","8910002438","890401001"]
[null,null,null,null,null,null,null,null,null,null,null,null,null,null,null,null,null,null,null,null,null,null,null,null,null,null,null,null,null,null,null,null,null,null,null,"ООО \"Западно-Малобалыкское\"","8619010665","997150001",null,null,null,null,null,"ООО \"Фотон\"","8910002438","890401001"]
[null,null,null,null,null,null,null,null,null,null,null,null,null,null,null,null,null,null,null,null,null,null,null,null,null,null,null,null,null,null,null,null,null,null,null,"ООО \"Западно-Малобалыкское\"","8619010665","997150001",null,null,null,null,null,"ООО \"Фотон\"","8910002438","890401001"]
[null,null,null,null,null,null,null,null,null,null,null,null,null,null,null,null,null,null,null,null,null,null,null,null,null,null,null,null,null,null,null,null,null,null,null,"ООО \"ИНТЕГРУС\"","7202190565","720201001",null,null,null,null,null,"ООО \"Фотон\"","8910002438","890401001"]
[null,null,null,null,null,null,null,null,null,null,null,null,null,null,null,null,null,null,null,null,null,null,null,null,null,null,null,null,null,null,null,null,null,null,null,"ООО \"ЛУКОЙЛ-ЭНЕРГОСЕТИ\"","5260230051","525350001",null,null,null,null,null,"ООО \"Энергетическая компания \"Урал Промышленный - Урал Полярный\"","8908002631","890801001"]
[null,null,null,null,null,null,null,null,null,null,null,null,null,null,null,null,null,null,null,null,null,null,null,null,null,null,null,null,null,null,null,null,null,null,null,"ООО \"ЛУКОЙЛ-ЭНЕРГОСЕТИ\"","5260230051","770901001",null,null,null,null,null,"ООО \"Энергетическая компания \"Урал Промышленный - Урал Полярный\"","8908002631","890801001"]
[null,null,null,null,null,null,null,null,null,null,null,null,null,null,null,null,null,null,null,null,null,null,null,null,null,null,null,null,null,null,null,null,null,null,null,"ООО \"ЛУКОЙЛ-ЭНЕРГОСЕТИ\"","5260230051","770901001",null,null,null,null,null,"ООО \"Энергетическая компания \"Урал Промышленный - Урал Полярный\"","8908002631","890801001"]
[null,null,null,null,null,null,null,null,null,null,null,null,null,null,null,null,null,null,null,null,null,null,null,null,null,null,null,null,null,null,null,null,null,null,null,"ООО \"ЛУКОЙЛ-ЭНЕРГОСЕТИ\"","5260230051","770901001",null,null,null,null,null,"ООО \"Энергокомплекс\"","7203394515","720301001"]
[null,null,null,null,null,null,null,null,null,null,null,null,null,null,null,null,null,null,null,null,null,null,null,null,null,null,null,null,null,null,null,null,null,null,null,"ООО \"ЛУКОЙЛ-ЭНЕРГОСЕТИ\"","5260230051","770901001",null,null,null,null,null,"ООО \"Энергосбытовая компания Черногорэнерго\"","8603126569","860301001"]
[null,null,null,null,null,null,null,null,null,null,null,null,null,null,null,null,null,null,null,null,null,null,null,null,null,null,null,null,null,null,null,null,null,null,null,"ООО \"Луч-Электро\"","8603097124","860301001",null,null,null,null,null,"ООО \"ЭСК \"Независимость\"","7701383354","770801001"]
[null,null,null,null,null,null,null,null,null,null,null,null,null,null,null,null,null,null,null,null,null,null,null,null,null,null,null,null,null,null,null,null,null,null,null,"ООО \"Мегионэнергонефть\"","8605016890","860501001",null,null,null,null,null,"ООО \"Ямал-Энерго\"","8912002546","891201001"]
[null,null,null,null,null,null,null,null,null,null,null,null,null,null,null,null,null,null,null,null,null,null,null,null,null,null,null,null,null,null,null,null,null,null,null,"ООО \"МинЭл\"","8614008550","861401001",null,null,null,null,null,"ООО \"Ямал-Энерго\"","8912002546","891201001"]
[null,null,null,null,null,null,null,null,null,null,null,null,null,null,null,null,null,null,null,null,null,null,null,null,null,null,null,null,null,null,null,null,null,null,null,"ООО \"Нижневартовский газоперерабатывающий комплекс\"","8603138726","862450001",null,null,null,null,null,"ООО \"Ямал-Энерго\"","8912002546","891201001"]
[null,null,null,null,null,null,null,null,null,null,null,null,null,null,null,null,null,null,null,null,null,null,null,null,null,null,null,null,null,null,null,null,null,null,null,"ООО \"Нижневартовскэнергонефть\"","8603104220","862450001",null,null,null,null,null,"ООО \"Ямал-Энерго\"","8912002546","891201001"]
[null,null,null,null,null,null,null,null,null,null,null,null,null,null,null,null,null,null,null,null,null,null,null,null,null,null,null,null,null,null,null,null,null,null,null,"ООО \"Ноябрьская ПГЭ\"","8905037499","890501001",null,null,null,null,null,"ООО «РЭК»","7714974474","645401001"]
[null,null,null,null,null,null,null,null,null,null,null,null,null,null,null,null,null,null,null,null,null,null,null,null,null,null,null,null,null,null,null,null,null,null,null,"ООО \"Ноябрьская ПГЭ\"","8905037499","890501001",null,null,null,null,null,"ООО ЭК \"Тепло-Водо-Электро-Сервис\"","8912002592","891201001"]
[null,null,null,null,null,null,null,null,null,null,null,null,null,null,null,null,null,null,null,null,null,null,null,null,null,null,null,null,null,null,null,null,null,null,null,"ООО \"Газпромнефть Энергосистемы\"","8905032490","891450001",null,null,null,null,null,"ООО ЭК \"Тепло-Водо-Электро-Сервис\"","8912002592","891201001"]
[null,null,null,null,null,null,null,null,null,null,null,null,null,null,null,null,null,null,null,null,null,null,null,null,null,null,null,null,null,null,null,null,null,null,null,"ООО \"Ратта\"","8912002352","891201001",null,null,null,null,null,"ООО ЭК \"Тепло-Водо-Электро-Сервис\"","8912002592","891201001"]
[null,null,null,null,null,null,null,null,null,null,null,null,null,null,null,null,null,null,null,null,null,null,null,null,null,null,null,null,null,null,null,null,null,null,null,"ООО \"Ратта\"","8912002352","891201001",null,null,null,null,null,"ООО ЭК \"Тепло-Водо-Электро-Сервис\"","8912002592","891201001"]
[null,null,null,null,null,null,null,null,null,null,null,null,null,null,null,null,null,null,null,null,null,null,null,null,null,null,null,null,null,null,null,null,null,null,null,"ООО \"Региональная энергетическая компания\"","7203412147","720301001",null,null,null,null,null,"ООО Энергосбытовая компания \"Аган\",г.Радужный","8609018048","860901001"]
[null,null,null,null,null,null,null,null,null,null,null,null,null,null,null,null,null,null,null,null,null,null,null,null,null,null,null,null,null,null,null,null,null,null,null,"ООО \"Ремэнергостройсервис\"","7224023014","722401001",null,null,null,null,null,"ПАО \"Передвижная энергетика\"","7719019846","771901001"]
[null,null,null,null,null,null,null,null,null,null,null,null,null,null,null,null,null,null,null,null,null,null,null,null,null,null,null,null,null,null,null,null,null,null,null,"ООО \"РН - Юганскнефтегаз\"","8604035473","997150001",null,null,null,null,null,"ПАО \"Передвижная энергетика\"","7719019846","771901001"]
[null,null,null,null,null,null,null,null,null,null,null,null,null,null,null,null,null,null,null,null,null,null,null,null,null,null,null,null,null,null,null,null,null,null,null,"ООО \"РН - Юганскнефтегаз\"","8604035473","997250001",null,null,null,null,null,"ПАО \"Передвижная энергетика\"  филиал ПЭС \"Уренгой\"","7719019846","890402001"]
[null,null,null,null,null,null,null,null,null,null,null,null,null,null,null,null,null,null,null,null,null,null,null,null,null,null,null,null,null,null,null,null,null,null,null,"ООО \"РН-Уватнефтегаз\"","7225003194","722501001",null,null,null,null,null,"ПАО \"Передвижная энергетика\"  филиал ПЭС \"Уренгой\"","7719019846","890402001"]
[null,null,null,null,null,null,null,null,null,null,null,null,null,null,null,null,null,null,null,null,null,null,null,null,null,null,null,null,null,null,null,null,null,null,null,"ООО \"РН-Уватнефтегаз\"","7225003194","722501001",null,null,null,null,null,"ПАО \"Передвижная энергетика\" филиал \"ПЭС Казым\"","7719019846","861102001"]
[null,null,null,null,null,null,null,null,null,null,null,null,null,null,null,null,null,null,null,null,null,null,null,null,null,null,null,null,null,null,null,null,null,null,null,"ООО \"Русская тепловая компания\"","8602062560","860201001",null,null,null,null,null,"ПАО \"Передвижная энергетика\" филиал \"ПЭС Казым\"","7719019846","861102001"]
[null,null,null,null,null,null,null,null,null,null,null,null,null,null,null,null,null,null,null,null,null,null,null,null,null,null,null,null,null,null,null,null,null,null,null,"ООО \"Салым Петролеум\"","8619013320","861901001",null,null,null,null,null,"ПАО \"Передвижная энергетика\" филиал \"ПЭС Лабытнанги\"","7719019846","890202001"]
[null,null,null,null,null,null,null,null,null,null,null,null,null,null,null,null,null,null,null,null,null,null,null,null,null,null,null,null,null,null,null,null,null,null,null,"ООО \"Салым Петролеум\"","8619013320","861901001",null,null,null,null,null,"ПАО \"Передвижная энергетика\" филиал \"ПЭС Лабытнанги\"","7719019846","890202001"]
[null,null,null,null,null,null,null,null,null,null,null,null,null,null,null,null,null,null,null,null,null,null,null,null,null,null,null,null,null,null,null,null,null,null,null,"ООО \"Самбургские электрические сети\"","8911024755","891101001",null,null,null,null,null,"ПАО \"Передвижная энергетика\" филиал \"ПЭС Лабытнанги\"","7719019846","890202001"]
[null,null,null,null,null,null,null,null,null,null,null,null,null,null,null,null,null,null,null,null,null,null,null,null,null,null,null,null,null,null,null,null,null,null,null,"ООО \"Самбургские электрические сети\"","8911024755","891101001",null,null,null,null,null,"ПАО \"Передвижная энергетика\" филиал \"ПЭС Лабытнанги\"","7719019846","890202001"]
[null,null,null,null,null,null,null,null,null,null,null,null,null,null,null,null,null,null,null,null,null,null,null,null,null,null,null,null,null,null,null,null,null,null,null,"ООО \"Самбургские электрические сети\"","8911024755","891101001",null,null,null,null,null,"ПАО \"Славнефть-Мегионнефтегаз\"","8605003932","860501001"]
[null,null,null,null,null,null,null,null,null,null,null,null,null,null,null,null,null,null,null,null,null,null,null,null,null,null,null,null,null,null,null,null,null,null,null,"ООО \"Самбургские электрические сети\"","8911024755","891101001",null,null,null,null,null,"ПАО \"Славнефть-Мегионнефтегаз\"","8605003932","860501001"]
[null,null,null,null,null,null,null,null,null,null,null,null,null,null,null,null,null,null,null,null,null,null,null,null,null,null,null,null,null,null,null,null,null,null,null,"ООО \"Северная ПЛЭС\"","7716605105","890345001",null,null,null,null,null,"ПАО \"Сургутнефтегаз\"","8602060555","997250001"]
[null,null,null,null,null,null,null,null,null,null,null,null,null,null,null,null,null,null,null,null,null,null,null,null,null,null,null,null,null,null,null,null,null,null,null,"ООО \"Северная ПЛЭС\"","7716605105","890345001",null,null,null,null,null,"ПАО \"Сургутнефтегаз\"","8602060555","997250001"]
[null,null,null,null,null,null,null,null,null,null,null,null,null,null,null,null,null,null,null,null,null,null,null,null,null,null,null,null,null,null,null,null,null,null,null,"ООО \"Северремприбор\"","8602248187","860201001",null,null,null,null,null,"ПАО \"Фортум\"","7203162698","745301001"]
[null,null,null,null,null,null,null,null,null,null,null,null,null,null,null,null,null,null,null,null,null,null,null,null,null,null,null,null,null,null,null,null,null,null,null,"ООО \"СеверСетьРазвитие\"","8901021265","667101001",null,null,null,null,null,"ПАО \"Фортум\"","7203162698","997150001"]
[null,null,null,null,null,null,null,null,null,null,null,null,null,null,null,null,null,null,null,null,null,null,null,null,null,null,null,null,null,null,null,null,null,null,null,"ООО \"Сетевая компания \"Вектор\"","7204143715","720301001",null,null,null,null,null,"ПАО \"Фортум\"","7203162698","997150001"]
[null,null,null,null,null,null,null,null,null,null,null,null,null,null,null,null,null,null,null,null,null,null,null,null,null,null,null,null,null,null,null,null,null,null,null,"ООО \"Сибирь-Электро\"","7224035725","722401001",null,null,null,null,null,"ПАО \"Фортум\"","7203162698","745301001"]
[null,null,null,null,null,null,null,null,null,null,null,null,null,null,null,null,null,null,null,null,null,null,null,null,null,null,null,null,null,null,null,null,null,null,null,"ООО \"Сибтрансэлектро\"","8604010454","860401001",null,null,null,null,null,"ПАО \"Фортум\"","7203162698","997150001"]
[null,null,null,null,null,null,null,null,null,null,null,null,null,null,null,null,null,null,null,null,null,null,null,null,null,null,null,null,null,null,null,null,null,null,null,"ООО \"СИБУР Тобольск\"","7206025040","720601001",null,null,null,null,null,"ПАО \"Фортум\" (Няганская ГРЭС)","7203162698","861002001"]
[null,null,null,null,null,null,null,null,null,null,null,null,null,null,null,null,null,null,null,null,null,null,null,null,null,null,null,null,null,null,null,null,null,null,null,"ООО \"СИБУР Тобольск\"","7206025040","720601001",null,null,null,null,null,"ПАО \"Фортум\" (Няганская ГРЭС)","7203162698","861002001"]
[null,null,null,null,null,null,null,null,null,null,null,null,null,null,null,null,null,null,null,null,null,null,null,null,null,null,null,null,null,null,null,null,null,null,null,"ООО \"СИБУР Тобольск\"","7206025040","720601001",null,null,null,null,null,"ПАО \"Фортум\" (Няганская ГРЭС)","7203162698","861002001"]
[null,null,null,null,null,null,null,null,null,null,null,null,null,null,null,null,null,null,null,null,null,null,null,null,null,null,null,null,null,null,null,null,null,null,null,"ООО \"СИБУР Тобольск\"","7206025040","720601001",null,null,null,null,null,"ПИИ ОАО \"Газтурбосервис\"","7203078728","720301001"]
[null,null,null,null,null,null,null,null,null,null,null,null,null,null,null,null,null,null,null,null,null,null,null,null,null,null,null,null,null,null,null,null,null,null,null,"ООО \"Сибэнергокомплектмонтаж\"","8602253660","860201001",null,null,null,null,null,"ПИИ ОАО \"Газтурбосервис\"","7203078728","720301001"]
[null,null,null,null,null,null,null,null,null,null,null,null,null,null,null,null,null,null,null,null,null,null,null,null,null,null,null,null,null,null,null,null,null,null,null,"ООО \"Соровскнефть\"","7202170632","720301001",null,null,null,null,null,"РЭУ  ОАО \"Запсибгазпром\"","7203001796","720345001"]
[null,null,null,null,null,null,null,null,null,null,null,null,null,null,null,null,null,null,null,null,null,null,null,null,null,null,null,null,null,null,null,null,null,null,null,"ООО \"Соровскнефть\"","7202170632","720301001",null,null,null,null,null,"Свердловский филиал ООО \"ЕЭС-Гарант\"","5024173259","667043001"]
[null,null,null,null,null,null,null,null,null,null,null,null,null,null,null,null,null,null,null,null,null,null,null,null,null,null,null,null,null,null,null,null,null,null,null,"ООО \"Статус\"","7202153919","720401001",null,null,null,null,null,"Управление \"Ямалэнергогаз\" ООО \"Газпром добыча Надым\"","8903019871","890303004"]
[null,null,null,null,null,null,null,null,null,null,null,null,null,null,null,null,null,null,null,null,null,null,null,null,null,null,null,null,null,null,null,null,null,null,null,"ООО \"Строительно-промышленный комбинат\"","8603214825","860301001",null,null,null,null,null,"Управление \"Ямалэнергогаз\" ООО \"Газпром добыча Надым\"","8903019871","890303004"]
[null,null,null,null,null,null,null,null,null,null,null,null,null,null,null,null,null,null,null,null,null,null,null,null,null,null,null,null,null,null,null,null,null,null,null,"ООО \"Сургутские городские электрические сети\"","8602015464","860201001",null,null,null,null,null,"Управление \"Ямалэнергогаз\" ООО \"Газпром добыча Надым\"","8903019871","890303004"]
[null,null,null,null,null,null,null,null,null,null,null,null,null,null,null,null,null,null,null,null,null,null,null,null,null,null,null,null,null,null,null,null,null,null,null,"ООО \"Тарманское-Центральное\"","7203141497","720301001",null,null,null,null,null,"Управление \"Ямалэнергогаз\" ООО \"Газпром добыча Надым\"","8903019871","890303004"]
[null,null,null,null,null,null,null,null,null,null,null,null,null,null,null,null,null,null,null,null,null,null,null,null,null,null,null,null,null,null,null,null,null,null,null,"ООО \"Тобольская ТЭЦ\"","7206048859","720601001",null,null,null,null,null,"филиал - Надымское нефтегазодобывающее управление ООО \"Газпром Добыча Надым\"","8903019871","890303005"]
[null,null,null,null,null,null,null,null,null,null,null,null,null,null,null,null,null,null,null,null,null,null,null,null,null,null,null,null,null,null,null,null,null,null,null,"ООО \"Тобольская ТЭЦ\"","7206048859","720601001",null,null,null,null,null,"филиал - Надымское нефтегазодобывающее управление ООО \"Газпром Добыча Надым\"","8903019871","890303005"]
[null,null,null,null,null,null,null,null,null,null,null,null,null,null,null,null,null,null,null,null,null,null,null,null,null,null,null,null,null,null,null,null,null,null,null,"ООО \"Тобольскпромэнергосеть\"","7206032440","720601001",null,null,null,null,null,"филиал - Надымское нефтегазодобывающее управление ООО \"Газпром Добыча Надым\"","8903019871","890303005"]
[null,null,null,null,null,null,null,null,null,null,null,null,null,null,null,null,null,null,null,null,null,null,null,null,null,null,null,null,null,null,null,null,null,null,null,"ООО \"Транзит-Электро-Тюмень\"","7203249540","720301001",null,null,null,null,null,"филиал - Надымское нефтегазодобывающее управление ООО \"Газпром Добыча Надым\"","8903019871","890303005"]
[null,null,null,null,null,null,null,null,null,null,null,null,null,null,null,null,null,null,null,null,null,null,null,null,null,null,null,null,null,null,null,null,null,null,null,"ООО \"ТюменьСеть\"",7203508113,"720301001",null,null,null,null,null,"филиал \"Сургутская ГРЭС-2\" ПАО \"Юнипро\"","8602067092","860202001"]
[null,null,null,null,null,null,null,null,null,null,null,null,null,null,null,null,null,null,null,null,null,null,null,null,null,null,null,null,null,null,null,null,null,null,null,"ООО \"ТРАНССЕТЬ\"","7203395220","720301001",null,null,null,null,null,"филиал \"Сургутская ГРЭС-2\" ПАО \"Юнипро\"","8602067092","860202001"]
[null,null,null,null,null,null,null,null,null,null,null,null,null,null,null,null,null,null,null,null,null,null,null,null,null,null,null,null,null,null,null,null,null,null,null,"ООО \"Управляющая компания - Тюменские моторостроители\"","7203179282","720301001",null,null,null,null,null,"Филиал \"Уренгойская ГРЭС\" АО \"Интер РАО - Электрогенерация\"","7704784450","890443001"]
[null,null,null,null,null,null,null,null,null,null,null,null,null,null,null,null,null,null,null,null,null,null,null,null,null,null,null,null,null,null,null,null,null,null,null,"ООО \"Фотон\"","8910002438","890401001",null,null,null,null,null,"Филиал \"Уренгойская ГРЭС\" АО \"Интер РАО - Электрогенерация\"","7704784450","890443001"]
[null,null,null,null,null,null,null,null,null,null,null,null,null,null,null,null,null,null,null,null,null,null,null,null,null,null,null,null,null,null,null,null,null,null,null,"ООО \"Фотон\"","8910002438","890401001",null,null,null,null,null,"Филиал ПАО \"ОГК-2\"- Сургутская ГРЭС-1","2607018122","860202001"]
[null,null,null,null,null,null,null,null,null,null,null,null,null,null,null,null,null,null,null,null,null,null,null,null,null,null,null,null,null,null,null,null,null,null,null,"ООО \"Фотон\"","8910002438","890401001",null,null,null,null,null,"Филиал ПАО \"ОГК-2\"- Сургутская ГРЭС-1","2607018122","860202001"]
[null,null,null,null,null,null,null,null,null,null,null,null,null,null,null,null,null,null,null,null,null,null,null,null,null,null,null,null,null,null,null,null,null,null,null,"ООО \"Фотон\"","8910002438","890401001"]
[null,null,null,null,null,null,null,null,null,null,null,null,null,null,null,null,null,null,null,null,null,null,null,null,null,null,null,null,null,null,null,null,null,null,null,"ООО \"ЭлектроСпецСтрой\"","7224038532","720301001"]
[null,null,null,null,null,null,null,null,null,null,null,null,null,null,null,null,null,null,null,null,null,null,null,null,null,null,null,null,null,null,null,null,null,null,null,"ООО \"ЭЛЕКОНТ\"",7224046773,"722401001"]
[null,null,null,null,null,null,null,null,null,null,null,null,null,null,null,null,null,null,null,null,null,null,null,null,null,null,null,null,null,null,null,null,null,null,null,"ООО \"Элтранс\"","7224042747","720301001"]
[null,null,null,null,null,null,null,null,null,null,null,null,null,null,null,null,null,null,null,null,null,null,null,null,null,null,null,null,null,null,null,null,null,null,null,"ООО \"Энергетическая компания \"Урал Промышленный - Урал Полярный\"","8908002631","890801001"]
[null,null,null,null,null,null,null,null,null,null,null,null,null,null,null,null,null,null,null,null,null,null,null,null,null,null,null,null,null,null,null,null,null,null,null,"ООО \"Энергетическая компания \"Урал Промышленный - Урал Полярный\"","8908002631","890801001"]
[null,null,null,null,null,null,null,null,null,null,null,null,null,null,null,null,null,null,null,null,null,null,null,null,null,null,null,null,null,null,null,null,null,null,null,"ООО \"Энергия-2006\"","7203180111","720301001"]
[null,null,null,null,null,null,null,null,null,null,null,null,null,null,null,null,null,null,null,null,null,null,null,null,null,null,null,null,null,null,null,null,null,null,null,"ООО \"Энерго Тюмень\"","7204161070","720401001"]
[null,null,null,null,null,null,null,null,null,null,null,null,null,null,null,null,null,null,null,null,null,null,null,null,null,null,null,null,null,null,null,null,null,null,null,"ООО \"Энерго-Лидер\"","7204162073","720401001"]
[null,null,null,null,null,null,null,null,null,null,null,null,null,null,null,null,null,null,null,null,null,null,null,null,null,null,null,null,null,null,null,null,null,null,null,"ООО \"Энергонефть Томск\"","7022010799","702201001"]
[null,null,null,null,null,null,null,null,null,null,null,null,null,null,null,null,null,null,null,null,null,null,null,null,null,null,null,null,null,null,null,null,null,null,null,"ООО \"Ямал-Энерго\"","8912002546","891201001"]
[null,null,null,null,null,null,null,null,null,null,null,null,null,null,null,null,null,null,null,null,null,null,null,null,null,null,null,null,null,null,null,null,null,null,null,"ООО \"Ямал-Энерго\"","8912002546","891201001"]
[null,null,null,null,null,null,null,null,null,null,null,null,null,null,null,null,null,null,null,null,null,null,null,null,null,null,null,null,null,null,null,null,null,null,null,"ООО \"Ямал-Энерго\"","8912002546","891201001"]
[null,null,null,null,null,null,null,null,null,null,null,null,null,null,null,null,null,null,null,null,null,null,null,null,null,null,null,null,null,null,null,null,null,null,null,"ООО \"Ямал-Энерго\"","8912002546","891201001"]
[null,null,null,null,null,null,null,null,null,null,null,null,null,null,null,null,null,null,null,null,null,null,null,null,null,null,null,null,null,null,null,null,null,null,null,"ООО «Газпром переработка» в зоне деятельности филиала Завод по стабилизации конденсата имени В.С. Черномырдина","1102054991","860201001"]
[null,null,null,null,null,null,null,null,null,null,null,null,null,null,null,null,null,null,null,null,null,null,null,null,null,null,null,null,null,null,null,null,null,null,null,"ООО «Газпром энерго» в зоне деятельности Сургутского филиала Общества с ограниченной ответственностью «Газпром энерго»","7736186950","860202001"]
[null,null,null,null,null,null,null,null,null,null,null,null,null,null,null,null,null,null,null,null,null,null,null,null,null,null,null,null,null,null,null,null,null,null,null,"ООО «ЭЛЕК»","8602281868","860201001"]
[null,null,null,null,null,null,null,null,null,null,null,null,null,null,null,null,null,null,null,null,null,null,null,null,null,null,null,null,null,null,null,null,null,null,null,"ООО СК \"Восток\"","7203304688","720301001"]
[null,null,null,null,null,null,null,null,null,null,null,null,null,null,null,null,null,null,null,null,null,null,null,null,null,null,null,null,null,null,null,null,null,null,null,"ООО ЭК \"Тепло-Водо-Электро-Сервис\"","8912002592","891201001"]
[null,null,null,null,null,null,null,null,null,null,null,null,null,null,null,null,null,null,null,null,null,null,null,null,null,null,null,null,null,null,null,null,null,null,null,"ООО ЭК \"Тепло-Водо-Электро-Сервис\"","8912002592","891201001"]
[null,null,null,null,null,null,null,null,null,null,null,null,null,null,null,null,null,null,null,null,null,null,null,null,null,null,null,null,null,null,null,null,null,null,null,"ООО ЭК \"Тепло-Водо-Электро-Сервис\"","8912002592","891201001"]
[null,null,null,null,null,null,null,null,null,null,null,null,null,null,null,null,null,null,null,null,null,null,null,null,null,null,null,null,null,null,null,null,null,null,null,"ООО ЭК \"Тепло-Водо-Электро-Сервис\"","8912002592","891201001"]
[null,null,null,null,null,null,null,null,null,null,null,null,null,null,null,null,null,null,null,null,null,null,null,null,null,null,null,null,null,null,null,null,null,null,null,"ПАО \"Передвижная энергетика\"","7719019846","771901001"]
[null,null,null,null,null,null,null,null,null,null,null,null,null,null,null,null,null,null,null,null,null,null,null,null,null,null,null,null,null,null,null,null,null,null,null,"ПАО \"Передвижная энергетика\"","7719019846","771901001"]
[null,null,null,null,null,null,null,null,null,null,null,null,null,null,null,null,null,null,null,null,null,null,null,null,null,null,null,null,null,null,null,null,null,null,null,"ПАО \"Передвижная энергетика\"  филиал ПЭС \"Уренгой\"","7719019846","890402001"]
[null,null,null,null,null,null,null,null,null,null,null,null,null,null,null,null,null,null,null,null,null,null,null,null,null,null,null,null,null,null,null,null,null,null,null,"ПАО \"Передвижная энергетика\"  филиал ПЭС \"Уренгой\"","7719019846","890402001"]
[null,null,null,null,null,null,null,null,null,null,null,null,null,null,null,null,null,null,null,null,null,null,null,null,null,null,null,null,null,null,null,null,null,null,null,"ПАО \"Передвижная энергетика\" филиал \"ПЭС Казым\"","7719019846","861102001"]
[null,null,null,null,null,null,null,null,null,null,null,null,null,null,null,null,null,null,null,null,null,null,null,null,null,null,null,null,null,null,null,null,null,null,null,"ПАО \"Передвижная энергетика\" филиал \"ПЭС Казым\"","7719019846","861102001"]
[null,null,null,null,null,null,null,null,null,null,null,null,null,null,null,null,null,null,null,null,null,null,null,null,null,null,null,null,null,null,null,null,null,null,null,"ПАО \"Передвижная энергетика\" филиал \"ПЭС Лабытнанги\"","7719019846","890202001"]
[null,null,null,null,null,null,null,null,null,null,null,null,null,null,null,null,null,null,null,null,null,null,null,null,null,null,null,null,null,null,null,null,null,null,null,"ПАО \"Передвижная энергетика\" филиал \"ПЭС Лабытнанги\"","7719019846","890202001"]
[null,null,null,null,null,null,null,null,null,null,null,null,null,null,null,null,null,null,null,null,null,null,null,null,null,null,null,null,null,null,null,null,null,null,null,"ПАО \"Передвижная энергетика\" филиал \"ПЭС Лабытнанги\"","7719019846","890202001"]
[null,null,null,null,null,null,null,null,null,null,null,null,null,null,null,null,null,null,null,null,null,null,null,null,null,null,null,null,null,null,null,null,null,null,null,"ПАО \"Передвижная энергетика\" филиал \"ПЭС Лабытнанги\"","7719019846","890202001"]
[null,null,null,null,null,null,null,null,null,null,null,null,null,null,null,null,null,null,null,null,null,null,null,null,null,null,null,null,null,null,null,null,null,null,null,"ПАО \"Птицефабрика \"Боровская\"","7224008030","722401001"]
[null,null,null,null,null,null,null,null,null,null,null,null,null,null,null,null,null,null,null,null,null,null,null,null,null,null,null,null,null,null,null,null,null,null,null,"ПАО \"Славнефть-Мегионнефтегаз\"","8605003932","860501001"]
[null,null,null,null,null,null,null,null,null,null,null,null,null,null,null,null,null,null,null,null,null,null,null,null,null,null,null,null,null,null,null,null,null,null,null,"ПАО \"Славнефть-Мегионнефтегаз\"","8605003932","860501001"]
[null,null,null,null,null,null,null,null,null,null,null,null,null,null,null,null,null,null,null,null,null,null,null,null,null,null,null,null,null,null,null,null,null,null,null,"ПАО \"Сургутнефтегаз\"","8602060555","997250001"]
[null,null,null,null,null,null,null,null,null,null,null,null,null,null,null,null,null,null,null,null,null,null,null,null,null,null,null,null,null,null,null,null,null,null,null,"ПАО \"Сургутнефтегаз\"","8602060555","997250001"]
[null,null,null,null,null,null,null,null,null,null,null,null,null,null,null,null,null,null,null,null,null,null,null,null,null,null,null,null,null,null,null,null,null,null,null,"ПАО \"Сургутнефтегаз\"","8602060555","997250001"]
[null,null,null,null,null,null,null,null,null,null,null,null,null,null,null,null,null,null,null,null,null,null,null,null,null,null,null,null,null,null,null,null,null,null,null,"ПАО \"Фортум\"","7203162698","745301001"]
[null,null,null,null,null,null,null,null,null,null,null,null,null,null,null,null,null,null,null,null,null,null,null,null,null,null,null,null,null,null,null,null,null,null,null,"ПАО \"Фортум\"","7203162698","997150001"]
[null,null,null,null,null,null,null,null,null,null,null,null,null,null,null,null,null,null,null,null,null,null,null,null,null,null,null,null,null,null,null,null,null,null,null,"ПАО \"Фортум\"","7203162698","745301001"]
[null,null,null,null,null,null,null,null,null,null,null,null,null,null,null,null,null,null,null,null,null,null,null,null,null,null,null,null,null,null,null,null,null,null,null,"ПАО \"Фортум\"","7203162698","997150001"]
[null,null,null,null,null,null,null,null,null,null,null,null,null,null,null,null,null,null,null,null,null,null,null,null,null,null,null,null,null,null,null,null,null,null,null,"ПАО \"Фортум\" (Няганская ГРЭС)","7203162698","861002001"]
[null,null,null,null,null,null,null,null,null,null,null,null,null,null,null,null,null,null,null,null,null,null,null,null,null,null,null,null,null,null,null,null,null,null,null,"ПАО \"Фортум\" (Няганская ГРЭС)","7203162698","861002001"]
[null,null,null,null,null,null,null,null,null,null,null,null,null,null,null,null,null,null,null,null,null,null,null,null,null,null,null,null,null,null,null,null,null,null,null,"ПАО \"ФСК ЕЭС\"","4716016979","772801001"]
[null,null,null,null,null,null,null,null,null,null,null,null,null,null,null,null,null,null,null,null,null,null,null,null,null,null,null,null,null,null,null,null,null,null,null,"ПАО \"ФСК ЕЭС\"","4716016979","997450001"]
[null,null,null,null,null,null,null,null,null,null,null,null,null,null,null,null,null,null,null,null,null,null,null,null,null,null,null,null,null,null,null,null,null,null,null,"ПИИ ОАО \"Газтурбосервис\"","7203078728","720301001"]
[null,null,null,null,null,null,null,null,null,null,null,null,null,null,null,null,null,null,null,null,null,null,null,null,null,null,null,null,null,null,null,null,null,null,null,"ПИИ ОАО \"Газтурбосервис\"","7203078728","720301001"]
[null,null,null,null,null,null,null,null,null,null,null,null,null,null,null,null,null,null,null,null,null,null,null,null,null,null,null,null,null,null,null,null,null,null,null,"Северная дирекция по энергообеспечению - структурное подразделение Трансэнерго - филиала ОАО \"Российские железные дороги\"","7708503727","760445013"]
[null,null,null,null,null,null,null,null,null,null,null,null,null,null,null,null,null,null,null,null,null,null,null,null,null,null,null,null,null,null,null,null,null,null,null,"Управление \"Ямалэнергогаз\" ООО \"Газпром добыча Надым\"","8903019871","890303004"]
[null,null,null,null,null,null,null,null,null,null,null,null,null,null,null,null,null,null,null,null,null,null,null,null,null,null,null,null,null,null,null,null,null,null,null,"Управление \"Ямалэнергогаз\" ООО \"Газпром добыча Надым\"","8903019871","890303004"]
[null,null,null,null,null,null,null,null,null,null,null,null,null,null,null,null,null,null,null,null,null,null,null,null,null,null,null,null,null,null,null,null,null,null,null,"Управление \"Ямалэнергогаз\" ООО \"Газпром добыча Надым\"","8903019871","890303004"]
[null,null,null,null,null,null,null,null,null,null,null,null,null,null,null,null,null,null,null,null,null,null,null,null,null,null,null,null,null,null,null,null,null,null,null,"Управление \"Ямалэнергогаз\" ООО \"Газпром добыча Надым\"","8903019871","890303004"]
[null,null,null,null,null,null,null,null,null,null,null,null,null,null,null,null,null,null,null,null,null,null,null,null,null,null,null,null,null,null,null,null,null,null,null,"Уренгойский филиал ООО \"Газпром энерго\"","7736186950","890402001"]
[null,null,null,null,null,null,null,null,null,null,null,null,null,null,null,null,null,null,null,null,null,null,null,null,null,null,null,null,null,null,null,null,null,null,null,"ФБУ \"Центр реабилитации ФСС РФ \"Тараскуль\"","7204013642","720301001"]
[null,null,null,null,null,null,null,null,null,null,null,null,null,null,null,null,null,null,null,null,null,null,null,null,null,null,null,null,null,null,null,null,null,null,null,"ФГУП \"Стройтранс №1\"","7203019680","720201001"]
[null,null,null,null,null,null,null,null,null,null,null,null,null,null,null,null,null,null,null,null,null,null,null,null,null,null,null,null,null,null,null,null,null,null,null,"филиал - Надымское нефтегазодобывающее управление ООО \"Газпром Добыча Надым\"","8903019871","890303005"]
[null,null,null,null,null,null,null,null,null,null,null,null,null,null,null,null,null,null,null,null,null,null,null,null,null,null,null,null,null,null,null,null,null,null,null,"филиал - Надымское нефтегазодобывающее управление ООО \"Газпром Добыча Надым\"","8903019871","890303005"]
[null,null,null,null,null,null,null,null,null,null,null,null,null,null,null,null,null,null,null,null,null,null,null,null,null,null,null,null,null,null,null,null,null,null,null,"филиал - Надымское нефтегазодобывающее управление ООО \"Газпром Добыча Надым\"","8903019871","890303005"]
[null,null,null,null,null,null,null,null,null,null,null,null,null,null,null,null,null,null,null,null,null,null,null,null,null,null,null,null,null,null,null,null,null,null,null,"филиал - Надымское нефтегазодобывающее управление ООО \"Газпром Добыча Надым\"","8903019871","890303005"]
[null,null,null,null,null,null,null,null,null,null,null,null,null,null,null,null,null,null,null,null,null,null,null,null,null,null,null,null,null,null,null,null,null,null,null,"филиал \"Сургутская ГРЭС-2\" ПАО \"Юнипро\"","8602067092","860202001"]
[null,null,null,null,null,null,null,null,null,null,null,null,null,null,null,null,null,null,null,null,null,null,null,null,null,null,null,null,null,null,null,null,null,null,null,"филиал \"Сургутская ГРЭС-2\" ПАО \"Юнипро\"","8602067092","860202001"]
[null,null,null,null,null,null,null,null,null,null,null,null,null,null,null,null,null,null,null,null,null,null,null,null,null,null,null,null,null,null,null,null,null,null,null,"Филиал \"Уренгойская ГРЭС\" АО \"Интер РАО - Электрогенерация\"","7704784450","890443001"]
[null,null,null,null,null,null,null,null,null,null,null,null,null,null,null,null,null,null,null,null,null,null,null,null,null,null,null,null,null,null,null,null,null,null,null,"Филиал \"Уренгойская ГРЭС\" АО \"Интер РАО - Электрогенерация\"","7704784450","890443001"]
[null,null,null,null,null,null,null,null,null,null,null,null,null,null,null,null,null,null,null,null,null,null,null,null,null,null,null,null,null,null,null,null,null,null,null,"филиал ОАО \"РЖД\" - Свердловская ж.д. (Сургутская дистанция)","7708503727","860245012"]
[null,null,null,null,null,null,null,null,null,null,null,null,null,null,null,null,null,null,null,null,null,null,null,null,null,null,null,null,null,null,null,null,null,null,null,"филиал ОАО \"РЖД\"- Свердловская ж.д. (Тюменская дистанция)","7708503727","720445015"]
[null,null,null,null,null,null,null,null,null,null,null,null,null,null,null,null,null,null,null,null,null,null,null,null,null,null,null,null,null,null,null,null,null,null,null,"Филиал ПАО \"ОГК-2\"- Сургутская ГРЭС-1","2607018122","860202001"]
[null,null,null,null,null,null,null,null,null,null,null,null,null,null,null,null,null,null,null,null,null,null,null,null,null,null,null,null,null,null,null,null,null,null,null,"Филиал ПАО \"ОГК-2\"- Сургутская ГРЭС-1","2607018122","860202001"]

{"sheet":"REESTR","index":8,"n_rows":3,"n_cols":3,"rows_kept":3,"cut":false,"hidden":true,"merged":[]}
["ОРГАНИЗАЦИЯ","ИНН","КПП"]
["ООО \"Агентство Интеллект-Сервис\"","7202082778","720301001"]
["ООО \"Агропромэнергия\"","7224014468","722401001"]

{"sheet":"tech","index":9,"n_rows":25,"n_cols":6,"rows_kept":25,"cut":false,"hidden":true,"merged":[[1,0,1,1],[4,0,4,1],[7,0,7,1],[20,0,20,1],[23,0,23,1],[10,0,10,1],[14,0,14,1],[17,0,17,1]]}
[]
["add_net_company_range"]
[null,null,null,null,null,{"$f":"SUM(G3:J3)","v":0}]
[]
["add_gen_company_range"]
[null,null,null,null,null,{"$f":"SUM(G6:J6)","v":0}]
[]
["add_sbwt_company_range"]
[null,null,null,null,null,{"$f":"SUM(G9:J9)","v":0}]
[]
["add_other_company_range"]
[null,null,null,null,null,{"$f":"SUM(G12:J12)","v":0}]
[]
[]
["add_net_company_locked_range"]
[null,null,null,null,null,{"$f":"SUM(G16:J16)","v":0}]
[]
["add_gen_company_locked_range"]
[null,null,null,null,null,{"$f":"SUM(G19:J19)","v":0}]
[]
["add_sbwt_company_locked_range"]
[null,null,null,null,null,{"$f":"SUM(G22:J22)","v":0}]
[]
["add_other_company_locked_range"]
[null,null,null,null,null,{"$f":"SUM(G25:J25)","v":0}]